Workbook

Sheet TOT-0415
B2: ANEXO I al Memorandum D.T.E.E. N° 526 / 2016
A4: ENTE NACIONAL REGULADOR
A5: DE LA ELECTRICIDAD
B7: SISTEMA DE TRANSPORTE DE ENERGÍA ELÉCTRICA POR DISTRIBUCIÓN TRONCAL
B9: TRANSNOA S.A.
B11: TOTAL DE PENALIZACIONES
B13: 1
B14: Desde el 01 al 30 de abril de 2015
B16: Sanciones duplicadas por tasa de falla > 4 Sal. x año/100km.
C18: 1.- | D18: LÍNEAS
D19: 1.1.- | E19: Equipamiento propio | J19: ='LI-04 (2)'!AA42 -> 147363.93
D20: 1.2.- | E20: Equipamiento del T.I.TRANSPORTEL La Rioja Sur | J20: ='LI-RIOJA-04 (1)'!AA42 -> 3513.93
C22: 2.- | D22: CONEXIÓN
D23: 2.1.- | E23: Transformación
E24: 2.1.1.- | F24: Equipamiento propio | J24: ='T-04 (3)'!AC39 -> 26587.25
C27: 3.- | D27: SUPERVISIÓN
D28: 3.1.- | E28: T.I. TRANSPORTEL La Rioja Sur | J28: ='SUP-TRANSPORTEL'!I44 -> 1405.573483
G31: TOTAL | H31: =SUM(J18:J29) -> 178870.6835
C33: Valores remuneratorios según Convenio de Renovación del acuerdo Instrumental, Nota ENRE Nº 117773

Sheet LI-04 (1)
B2: ANEXO I al Memorandum D.T.E.E. N° 526 / 2016
A4: ENTE NACIONAL REGULADOR
A5: DE LA ELECTRICIDAD
F8: SISTEMA DE TRANSPORTE DE ENERGÍA ELÉCTRICA POR DISTRIBUCIÓN TRONCAL - TRANSNOA S.A.
F10: 1.- LÍNEAS
F12: 1.1.- Equipamiento propio
B14: ='TOT-0415'!B14 -> Desde el 01 al 30 de abril de 2015
F16: $/100 km-h : LINEAS 132 kV | G16: 464.684 | K16: FACTOR DE PENALIZACION K = | L16: =30*'TOT-0415'!B13 -> 30 | M16: =IF(L16=30," ",IF(L16=60,"Coeficiente duplicado por tasa de falla >4 Sal. x año/100 km.","REVISAR COEFICIENTE")) -> 
C17: 3 | D17: 4 | E17: 5 | F17: 6 | G17: 7 | H17: 8 | I17: 9 | J17: 10 | K17: 11 | L17: 12 | M17: 13 | N17: 14 | O17: 15 | P17: 16 | Q17: 17 | R17: 18 | S17: 19 | T17: 20 | U17: 21 | V17: 22 | W17: 23 | X17: 24 | Y17: 25 | Z17: 26 | AA17: 27
C18: N° | D18: INDISP | E18: ID EQUIPO | F18: LÍNEAS | G18: U [kV] | H18: Long. [km] | I18: $/h | J18: Salida | K18: Entrada | L18: Hs. Indisp | M18: Minutos Indisp. | N18: Tipo Sal.(²) | O18: C.R. % | P18: PENALIZ. PROGRAM. | Q18: REDUCC. PROGRAM. | R18: PENALIZACION FORZADA Por Salida 1ras. 3 hs. hs. Restantes | U18: REDUCC. FORZADA Por Salida 1ras. 3 hs. hs. Restantes | X18: RESTANTE FORZADA | Y18: REDUCC. RESTANTE | Z18: Informó en Térm. | AA18: TOTAL PENALIZAC.
C21: 1 | D21: 287075 | E21: 4677 | F21: GUEMES SALTA - MINETTI | G21: 132 | H21: 36.09999847 | I21: =$G$16/100*IF(H21>25,H21,25) -> 167.7509169 | J21: 2015-04-01T01:44:00 | K21: 2015-04-01T03:58:00 | L21: =IF(F21="","",(K21-J21)*24) -> 2.233333333 | M21: =IF(F21="","",ROUND((K21-J21)*24*60,0)) -> 134 | N21: F | O21: =IF(F21="","","--") -> -- | P21: =IF(N21="P",ROUND(M21/60,2)*I21*$L$16*0.01,"--") -> -- | Q21: =IF(N21="RP",I21*O21*ROUND(L21/60,2)*0.01*M21/100,"--") -> -- | R21: =IF(N21="F",I21*$L$16,"--") -> 5032.527507 | S21: =IF(AND(M21>10,N21="F"),I21*$L$16*IF(M21>180,3,ROUND((M21)/60,2)),"--") -> 11222.53634 | T21: =IF(AND(M21>180,N21="F"),(ROUND(M21/60,2)-3)*I21*$L$16*0.1,"--") -> -- | U21: =IF(N21="R",I21*$L$16*O21/100,"--") -> -- | V21: =IF(AND(M21>10,N21="R"),I21*$L$16*O21/100*IF(M21>180,3,ROUND(M21/60,2)),"--") -> -- | W21: =IF(AND(M21>180,N21="R"),(ROUND(M21/60,2)-3)*I21*$L$16*0.1*O21/100,"--") -> -- | X21: =IF(N21="RF",ROUND(M21/60,2)*I21*$L$16*0.1,"--") -> -- | Y21: =IF(N21="RR",ROUND(M21/60,2)*I21*$L$16*0.1*O21/100,"--") -> -- | Z21: SI | AA21: =IF(F21="","",SUM(P21:Y21)*IF(Z21="SI",1,2)) -> 16255.06385
C22: 2 | D22: 287076 | E22: 287 | F22: AGUA BLANCA - INDEPENDENCIA TUC | G22: 132 | H22: 34.13999939 | I22: 158.6431148 | J22: 2015-04-01T08:28:00 | K22: 2015-04-01T13:44:00 | L22: 5.266666667 | M22: 316 | N22: P | O22: -- | P22: 250.8147644 | Q22: -- | R22: -- | S22: -- | T22: -- | U22: -- | V22: -- | W22: -- | X22: -- | Y22: -- | Z22: SI | AA22: 250.8147644
C23: 3 | D23: 287083 | E23: 5436 | F23: LA RIOJA - ARAUCO | G23: 132 | H23: 84.3 | I23: 391.728612 | J23: 2015-04-04T01:27:00 | K23: 2015-04-04T01:37:00 | L23: 0.1666666667 | M23: 10 | N23: F | O23: -- | P23: -- | Q23: -- | R23: 11751.85836 | S23: -- | T23: -- | U23: -- | V23: -- | W23: -- | X23: -- | Y23: -- | Z23: SI | AA23: 11751.85836
C24: 4 | D24: 287200 | E24: 311 | F24: AGUILARES - VILLA QUINTEROS | G24: 132 | H24: 21 | I24: 116.171 | J24: 2015-04-07T09:35:00 | K24: 2015-04-07T16:59:00 | L24: 7.4 | M24: 444 | N24: P | O24: -- | P24: 257.89962 | Q24: -- | R24: -- | S24: -- | T24: -- | U24: -- | V24: -- | W24: -- | X24: -- | Y24: -- | Z24: SI | AA24: 257.89962
C25: 5 | D25: 287202 | E25: 311 | F25: AGUILARES - VILLA QUINTEROS | G25: 132 | H25: 21 | I25: 116.171 | J25: 2015-04-08T01:02:00 | K25: 2015-04-08T01:09:00 | L25: 0.1166666667 | M25: 7 | N25: F | O25: -- | P25: -- | Q25: -- | R25: 3485.13 | S25: -- | T25: -- | U25: -- | V25: -- | W25: -- | X25: -- | Y25: -- | Z25: SI | AA25: 3485.13
C26: 6 | D26: 287214 | E26: 311 | F26: AGUILARES - VILLA QUINTEROS | G26: 132 | H26: 21 | I26: 116.171 | J26: 2015-04-09T08:14:00 | K26: 2015-04-09T17:13:00 | L26: 8.983333333 | M26: 539 | N26: P | O26: -- | P26: 312.964674 | Q26: -- | R26: -- | S26: -- | T26: -- | U26: -- | V26: -- | W26: -- | X26: -- | Y26: -- | Z26: SI | AA26: 312.964674
C27: 7 | D27: 287216 | E27: 311 | F27: AGUILARES - VILLA QUINTEROS | G27: 132 | H27: 21 | I27: 116.171 | J27: 2015-04-10T08:06:00 | K27: 2015-04-10T16:18:00 | L27: 8.2 | M27: 492 | N27: P | O27: -- | P27: 285.78066 | Q27: -- | R27: -- | S27: -- | T27: -- | U27: -- | V27: -- | W27: -- | X27: -- | Y27: -- | Z27: SI | AA27: 285.78066
C28: 8 | D28: 287217 | E28: 281 | F28: GÜEMES - SAN JUANCITO 1 | G28: 132 | H28: 36.24000168 | I28: 168.4014894 | J28: 2015-04-11T09:01:00 | K28: 2015-04-11T09:04:00 | L28: 0.04999999999 | M28: 3 | N28: F | O28: -- | P28: -- | Q28: -- | R28: 5052.044682 | S28: -- | T28: -- | U28: -- | V28: -- | W28: -- | X28: -- | Y28: -- | Z28: SI | AA28: 5052.044682
C29: 9 | D29: 287470 | E29: 4633 | F29: GUEMES SALTA - COBOS 1 | G29: 132 | H29: 12.10000038 | I29: 116.171 | J29: 2015-04-14T11:33:00 | K29: 2015-04-14T12:09:00 | L29: 0.6 | M29: 36 | N29: P | O29: -- | P29: 20.91078 | Q29: -- | R29: -- | S29: -- | T29: -- | U29: -- | V29: -- | W29: -- | X29: -- | Y29: -- | Z29: SI | AA29: 20.91078
C30: 10 | D30: 287482 | E30: 5139 | F30: CATAMARCA - V. VIEJO - HUACRA | G30: 132 | H30: 67.30000305 | I30: 312.7323462 | J30: 2015-04-14T11:58:00 | K30: 2015-04-14T12:04:00 | L30: 0.09999999998 | M30: 6 | N30: F | O30: -- | P30: -- | Q30: -- | R30: 9381.970385 | S30: -- | T30: -- | U30: -- | V30: -- | W30: -- | X30: -- | Y30: -- | Z30: SI | AA30: 9381.970385
C31: 11 | D31: 287500 | E31: 3772 | F31: RECREO - CATAMARCA | G31: 132 | H31: 203 | I31: 943.30852 | J31: 2015-04-17T07:15:00 | K31: 2015-04-17T07:29:00 | L31: 0.2333333332 | M31: 14 | N31: F | O31: -- | P31: -- | Q31: -- | R31: 28299.2556 | S31: 6508.828788 | T31: -- | U31: -- | V31: -- | W31: -- | X31: -- | Y31: -- | Z31: SI | AA31: 34808.08439
C32: 12 | D32: 287503 | E32: 299 | F32: PALPALA - SAN JUANCITO | G32: 132 | H32: 23.89999962 | I32: 116.171 | J32: 2015-04-17T12:41:00 | K32: 2015-04-17T13:24:00 | L32: 0.7166666667 | M32: 43 | N32: F | O32: -- | P32: -- | Q32: -- | R32: 3485.13 | S32: 2509.2936 | T32: -- | U32: -- | V32: -- | W32: -- | X32: -- | Y32: -- | Z32: SI | AA32: 5994.4236
C33: 13 | D33: 287504 | E33: 2623 | F33: PALPALA - JUJUY ESTE | G33: 132 | H33: 12.25 | I33: 116.171 | J33: 2015-04-17T12:41:00 | K33: 2015-04-17T13:22:00 | L33: 0.6833333333 | M33: 41 | N33: F | O33: -- | P33: -- | Q33: -- | R33: 3485.13 | S33: 2369.8884 | T33: -- | U33: -- | V33: -- | W33: -- | X33: -- | Y33: -- | Z33: SI | AA33: 5855.0184
C34: 14 | D34: 287513 | E34: 3565 | F34: CABRA CORRAL - SALTA ESTE | G34: 132 | H34: 55 | I34: 255.5762 | J34: 2015-04-18T03:26:00 | K34: 2015-04-18T03:31:00 | L34: 0.08333333326 | M34: 5 | N34: F | O34: -- | P34: -- | Q34: -- | R34: 7667.286 | S34: -- | T34: -- | U34: -- | V34: -- | W34: -- | X34: -- | Y34: -- | Z34: SI | AA34: 7667.286
C35: 15 | D35: 287515 | E35: 3772 | F35: RECREO - CATAMARCA | G35: 132 | H35: 203 | I35: 943.30852 | J35: 2015-04-19T06:38:00 | K35: 2015-04-19T12:43:00 | L35: 6.083333333 | M35: 365 | N35: P | O35: -- | P35: 1720.59474 | Q35: -- | R35: -- | S35: -- | T35: -- | U35: -- | V35: -- | W35: -- | X35: -- | Y35: -- | Z35: SI | AA35: 1720.59474
C36: 16 | D36: 287716 | E36: 297 | F36: C.H. RIO HONDO - LA BANDA | G36: 132 | H36: 76.5 | I36: 355.48326 | J36: 2015-04-20T09:59:00 | K36: 2015-04-20T14:04:00 | L36: 4.083333333 | M36: 245 | N36: P | O36: -- | P36: 435.1115102 | Q36: -- | R36: -- | S36: -- | T36: -- | U36: -- | V36: -- | W36: -- | X36: -- | Y36: -- | Z36: SI | AA36: 435.1115102
C37: 17 | D37: 287729 | E37: 308 | F37: C.H. EL CADILLAL - TUCUMAN NORTE | G37: 132 | H37: 21.78000069 | I37: 116.171 | J37: 2015-04-20T23:26:00 | K37: 2015-04-20T23:30:00 | L37: =IF(F37="","",(K37-J37)*24) -> 0.06666666653 | M37: =IF(F37="","",ROUND((K37-J37)*24*60,0)) -> 4 | N37: F | O37: =IF(F37="","","--") -> -- | P37: =IF(N37="P",ROUND(M37/60,2)*I37*$L$16*0.01,"--") -> -- | Q37: =IF(N37="RP",I37*O37*ROUND(L37/60,2)*0.01*M37/100,"--") -> -- | R37: =IF(N37="F",I37*$L$16,"--") -> 3485.13 | S37: =IF(AND(M37>10,N37="F"),I37*$L$16*IF(M37>180,3,ROUND((M37)/60,2)),"--") -> -- | T37: =IF(AND(M37>180,N37="F"),(ROUND(M37/60,2)-3)*I37*$L$16*0.1,"--") -> -- | U37: =IF(N37="R",I37*$L$16*O37/100,"--") -> -- | V37: =IF(AND(M37>10,N37="R"),I37*$L$16*O37/100*IF(M37>180,3,ROUND(M37/60,2)),"--") -> -- | W37: =IF(AND(M37>180,N37="R"),(ROUND(M37/60,2)-3)*I37*$L$16*0.1*O37/100,"--") -> -- | X37: =IF(N37="RF",ROUND(M37/60,2)*I37*$L$16*0.1,"--") -> -- | Y37: =IF(N37="RR",ROUND(M37/60,2)*I37*$L$16*0.1*O37/100,"--") -> -- | Z37: SI | AA37: =IF(F37="","",SUM(P37:Y37)*IF(Z37="SI",1,2)) -> 3485.13
C38: 18 | D38: 287731 | E38: 299 | F38: PALPALA - SAN JUANCITO | G38: 132 | H38: 23.89999962 | I38: 116.171 | J38: 2015-04-22T08:05:00 | K38: 2015-04-22T10:19:00 | L38: =IF(F38="","",(K38-J38)*24) -> 2.233333333 | M38: =IF(F38="","",ROUND((K38-J38)*24*60,0)) -> 134 | N38: P | O38: =IF(F38="","","--") -> -- | P38: =IF(N38="P",ROUND(M38/60,2)*I38*$L$16*0.01,"--") -> 77.718399 | Q38: =IF(N38="RP",I38*O38*ROUND(L38/60,2)*0.01*M38/100,"--") -> -- | R38: =IF(N38="F",I38*$L$16,"--") -> -- | S38: =IF(AND(M38>10,N38="F"),I38*$L$16*IF(M38>180,3,ROUND((M38)/60,2)),"--") -> -- | T38: =IF(AND(M38>180,N38="F"),(ROUND(M38/60,2)-3)*I38*$L$16*0.1,"--") -> -- | U38: =IF(N38="R",I38*$L$16*O38/100,"--") -> -- | V38: =IF(AND(M38>10,N38="R"),I38*$L$16*O38/100*IF(M38>180,3,ROUND(M38/60,2)),"--") -> -- | W38: =IF(AND(M38>180,N38="R"),(ROUND(M38/60,2)-3)*I38*$L$16*0.1*O38/100,"--") -> -- | X38: =IF(N38="RF",ROUND(M38/60,2)*I38*$L$16*0.1,"--") -> -- | Y38: =IF(N38="RR",ROUND(M38/60,2)*I38*$L$16*0.1*O38/100,"--") -> -- | Z38: SI | AA38: =IF(F38="","",SUM(P38:Y38)*IF(Z38="SI",1,2)) -> 77.718399
C39: 19 | D39: 287732 | E39: 279 | F39: ESTATICA SUR - INDEPENDENCIA (O.F.) | G39: 132 | H39: 2.599999905 | I39: 116.171 | J39: 2015-04-22T09:35:00 | K39: 2015-04-22T14:41:00 | L39: =IF(F39="","",(K39-J39)*24) -> 5.1 | M39: =IF(F39="","",ROUND((K39-J39)*24*60,0)) -> 306 | N39: P | O39: =IF(F39="","","--") -> -- | P39: =IF(N39="P",ROUND(M39/60,2)*I39*$L$16*0.01,"--") -> 177.74163 | Q39: =IF(N39="RP",I39*O39*ROUND(L39/60,2)*0.01*M39/100,"--") -> -- | R39: =IF(N39="F",I39*$L$16,"--") -> -- | S39: =IF(AND(M39>10,N39="F"),I39*$L$16*IF(M39>180,3,ROUND((M39)/60,2)),"--") -> -- | T39: =IF(AND(M39>180,N39="F"),(ROUND(M39/60,2)-3)*I39*$L$16*0.1,"--") -> -- | U39: =IF(N39="R",I39*$L$16*O39/100,"--") -> -- | V39: =IF(AND(M39>10,N39="R"),I39*$L$16*O39/100*IF(M39>180,3,ROUND(M39/60,2)),"--") -> -- | W39: =IF(AND(M39>180,N39="R"),(ROUND(M39/60,2)-3)*I39*$L$16*0.1*O39/100,"--") -> -- | X39: =IF(N39="RF",ROUND(M39/60,2)*I39*$L$16*0.1,"--") -> -- | Y39: =IF(N39="RR",ROUND(M39/60,2)*I39*$L$16*0.1*O39/100,"--") -> -- | Z39: SI | AA39: =IF(F39="","",SUM(P39:Y39)*IF(Z39="SI",1,2)) -> 177.74163
C41: (²) | D41: P - PROGRAMADA ; F - FORZADA | P41: =SUM(P19:P40) -> 3539.536778 | Q41: 0 | R41: 81125.46253 | S41: 22610.54713 | T41: 0 | U41: 0 | V41: 0 | W41: 0 | X41: 0 | Y41: 0 | AA41: =ROUND(SUM(AA19:AA40),2) -> 107275.55

Sheet LI-04 (2)
B2: ANEXO I al Memorandum D.T.E.E. N° 526 / 2016
A4: ENTE NACIONAL REGULADOR
A5: DE LA ELECTRICIDAD
F8: SISTEMA DE TRANSPORTE DE ENERGÍA ELÉCTRICA POR DISTRIBUCIÓN TRONCAL - TRANSNOA S.A.
F10: 1.- LÍNEAS
F12: 1.1.- Equipamiento propio
B14: ='TOT-0415'!B14 -> Desde el 01 al 30 de abril de 2015
F16: $/100 km-h : LINEAS 132 kV | G16: 464.684 | K16: FACTOR DE PENALIZACION K = | L16: =30*'TOT-0415'!B13 -> 30 | M16: =IF(L16=30," ",IF(L16=60,"Coeficiente duplicado por tasa de falla >4 Sal. x año/100 km.","REVISAR COEFICIENTE")) -> 
C17: 3 | D17: 4 | E17: 5 | F17: 6 | G17: 7 | H17: 8 | I17: 9 | J17: 10 | K17: 11 | L17: 12 | M17: 13 | N17: 14 | O17: 15 | P17: 16 | Q17: 17 | R17: 18 | S17: 19 | T17: 20 | U17: 21 | V17: 22 | W17: 23 | X17: 24 | Y17: 25 | Z17: 26 | AA17: 27
C18: N° | D18: INDISP | E18: ID EQUIPO | F18: LÍNEAS | G18: U [kV] | H18: Long. [km] | I18: $/h | J18: Salida | K18: Entrada | L18: Hs. Indisp | M18: Minutos Indisp. | N18: Tipo Sal.(²) | O18: C.R. % | P18: PENALIZ. PROGRAM. | Q18: REDUCC. PROGRAM. | R18: PENALIZACION FORZADA Por Salida 1ras. 3 hs. hs. Restantes | U18: REDUCC. FORZADA Por Salida 1ras. 3 hs. hs. Restantes | X18: RESTANTE FORZADA | Y18: REDUCC. RESTANTE | Z18: Informó en Térm. | AA18: TOTAL PENALIZAC.
AA19: ='LI-04 (1)'!AA41 -> 107275.55
C21: 20 | D21: 287733 | E21: 279 | F21: ESTATICA SUR - INDEPENDENCIA (O.F.) | G21: 132 | H21: 2.599999905 | I21: =$G$16/100*IF(H21>25,H21,25) -> 116.171 | J21: 2015-04-23T08:39:00 | K21: 2015-04-23T14:53:00 | L21: =IF(F21="","",(K21-J21)*24) -> 6.233333333 | M21: =IF(F21="","",ROUND((K21-J21)*24*60,0)) -> 374 | N21: P | O21: =IF(F21="","","--") -> -- | P21: =IF(N21="P",ROUND(M21/60,2)*I21*$L$16*0.01,"--") -> 217.123599 | Q21: =IF(N21="RP",I21*O21*ROUND(L21/60,2)*0.01*M21/100,"--") -> -- | R21: =IF(N21="F",I21*$L$16,"--") -> -- | S21: =IF(AND(M21>10,N21="F"),I21*$L$16*IF(M21>180,3,ROUND((M21)/60,2)),"--") -> -- | T21: =IF(AND(M21>180,N21="F"),(ROUND(M21/60,2)-3)*I21*$L$16*0.1,"--") -> -- | U21: =IF(N21="R",I21*$L$16*O21/100,"--") -> -- | V21: =IF(AND(M21>10,N21="R"),I21*$L$16*O21/100*IF(M21>180,3,ROUND(M21/60,2)),"--") -> -- | W21: =IF(AND(M21>180,N21="R"),(ROUND(M21/60,2)-3)*I21*$L$16*0.1*O21/100,"--") -> -- | X21: =IF(N21="RF",ROUND(M21/60,2)*I21*$L$16*0.1,"--") -> -- | Y21: =IF(N21="RR",ROUND(M21/60,2)*I21*$L$16*0.1*O21/100,"--") -> -- | Z21: SI | AA21: =IF(F21="","",SUM(P21:Y21)*IF(Z21="SI",1,2)) -> 217.123599
C22: 21 | D22: 287735 | E22: 281 | F22: GÜEMES - SAN JUANCITO 1 | G22: 132 | H22: 36.24000168 | I22: =$G$16/100*IF(H22>25,H22,25) -> 168.4014894 | J22: 2015-04-23T18:40:00 | K22: 2015-04-23T20:47:00 | L22: =IF(F22="","",(K22-J22)*24) -> 2.116666667 | M22: =IF(F22="","",ROUND((K22-J22)*24*60,0)) -> 127 | N22: F | O22: =IF(F22="","","--") -> -- | P22: =IF(N22="P",ROUND(M22/60,2)*I22*$L$16*0.01,"--") -> -- | Q22: =IF(N22="RP",I22*O22*ROUND(L22/60,2)*0.01*M22/100,"--") -> -- | R22: =IF(N22="F",I22*$L$16,"--") -> 5052.044682 | S22: =IF(AND(M22>10,N22="F"),I22*$L$16*IF(M22>180,3,ROUND((M22)/60,2)),"--") -> 10710.33473 | T22: =IF(AND(M22>180,N22="F"),(ROUND(M22/60,2)-3)*I22*$L$16*0.1,"--") -> -- | U22: =IF(N22="R",I22*$L$16*O22/100,"--") -> -- | V22: =IF(AND(M22>10,N22="R"),I22*$L$16*O22/100*IF(M22>180,3,ROUND(M22/60,2)),"--") -> -- | W22: =IF(AND(M22>180,N22="R"),(ROUND(M22/60,2)-3)*I22*$L$16*0.1*O22/100,"--") -> -- | X22: =IF(N22="RF",ROUND(M22/60,2)*I22*$L$16*0.1,"--") -> -- | Y22: =IF(N22="RR",ROUND(M22/60,2)*I22*$L$16*0.1*O22/100,"--") -> -- | Z22: SI | AA22: =IF(F22="","",SUM(P22:Y22)*IF(Z22="SI",1,2)) -> 15762.37941
C23: 22 | D23: 287736 | E23: 279 | F23: ESTATICA SUR - INDEPENDENCIA (O.F.) | G23: 132 | H23: 2.599999905 | I23: 116.171 | J23: 2015-04-24T08:36:00 | K23: 2015-04-24T14:40:00 | L23: 6.066666667 | M23: 364 | N23: P | O23: -- | P23: 211.547391 | Q23: -- | R23: -- | S23: -- | T23: -- | U23: -- | V23: -- | W23: -- | X23: -- | Y23: -- | Z23: SI | AA23: 211.547391
C24: 23 | D24: 287738 | E24: 313 | F24: C.H. RIO HONDO - VILLA QUINTEROS | G24: 132 | H24: 75.40000153 | I24: 350.3717431 | J24: 2015-04-25T08:03:00 | K24: 2015-04-25T11:54:00 | L24: 3.85 | M24: 231 | N24: P | O24: -- | P24: 404.6793633 | Q24: -- | R24: -- | S24: -- | T24: -- | U24: -- | V24: -- | W24: -- | X24: -- | Y24: -- | Z24: SI | AA24: 404.6793633
C25: 24 | D25: 287937 | E25: 4249 | F25: PAMPA GRANDE - CABRA CORRAL | G25: 132 | H25: 60 | I25: 278.8104 | J25: 2015-04-27T11:11:00 | K25: 2015-04-27T11:20:00 | L25: 0.15 | M25: 9 | N25: F | O25: -- | P25: -- | Q25: -- | R25: 8364.312 | S25: -- | T25: -- | U25: -- | V25: -- | W25: -- | X25: -- | Y25: -- | Z25: SI | AA25: 8364.312
C26: 25 | D26: 287938 | E26: 4677 | F26: GUEMES SALTA - MINETTI | G26: 132 | H26: 36.09999847 | I26: 167.7509169 | J26: 2015-04-27T11:48:00 | K26: 2015-04-27T11:51:00 | L26: 0.04999999999 | M26: 3 | N26: F | O26: -- | P26: -- | Q26: -- | R26: 5032.527507 | S26: -- | T26: -- | U26: -- | V26: -- | W26: -- | X26: -- | Y26: -- | Z26: SI | AA26: 5032.527507
C27: 26 | D27: 287939 | E27: 281 | F27: GÜEMES - SAN JUANCITO 1 | G27: 132 | H27: 36.24000168 | I27: 168.4014894 | J27: 2015-04-27T11:48:00 | K27: 2015-04-27T12:02:00 | L27: 0.2333333332 | M27: 14 | N27: F | O27: -- | P27: -- | Q27: -- | R27: 5052.044682 | S27: 1161.970277 | T27: -- | U27: -- | V27: -- | W27: -- | X27: -- | Y27: -- | Z27: SI | AA27: 6214.014959
C28: 27 | D28: 287940 | E28: 299 | F28: PALPALA - SAN JUANCITO | G28: 132 | H28: 23.89999962 | I28: 116.171 | J28: 2015-04-27T11:50:00 | K28: 2015-04-27T12:00:00 | L28: 0.1666666667 | M28: 10 | N28: F | O28: -- | P28: -- | Q28: -- | R28: 3485.13 | S28: -- | T28: -- | U28: -- | V28: -- | W28: -- | X28: -- | Y28: -- | Z28: SI | AA28: 3485.13
C29: 28 | D29: 287941 | E29: 271 | F29: AGUA BLANCA - VILLA QUINTEROS | G29: 132 | H29: 23.79999924 | I29: 116.171 | J29: 2015-04-28T09:26:00 | K29: 2015-04-28T14:32:00 | L29: 5.1 | M29: 306 | N29: P | O29: -- | P29: 177.74163 | Q29: -- | R29: -- | S29: -- | T29: -- | U29: -- | V29: -- | W29: -- | X29: -- | Y29: -- | Z29: SI | AA29: 177.74163
C30: 29 | D30: 287942 | E30: 287 | F30: AGUA BLANCA - INDEPENDENCIA TUC | G30: 132 | H30: 34.13999939 | I30: 158.6431148 | J30: 2015-04-28T09:41:00 | K30: 2015-04-28T14:17:00 | L30: 4.6 | M30: 276 | N30: P | O30: -- | P30: 218.9274984 | Q30: -- | R30: -- | S30: -- | T30: -- | U30: -- | V30: -- | W30: -- | X30: -- | Y30: -- | Z30: SI | AA30: 218.9274984
I31: 116.171 | P31: -- | Q31: -- | R31: -- | S31: -- | T31: -- | U31: -- | V31: -- | W31: -- | X31: -- | Y31: -- | Z31: =IF(F31="","","SI") -> 
I32: 116.171 | P32: -- | Q32: -- | R32: -- | S32: -- | T32: -- | U32: -- | V32: -- | W32: -- | X32: -- | Y32: --
I33: 116.171 | P33: -- | Q33: -- | R33: -- | S33: -- | T33: -- | U33: -- | V33: -- | W33: -- | X33: -- | Y33: --
I34: 116.171 | P34: -- | Q34: -- | R34: -- | S34: -- | T34: -- | U34: -- | V34: -- | W34: -- | X34: -- | Y34: --
I35: 116.171 | P35: -- | Q35: -- | R35: -- | S35: -- | T35: -- | U35: -- | V35: -- | W35: -- | X35: -- | Y35: --
I36: 116.171 | P36: -- | Q36: -- | R36: -- | S36: -- | T36: -- | U36: -- | V36: -- | W36: -- | X36: -- | Y36: --
I37: 116.171 | P37: -- | Q37: -- | R37: -- | S37: -- | T37: -- | U37: -- | V37: -- | W37: -- | X37: -- | Y37: --
I38: 116.171 | L38: =IF(F38="","",(K38-J38)*24) ->  | M38: =IF(F38="","",ROUND((K38-J38)*24*60,0)) ->  | O38: =IF(F38="","","--") ->  | P38: =IF(N38="P",ROUND(M38/60,2)*I38*$L$16*0.01,"--") -> -- | Q38: =IF(N38="RP",I38*O38*ROUND(L38/60,2)*0.01*M38/100,"--") -> -- | R38: =IF(N38="F",I38*$L$16,"--") -> -- | S38: =IF(AND(M38>10,N38="F"),I38*$L$16*IF(M38>180,3,ROUND((M38)/60,2)),"--") -> -- | T38: =IF(AND(M38>180,N38="F"),(ROUND(M38/60,2)-3)*I38*$L$16*0.1,"--") -> -- | U38: =IF(N38="R",I38*$L$16*O38/100,"--") -> -- | V38: =IF(AND(M38>10,N38="R"),I38*$L$16*O38/100*IF(M38>180,3,ROUND(M38/60,2)),"--") -> -- | W38: =IF(AND(M38>180,N38="R"),(ROUND(M38/60,2)-3)*I38*$L$16*0.1*O38/100,"--") -> -- | X38: =IF(N38="RF",ROUND(M38/60,2)*I38*$L$16*0.1,"--") -> -- | Y38: =IF(N38="RR",ROUND(M38/60,2)*I38*$L$16*0.1*O38/100,"--") -> -- | AA38: =IF(F38="","",SUM(P38:Y38)*IF(Z38="SI",1,2)) -> 
I39: 116.171 | L39: =IF(F39="","",(K39-J39)*24) ->  | M39: =IF(F39="","",ROUND((K39-J39)*24*60,0)) ->  | O39: =IF(F39="","","--") ->  | P39: =IF(N39="P",ROUND(M39/60,2)*I39*$L$16*0.01,"--") -> -- | Q39: =IF(N39="RP",I39*O39*ROUND(L39/60,2)*0.01*M39/100,"--") -> -- | R39: =IF(N39="F",I39*$L$16,"--") -> -- | S39: =IF(AND(M39>10,N39="F"),I39*$L$16*IF(M39>180,3,ROUND((M39)/60,2)),"--") -> -- | T39: =IF(AND(M39>180,N39="F"),(ROUND(M39/60,2)-3)*I39*$L$16*0.1,"--") -> -- | U39: =IF(N39="R",I39*$L$16*O39/100,"--") -> -- | V39: =IF(AND(M39>10,N39="R"),I39*$L$16*O39/100*IF(M39>180,3,ROUND(M39/60,2)),"--") -> -- | W39: =IF(AND(M39>180,N39="R"),(ROUND(M39/60,2)-3)*I39*$L$16*0.1*O39/100,"--") -> -- | X39: =IF(N39="RF",ROUND(M39/60,2)*I39*$L$16*0.1,"--") -> -- | Y39: =IF(N39="RR",ROUND(M39/60,2)*I39*$L$16*0.1*O39/100,"--") -> -- | AA39: =IF(F39="","",SUM(P39:Y39)*IF(Z39="SI",1,2)) -> 
I40: 116.171 | L40: =IF(F40="","",(K40-J40)*24) ->  | M40: =IF(F40="","",ROUND((K40-J40)*24*60,0)) ->  | O40: =IF(F40="","","--") ->  | P40: =IF(N40="P",ROUND(M40/60,2)*I40*$L$16*0.01,"--") -> -- | Q40: =IF(N40="RP",I40*O40*ROUND(L40/60,2)*0.01*M40/100,"--") -> -- | R40: =IF(N40="F",I40*$L$16,"--") -> -- | S40: =IF(AND(M40>10,N40="F"),I40*$L$16*IF(M40>180,3,ROUND((M40)/60,2)),"--") -> -- | T40: =IF(AND(M40>180,N40="F"),(ROUND(M40/60,2)-3)*I40*$L$16*0.1,"--") -> -- | U40: =IF(N40="R",I40*$L$16*O40/100,"--") -> -- | V40: =IF(AND(M40>10,N40="R"),I40*$L$16*O40/100*IF(M40>180,3,ROUND(M40/60,2)),"--") -> -- | W40: =IF(AND(M40>180,N40="R"),(ROUND(M40/60,2)-3)*I40*$L$16*0.1*O40/100,"--") -> -- | X40: =IF(N40="RF",ROUND(M40/60,2)*I40*$L$16*0.1,"--") -> -- | Y40: =IF(N40="RR",ROUND(M40/60,2)*I40*$L$16*0.1*O40/100,"--") -> -- | AA40: =IF(F40="","",SUM(P40:Y40)*IF(Z40="SI",1,2)) -> 
C42: (²) | D42: P - PROGRAMADA ; F - FORZADA | P42: =SUM(P19:P41) -> 1230.019482 | Q42: 0 | R42: 26986.05887 | S42: 11872.305 | T42: 0 | U42: 0 | V42: 0 | W42: 0 | X42: 0 | Y42: 0 | AA42: =ROUND(SUM(AA19:AA41),2) -> 147363.93

Sheet T-04 (1)
B2: ANEXO I al Memorandum D.T.E.E. N° 526 / 2016
A4: ENTE NACIONAL REGULADOR
A5: DE LA ELECTRICIDAD
F8: SISTEMA DE TRANSPORTE DE ENERGÍA ELÉCTRICA POR DISTRIBUCIÓN TRONCAL - TRANSNOA S.A.
F10: 2.- CONEXIÓN
F12: 2.1.- Transformación
F14: 2.1.1.- Equipamiento propio
B16: ='TOT-0415'!B14 -> Desde el 01 al 30 de abril de 2015
F18: Por Transformador por MVA $ = | I18: 1.617
F19: Coeficiente de penalización por salida forzada = | I19: =30*'TOT-0415'!B13 -> 30 | K19: =IF(I19=30," ",IF(I19=60," Coeficiente duplicado por tasa de falla >4 Sal. x año/100 km.","REVISAR COEFICIENTE")) -> 
C20: 3 | D20: 4 | E20: 5 | F20: 6 | G20: 7 | H20: 8 | I20: 9 | J20: 10 | K20: 11 | L20: 12 | M20: 13 | N20: 14 | O20: 15 | P20: 16 | Q20: 17 | R20: 18 | S20: 19 | T20: 20 | U20: 21 | V20: 22 | W20: 23 | X20: 24 | Y20: 25 | Z20: 26 | AA20: 27 | AB20: 28 | AC20: 29
C21: N° | D21: INDISP | E21: ID EQUIPO | F21: ESTACIÓN TRANSFORMADORA | G21: EQUIPO | H21: POT. [MVA] | I21: U [kV] | J21: $/h | K21: Salida | L21: Entrada | M21: Hs Indisp. | N21: Mtos. Indisp. | O21: Tipo Sal.(²) | P21: AUT. | Q21: C.R. % | R21: E.N.S. | S21: K (P;ENS) | T21: PENALIZ. PROGRAM. | U21: REDUCC. PROGRAM. | V21: PENALIZAC. FORZADA Por Salida hs. Restantes | X21: REDUCC. FORZADA Por Salida hs. Restantes | Z21: RESTANTE FORZADA | AA21: REDUCC. RESTANTE | AB21: Informó en Térm. | AC21: TOTAL PENALIZAC.
C24: 30 | D24: 282242 | E24: 4228 | F24: SUNCHO CORRAL | G24: TRP2 | H24: 15 | I24: 132/33/13,2 | J24: =H24*$I$18 -> 24.255 | K24: 2015-04-01 | L24: 2015-04-30T23:59:59 | M24: =IF(F24="","",(L24-K24)*24) -> 719.9997222 | N24: =IF(F24="","",ROUND((L24-K24)*24*60,0)) -> 43200 | O24: P | P24: =IF(F24="","",IF(OR(O24="P",O24="RP"),"--","NO")) -> -- | Q24: 0,000 | R24: NO | S24: =$I$19*IF(R24="SI",1,0.1)*IF(OR(O24="P",O24="RP"),0.1,1) -> 0.3 | T24: =IF(O24="P",J24*S24*ROUND(N24/60,2),"--") -> 5239.08 | U24: =IF(O24="RP",J24*S24*Q24/100*ROUND(N24/60,2),"--") -> -- | V24: =IF(AND(O24="F",P24="NO"),J24*S24,"--") -> -- | W24: =IF(O24="F",J24*S24*ROUND(N24/60,2),"--") -> -- | X24: =IF(AND(O24="R",P24="NO"),J24*S24*Q24/100,"--") -> -- | Y24: =IF(O24="R",J24*S24*ROUND(N24/60,2)*Q24/100,"--") -> -- | Z24: =IF(O24="RF",J24*S24*ROUND(N24/60,2),"--") -> -- | AA24: =IF(O24="RR",J24*S24*ROUND(N24/60,2)*Q24/100,"--") -> -- | AB24: SI | AC24: =IF(F24="","",SUM(T24:AA24)*IF(AB24="SI",1,2)) -> 5239.08
C25: 31 | D25: 287077 | E25: 4839 | F25: SANTIAGO OESTE | G25: TRAFO 2 | H25: 30 | I25: 132/13,2 | J25: =H25*$I$18 -> 48.51 | K25: 2015-04-01T08:48:00 | L25: 2015-04-01T11:07:00 | M25: 2.316666667 | N25: 139 | O25: P | P25: -- | Q25: 0,000 | R25: NO | S25: =$I$19*IF(R25="SI",1,0.1)*IF(OR(O25="P",O25="RP"),0.1,1) -> 0.3 | T25: 33.76296 | U25: -- | V25: -- | W25: -- | X25: -- | Y25: -- | Z25: -- | AA25: -- | AB25: SI | AC25: 33.76296
C26: 32 | D26: 287093 | E26: 3823 | F26: LAS MADERAS | G26: TRAFO 1 | H26: 7.5 | I26: 132/33/13,2 | J26: =H26*$I$18 -> 12.1275 | K26: 2015-04-05T09:01:00 | L26: 2015-04-05T14:07:00 | M26: 5.1 | N26: 306 | O26: P | P26: -- | Q26: 0,000 | R26: NO | S26: =$I$19*IF(R26="SI",1,0.1)*IF(OR(O26="P",O26="RP"),0.1,1) -> 0.3 | T26: 18.555075 | U26: -- | V26: -- | W26: -- | X26: -- | Y26: -- | Z26: -- | AA26: -- | AB26: SI | AC26: 18.555075
C27: 33 | D27: 287094 | E27: 4875 | F27: LAS MADERAS | G27: TRAFO 2 | H27: 7.5 | I27: 132/33/13,2 | J27: =H27*$I$18 -> 12.1275 | K27: 2015-04-05T09:01:00 | L27: 2015-04-05T14:07:00 | M27: 5.1 | N27: 306 | O27: P | P27: -- | Q27: 0,000 | R27: NO | S27: =$I$19*IF(R27="SI",1,0.1)*IF(OR(O27="P",O27="RP"),0.1,1) -> 0.3 | T27: 18.555075 | U27: -- | V27: -- | W27: -- | X27: -- | Y27: -- | Z27: -- | AA27: -- | AB27: SI | AC27: 18.555075
C28: 34 | D28: 287193 | E28: 5495 | F28: CATAMARCA | G28: TRAFO 3 | H28: 30 | I28: 132/33/13,2 | J28: =H28*$I$18 -> 48.51 | K28: 2015-04-06T15:49:00 | L28: 2015-04-06T16:02:00 | M28: 0.2166666667 | N28: 13 | O28: F | P28: NO | Q28: 0,000 | R28: SI | S28: =$I$19*IF(R28="SI",1,0.1)*IF(OR(O28="P",O28="RP"),0.1,1) -> 30 | T28: -- | U28: -- | V28: 1455.3 | W28: 320.166 | X28: -- | Y28: -- | Z28: -- | AA28: -- | AB28: SI | AC28: 1775.466
C29: 35 | D29: 287199 | E29: 5495 | F29: CATAMARCA | G29: TRAFO 3 | H29: 30 | I29: 132/33/13,2 | J29: =H29*'T-04 (2)'!$I$18 -> 48.51 | K29: 2015-04-06T16:03:00 | L29: 2015-04-06T16:41:00 | M29: 0.6333333335 | N29: 38 | O29: F | P29: NO | Q29: 0,000 | R29: NO | S29: ='T-04 (2)'!$I$19*IF(R29="SI",1,0.1)*IF(OR(O29="P",O29="RP"),0.1,1) -> 3 | T29: -- | U29: -- | V29: 145.53 | W29: 91.6839 | X29: -- | Y29: -- | Z29: -- | AA29: -- | AB29: SI | AC29: 237.2139
C30: 36 | D30: 287201 | E30: 5063 | F30: QUIMILI | G30: TRAFO 2 | H30: 15 | I30: 132/33/13,2 | J30: =H30*'T-04 (2)'!$I$18 -> 24.255 | K30: 2015-04-07T09:49:00 | L30: 2015-04-07T16:22:00 | M30: 6.55 | N30: 393 | O30: P | P30: -- | Q30: 0,000 | R30: NO | S30: ='T-04 (2)'!$I$19*IF(R30="SI",1,0.1)*IF(OR(O30="P",O30="RP"),0.1,1) -> 0.3 | T30: 47.661075 | U30: -- | V30: -- | W30: -- | X30: -- | Y30: -- | Z30: -- | AA30: -- | AB30: SI | AC30: 47.661075
C31: 37 | D31: 287215 | E31: 556 | F31: LA BANDA | G31: TRAFO 1 | H31: 30 | I31: 132/33/13,2 | J31: =H31*'T-04 (2)'!$I$18 -> 48.51 | K31: 2015-04-09T08:23:00 | L31: 2015-04-09T16:01:00 | M31: 7.633333333 | N31: 458 | O31: RP | P31: -- | Q31: 40 | R31: NO | S31: ='T-04 (2)'!$I$19*IF(R31="SI",1,0.1)*IF(OR(O31="P",O31="RP"),0.1,1) -> 0.3 | T31: -- | U31: 44.415756 | V31: -- | W31: -- | X31: -- | Y31: -- | Z31: -- | AA31: -- | AB31: SI | AC31: 44.415756
C32: 38 | D32: 287220 | E32: 5130 | F32: VALLE VIEJO | G32: TRAFO 1 | H32: 30 | I32: 132/33/13,2 | J32: =H32*'T-04 (2)'!$I$18 -> 48.51 | K32: 2015-04-12T00:46:00 | L32: 2015-04-12T01:06:00 | M32: 0.3333333332 | N32: 20 | O32: F | P32: NO | Q32: 0,000 | R32: SI | S32: ='T-04 (2)'!$I$19*IF(R32="SI",1,0.1)*IF(OR(O32="P",O32="RP"),0.1,1) -> 30 | T32: -- | U32: -- | V32: 1455.3 | W32: 480.249 | X32: -- | Y32: -- | Z32: -- | AA32: -- | AB32: SI | AC32: 1935.549
C33: 39 | D33: 287221 | E33: 3823 | F33: LAS MADERAS | G33: TRAFO 1 | H33: 7.5 | I33: 132/33/13,2 | J33: =H33*'T-04 (2)'!$I$18 -> 12.1275 | K33: 2015-04-12T08:38:00 | L33: 2015-04-12T14:33:00 | M33: 5.916666667 | N33: 355 | O33: P | P33: -- | Q33: 0,000 | R33: NO | S33: ='T-04 (2)'!$I$19*IF(R33="SI",1,0.1)*IF(OR(O33="P",O33="RP"),0.1,1) -> 0.3 | T33: 21.53844 | U33: -- | V33: -- | W33: -- | X33: -- | Y33: -- | Z33: -- | AA33: -- | AB33: SI | AC33: 21.53844
C34: 40 | D34: 287222 | E34: 4875 | F34: LAS MADERAS | G34: TRAFO 2 | H34: 7.5 | I34: 132/33/13,2 | J34: =H34*'T-04 (2)'!$I$18 -> 12.1275 | K34: 2015-04-12T08:38:00 | L34: 2015-04-12T14:33:00 | M34: 5.916666667 | N34: 355 | O34: P | P34: -- | Q34: 0,000 | R34: NO | S34: ='T-04 (2)'!$I$19*IF(R34="SI",1,0.1)*IF(OR(O34="P",O34="RP"),0.1,1) -> 0.3 | T34: 21.53844 | U34: -- | V34: -- | W34: -- | X34: -- | Y34: -- | Z34: -- | AA34: -- | AB34: SI | AC34: 21.53844
C35: 41 | D35: 287224 | E35: 3618 | F35: TINOGASTA | G35: TRAFO 1 | H35: 7.5 | I35: 132/33/13,2 | J35: =H35*'T-04 (2)'!$I$18 -> 12.1275 | K35: 2015-04-12T09:29:00 | L35: 2015-04-12T09:50:00 | M35: 0.3499999999 | N35: 21 | O35: F | P35: NO | Q35: 0,000 | R35: SI | S35: ='T-04 (2)'!$I$19*IF(R35="SI",1,0.1)*IF(OR(O35="P",O35="RP"),0.1,1) -> 30 | T35: -- | U35: -- | V35: 363.825 | W35: 127.33875 | X35: -- | Y35: -- | Z35: -- | AA35: -- | AB35: SI | AC35: 491.16375
C36: 42 | D36: 287232 | E36: 2731 | F36: TUCUMAN OESTE | G36: TRAFO 1 | H36: 30 | I36: 132/13,2 | J36: =H36*'T-04 (2)'!$I$18 -> 48.51 | K36: 2015-04-12T21:57:00 | L36: 2015-04-12T22:21:00 | M36: 0.4000000001 | N36: 24 | O36: F | P36: NO | Q36: 0,000 | R36: SI | S36: ='T-04 (2)'!$I$19*IF(R36="SI",1,0.1)*IF(OR(O36="P",O36="RP"),0.1,1) -> 30 | T36: -- | U36: -- | V36: 1455.3 | W36: 582.12 | X36: -- | Y36: -- | Z36: -- | AA36: -- | AB36: SI | AC36: 2037.42
J37: =H37*$I$18 -> 0 | S37: =$I$19*IF(R37="SI",1,0.1)*IF(OR(O37="P",O37="RP"),0.1,1) -> 3 | T37: -- | U37: -- | V37: -- | W37: -- | X37: -- | Y37: -- | Z37: -- | AA37: --
C39: (²) | D39: P - PROGRAMADA ; F - FORZADA ; RP - REDUCCIÓN PROGRAMADA | T39: =SUM(T22:T38) -> 5400.691065 | U39: 44.415756 | V39: 4875.255 | W39: 1601.55765 | X39: 0 | Y39: 0 | Z39: 0 | AA39: 0 | AC39: =ROUND(SUM(AC22:AC38),2) -> 11921.92

Sheet T-04 (2)
B2: ANEXO I al Memorandum D.T.E.E. N° 526 / 2016
A4: ENTE NACIONAL REGULADOR
A5: DE LA ELECTRICIDAD
F8: SISTEMA DE TRANSPORTE DE ENERGÍA ELÉCTRICA POR DISTRIBUCIÓN TRONCAL - TRANSNOA S.A.
F10: 2.- CONEXIÓN
F12: 2.1.- Transformación
F14: 2.1.1.- Equipamiento propio
B16: ='TOT-0415'!B14 -> Desde el 01 al 30 de abril de 2015
F18: Por Transformador por MVA $ = | I18: 1.617
F19: Coeficiente de penalización por salida forzada = | I19: =30*'TOT-0415'!B13 -> 30 | K19: =IF(I19=30," ",IF(I19=60," Coeficiente duplicado por tasa de falla >4 Sal. x año/100 km.","REVISAR COEFICIENTE")) -> 
C20: 3 | D20: 4 | E20: 5 | F20: 6 | G20: 7 | H20: 8 | I20: 9 | J20: 10 | K20: 11 | L20: 12 | M20: 13 | N20: 14 | O20: 15 | P20: 16 | Q20: 17 | R20: 18 | S20: 19 | T20: 20 | U20: 21 | V20: 22 | W20: 23 | X20: 24 | Y20: 25 | Z20: 26 | AA20: 27 | AB20: 28 | AC20: 29
C21: N° | D21: INDISP | E21: ID EQUIPO | F21: ESTACIÓN TRANSFORMADORA | G21: EQUIPO | H21: POT. [MVA] | I21: U [kV] | J21: $/h | K21: Salida | L21: Entrada | M21: Hs Indisp. | N21: Mtos. Indisp. | O21: Tipo Sal.(²) | P21: AUT. | Q21: C.R. % | R21: E.N.S. | S21: K (P;ENS) | T21: PENALIZ. PROGRAM. | U21: REDUCC. PROGRAM. | V21: PENALIZAC. FORZADA Por Salida hs. Restantes | X21: REDUCC. FORZADA Por Salida hs. Restantes | Z21: RESTANTE FORZADA | AA21: REDUCC. RESTANTE | AB21: Informó en Térm. | AC21: TOTAL PENALIZAC.
AC22: ='T-04 (1)'!AC39 -> 11921.92
C24: 43 | D24: 287233 | E24: 2731 | F24: TUCUMAN OESTE | G24: TRAFO 1 | H24: 30 | I24: 132/13,2 | J24: =H24*$I$18 -> 48.51 | K24: 2015-04-12T22:22:00 | L24: 2015-04-13T10:46:00 | M24: =IF(F24="","",(L24-K24)*24) -> 12.4 | N24: =IF(F24="","",ROUND((L24-K24)*24*60,0)) -> 744 | O24: F | P24: =IF(F24="","",IF(OR(O24="P",O24="RP"),"--","NO")) -> NO | Q24: 0,000 | R24: NO | S24: =$I$19*IF(R24="SI",1,0.1)*IF(OR(O24="P",O24="RP"),0.1,1) -> 3 | T24: =IF(O24="P",J24*S24*ROUND(N24/60,2),"--") -> -- | U24: =IF(O24="RP",J24*S24*Q24/100*ROUND(N24/60,2),"--") -> -- | V24: =IF(AND(O24="F",P24="NO"),J24*S24,"--") -> 145.53 | W24: =IF(O24="F",J24*S24*ROUND(N24/60,2),"--") -> 1804.572 | X24: =IF(AND(O24="R",P24="NO"),J24*S24*Q24/100,"--") -> -- | Y24: =IF(O24="R",J24*S24*ROUND(N24/60,2)*Q24/100,"--") -> -- | Z24: =IF(O24="RF",J24*S24*ROUND(N24/60,2),"--") -> -- | AA24: =IF(O24="RR",J24*S24*ROUND(N24/60,2)*Q24/100,"--") -> -- | AB24: SI | AC24: =IF(F24="","",SUM(T24:AA24)*IF(AB24="SI",1,2)) -> 1950.102
C25: 44 | D25: 287469 | E25: 2624 | F25: TUCUMAN NORTE | G25: TRAFO 1 | H25: 30 | I25: 132/33/13,2 | J25: 48.51 | K25: 2015-04-14T09:14:00 | L25: 2015-04-14T11:27:00 | M25: 2.216666667 | N25: 133 | O25: RP | P25: -- | Q25: 40 | R25: NO | S25: 0.3 | T25: -- | U25: 12.923064 | V25: -- | W25: -- | X25: -- | Y25: -- | Z25: -- | AA25: -- | AB25: SI | AC25: 12.923064
C26: 45 | D26: 287485 | E26: 3618 | F26: TINOGASTA | G26: TRAFO 1 | H26: 7.5 | I26: 132/33/13,2 | J26: 12.1275 | K26: 2015-04-14T13:53:00 | L26: 2015-04-14T14:12:00 | M26: 0.3166666667 | N26: 19 | O26: R | P26: NO | Q26: 40 | R26: SI | S26: 30 | T26: -- | U26: -- | V26: -- | W26: -- | X26: 145.53 | Y26: 46.5696 | Z26: -- | AA26: -- | AB26: SI | AC26: 192.0996
C27: 46 | D27: 287486 | E27: 4812 | F27: ROSARIO DE LA FRONTERA | G27: TRAFO 1 | H27: 30 | I27: 132/33/13,2 | J27: 48.51 | K27: 2015-04-15T07:49:00 | L27: 2015-04-15T12:10:00 | M27: 4.35 | N27: 261 | O27: RP | P27: -- | Q27: 40 | R27: NO | S27: 0.3 | T27: -- | U27: 25.32222 | V27: -- | W27: -- | X27: -- | Y27: -- | Z27: -- | AA27: -- | AB27: SI | AC27: 25.32222
C28: 47 | D28: 287487 | E28: 2731 | F28: TUCUMAN OESTE | G28: TRAFO 1 | H28: 30 | I28: 132/13,2 | J28: 48.51 | K28: 2015-04-16T09:20:00 | L28: 2015-04-16T12:12:00 | M28: 2.866666667 | N28: 172 | O28: P | P28: -- | Q28: 0,000 | R28: NO | S28: 0.3 | T28: 41.76711 | U28: -- | V28: -- | W28: -- | X28: -- | Y28: -- | Z28: -- | AA28: -- | AB28: SI | AC28: 41.76711
C29: 48 | D29: 287493 | E29: 5495 | F29: CATAMARCA | G29: TRAFO 3 | H29: 30 | I29: 132/33/13,2 | J29: 48.51 | K29: 2015-04-16T10:20:00 | L29: 2015-04-16T10:43:00 | M29: 0.3833333334 | N29: 23 | O29: R | P29: NO | Q29: 60 | R29: SI | S29: 30 | T29: -- | U29: -- | V29: -- | W29: -- | X29: 873.18 | Y29: 331.8084 | Z29: -- | AA29: -- | AB29: SI | AC29: 1204.9884
C30: 49 | D30: 287497 | E30: 540 | F30: C.H. RIO HONDO | G30: TRAFO 1 | H30: 10 | I30: 132/33/13,2 | J30: 16.17 | K30: 2015-04-16T12:15:00 | L30: 2015-04-16T12:21:00 | M30: 0.09999999998 | N30: 6 | O30: F | P30: NO | Q30: 0,000 | R30: SI | S30: 30 | T30: -- | U30: -- | V30: 485.1 | W30: 48.51 | X30: -- | Y30: -- | Z30: -- | AA30: -- | AB30: SI | AC30: 533.61
C31: 50 | D31: 287498 | E31: 5232 | F31: C.H. RIO HONDO | G31: TRAFO 2 | H31: 15 | I31: 132/33/13,2 | J31: 24.255 | K31: 2015-04-16T12:15:00 | L31: 2015-04-16T12:24:00 | M31: 0.1500000001 | N31: 9 | O31: F | P31: NO | Q31: 0,000 | R31: SI | S31: 30 | T31: -- | U31: -- | V31: 727.65 | W31: 109.1475 | X31: -- | Y31: -- | Z31: -- | AA31: -- | AB31: SI | AC31: 836.7975
C32: 51 | D32: 287499 | E32: 540 | F32: C.H. RIO HONDO | G32: TRAFO 1 | H32: 10 | I32: 132/33/13,2 | J32: 16.17 | K32: 2015-04-16T16:51:00 | L32: 2015-04-16T18:16:00 | M32: 1.416666667 | N32: 85 | O32: F | P32: NO | Q32: 0,000 | R32: NO | S32: 3 | T32: -- | U32: -- | V32: 48.51 | W32: 68.8842 | X32: -- | Y32: -- | Z32: -- | AA32: -- | AB32: SI | AC32: 117.3942
C33: 52 | D33: 287514 | E33: 4555 | F33: ANATUYA | G33: TRAFO 1 | H33: 20 | I33: 132/33/13,2 | J33: 32.34 | K33: 2015-04-18T19:48:00 | L33: 2015-04-18T20:14:00 | M33: 0.4333333333 | N33: 26 | O33: R | P33: NO | Q33: 60 | R33: NO | S33: 3 | T33: -- | U33: -- | V33: -- | W33: -- | X33: 58.212 | Y33: 25.03116 | Z33: -- | AA33: -- | AB33: SI | AC33: 83.24316
C34: 53 | D34: 287516 | E34: 542 | F34: ESTATICA SUR | G34: TRAFO 1 | H34: 30 | I34: 132/13,2 | J34: 48.51 | K34: 2015-04-19T07:57:00 | L34: 2015-04-19T17:56:00 | M34: 9.983333333 | N34: 599 | O34: P | P34: -- | Q34: 0,000 | R34: NO | S34: 0.3 | T34: 145.23894 | U34: -- | V34: -- | W34: -- | X34: -- | Y34: -- | Z34: -- | AA34: -- | AB34: SI | AC34: 145.23894
C35: 54 | D35: 287517 | E35: 544 | F35: ESTATICA SUR | G35: TRAFO 2 | H35: 30 | I35: 132/13,2 | J35: 48.51 | K35: 2015-04-19T07:57:00 | L35: 2015-04-19T17:57:00 | M35: 10 | N35: 600 | O35: P | P35: -- | Q35: 0,000 | R35: NO | S35: 0.3 | T35: 145.53 | U35: -- | V35: -- | W35: -- | X35: -- | Y35: -- | Z35: -- | AA35: -- | AB35: SI | AC35: 145.53
S36: 3 | T36: -- | U36: -- | V36: -- | W36: -- | X36: -- | Y36: -- | Z36: -- | AA36: --
C38: (²) | D38: P - PROGRAMADA ; F - FORZADA ; RP - REDUCCIÓN PROGRAMADA ; R - REDUCCIÓN FORZADA | T38: =SUM(T22:T37) -> 332.53605 | U38: 38.245284 | V38: 1406.79 | W38: 2031.1137 | X38: 1076.922 | Y38: 403.40916 | Z38: 0 | AA38: 0 | AC38: =ROUND(SUM(AC22:AC37),2) -> 17210.94

Sheet T-04 (3)
B2: ANEXO I al Memorandum D.T.E.E. N° 526 / 2016
A4: ENTE NACIONAL REGULADOR
A5: DE LA ELECTRICIDAD
F8: SISTEMA DE TRANSPORTE DE ENERGÍA ELÉCTRICA POR DISTRIBUCIÓN TRONCAL - TRANSNOA S.A.
F10: 2.- CONEXIÓN
F12: 2.1.- Transformación
F14: 2.1.1.- Equipamiento propio
B16: ='TOT-0415'!B14 -> Desde el 01 al 30 de abril de 2015
F18: Por Transformador por MVA $ = | I18: 1.617
F19: Coeficiente de penalización por salida forzada = | I19: =30*'TOT-0415'!B13 -> 30 | K19: =IF(I19=30," ",IF(I19=60," Coeficiente duplicado por tasa de falla >4 Sal. x año/100 km.","REVISAR COEFICIENTE")) -> 
C20: 3 | D20: 4 | E20: 5 | F20: 6 | G20: 7 | H20: 8 | I20: 9 | J20: 10 | K20: 11 | L20: 12 | M20: 13 | N20: 14 | O20: 15 | P20: 16 | Q20: 17 | R20: 18 | S20: 19 | T20: 20 | U20: 21 | V20: 22 | W20: 23 | X20: 24 | Y20: 25 | Z20: 26 | AA20: 27 | AB20: 28 | AC20: 29
C21: N° | D21: INDISP | E21: ID EQUIPO | F21: ESTACIÓN TRANSFORMADORA | G21: EQUIPO | H21: POT. [MVA] | I21: U [kV] | J21: $/h | K21: Salida | L21: Entrada | M21: Hs Indisp. | N21: Mtos. Indisp. | O21: Tipo Sal.(²) | P21: AUT. | Q21: C.R. % | R21: E.N.S. | S21: K (P;ENS) | T21: PENALIZ. PROGRAM. | U21: REDUCC. PROGRAM. | V21: PENALIZAC. FORZADA Por Salida hs. Restantes | X21: REDUCC. FORZADA Por Salida hs. Restantes | Z21: RESTANTE FORZADA | AA21: REDUCC. RESTANTE | AB21: Informó en Térm. | AC21: TOTAL PENALIZAC.
AC22: ='T-04 (2)'!AC38 -> 17210.94
C24: 55 | D24: 287724 | E24: 2742 | F24: TUCUMAN OESTE | G24: TRAFO 2 | H24: 30 | I24: 132/33/13,2 | J24: =H24*$I$18 -> 48.51 | K24: 2015-04-20T10:23:00 | L24: 2015-04-20T14:58:00 | M24: =IF(F24="","",(L24-K24)*24) -> 4.583333333 | N24: =IF(F24="","",ROUND((L24-K24)*24*60,0)) -> 275 | O24: F | P24: =IF(F24="","",IF(OR(O24="P",O24="RP"),"--","NO")) -> NO | Q24: 0,000 | R24: NO | S24: =$I$19*IF(R24="SI",1,0.1)*IF(OR(O24="P",O24="RP"),0.1,1) -> 3 | T24: =IF(O24="P",J24*S24*ROUND(N24/60,2),"--") -> -- | U24: =IF(O24="RP",J24*S24*Q24/100*ROUND(N24/60,2),"--") -> -- | V24: =IF(AND(O24="F",P24="NO"),J24*S24,"--") -> 145.53 | W24: =IF(O24="F",J24*S24*ROUND(N24/60,2),"--") -> 666.5274 | X24: =IF(AND(O24="R",P24="NO"),J24*S24*Q24/100,"--") -> -- | Y24: =IF(O24="R",J24*S24*ROUND(N24/60,2)*Q24/100,"--") -> -- | Z24: =IF(O24="RF",J24*S24*ROUND(N24/60,2),"--") -> -- | AA24: =IF(O24="RR",J24*S24*ROUND(N24/60,2)*Q24/100,"--") -> -- | AB24: SI | AC24: =IF(F24="","",SUM(T24:AA24)*IF(AB24="SI",1,2)) -> 812.0574
C25: 56 | D25: 287725 | E25: 5266 | F25: TUCUMAN OESTE | G25: TRAFO3 | H25: 30 | I25: 132/33/13,2 | J25: =H25*$I$18 -> 48.51 | K25: 2015-04-20T10:40:00 | L25: 2015-04-20T11:19:00 | M25: =IF(F25="","",(L25-K25)*24) -> 0.65 | N25: =IF(F25="","",ROUND((L25-K25)*24*60,0)) -> 39 | O25: R | P25: =IF(F25="","",IF(OR(O25="P",O25="RP"),"--","NO")) -> NO | Q25: 60 | R25: NO | S25: =$I$19*IF(R25="SI",1,0.1)*IF(OR(O25="P",O25="RP"),0.1,1) -> 3 | T25: =IF(O25="P",J25*S25*ROUND(N25/60,2),"--") -> -- | U25: =IF(O25="RP",J25*S25*Q25/100*ROUND(N25/60,2),"--") -> -- | V25: =IF(AND(O25="F",P25="NO"),J25*S25,"--") -> -- | W25: =IF(O25="F",J25*S25*ROUND(N25/60,2),"--") -> -- | X25: =IF(AND(O25="R",P25="NO"),J25*S25*Q25/100,"--") -> 87.318 | Y25: =IF(O25="R",J25*S25*ROUND(N25/60,2)*Q25/100,"--") -> 56.7567 | Z25: =IF(O25="RF",J25*S25*ROUND(N25/60,2),"--") -> -- | AA25: =IF(O25="RR",J25*S25*ROUND(N25/60,2)*Q25/100,"--") -> -- | AB25: SI | AC25: =IF(F25="","",SUM(T25:AA25)*IF(AB25="SI",1,2)) -> 144.0747
C26: 57 | D26: 287730 | E26: 5446 | F26: CHAMICAL | G26: TRAFO 1 | H26: 30 | I26: 132/33/13,2 | J26: 48.51 | K26: 2015-04-21T14:26:00 | L26: 2015-04-21T17:44:00 | M26: 3.3 | N26: 198 | O26: RP | P26: -- | Q26: 60 | R26: SI | S26: 3 | T26: -- | U26: 288.1494 | V26: -- | W26: -- | X26: -- | Y26: -- | Z26: -- | AA26: -- | AB26: SI | AC26: 288.1494
C27: 58 | D27: 287734 | E27: 4484 | F27: AGUA BLANCA | G27: TRP1 | H27: 30 | I27: 132/33/13,2 | J27: 48.51 | K27: 2015-04-23T08:59:00 | L27: 2015-04-23T14:15:00 | M27: 5.266666667 | N27: 316 | O27: P | P27: -- | Q27: 0,000 | R27: NO | S27: 0.3 | T27: 76.69431 | U27: -- | V27: -- | W27: -- | X27: -- | Y27: -- | Z27: -- | AA27: -- | AB27: SI | AC27: 76.69431
C28: 59 | D28: 287737 | E28: 5090 | F28: ESTATICA | G28: TRAFO 3 | H28: 15 | I28: 132/33/13,2 | J28: 24.255 | K28: 2015-04-24T09:12:00 | L28: 2015-04-24T13:04:00 | M28: 3.866666667 | N28: 232 | O28: RP | P28: -- | Q28: 60 | R28: NO | S28: 0.3 | T28: -- | U28: 16.896033 | V28: -- | W28: -- | X28: -- | Y28: -- | Z28: -- | AA28: -- | AB28: SI | AC28: 16.896033
C29: 60 | D29: 287739 | E29: 573 | F29: SAN JUANCITO | G29: TRAFO 1 | H29: 15 | I29: 132/33/13,2 | J29: 24.255 | K29: 2015-04-25T08:52:00 | L29: 2015-04-25T14:24:00 | M29: 5.533333333 | N29: 332 | O29: RP | P29: -- | Q29: 40 | R29: NO | S29: 0.3 | T29: -- | U29: 16.095618 | V29: -- | W29: -- | X29: -- | Y29: -- | Z29: -- | AA29: -- | AB29: SI | AC29: 16.095618
C30: 61 | D30: 287740 | E30: 5332 | F30: COPO | G30: TRAFO 1 | H30: 15 | I30: 132/33/13,2 | J30: 24.255 | K30: 2015-04-26T16:17:00 | L30: 2015-04-26T17:04:00 | M30: 0.7833333333 | N30: 47 | O30: F | P30: NO | Q30: 0,000 | R30: SI | S30: 30 | T30: -- | U30: -- | V30: 727.65 | W30: 567.567 | X30: -- | Y30: -- | Z30: -- | AA30: -- | AB30: SI | AC30: 1295.217
C31: 62 | D31: 287743 | E31: 5332 | F31: COPO | G31: TRAFO 1 | H31: 15 | I31: 132/33/13,2 | J31: 24.255 | K31: 2015-04-26T17:05:00 | L31: 2015-04-30T12:32:00 | M31: 91.45 | N31: 5487 | O31: F | P31: NO | Q31: 0,000 | R31: NO | S31: 3 | T31: -- | U31: -- | V31: 72.765 | W31: 6654.35925 | X31: -- | Y31: -- | Z31: -- | AA31: -- | AB31: SI | AC31: 6727.12425
J32: 0 | Q32: =IF(F32="","","--") ->  | S32: 3 | T32: -- | U32: -- | V32: -- | W32: -- | X32: -- | Y32: -- | Z32: -- | AA32: -- | AB32: =IF(F32="","","SI") -> 
J33: 0 | S33: 3 | T33: -- | U33: -- | V33: -- | W33: -- | X33: -- | Y33: -- | Z33: -- | AA33: --
J34: 0 | S34: 3 | T34: -- | U34: -- | V34: -- | W34: -- | X34: -- | Y34: -- | Z34: -- | AA34: --
J35: 0 | S35: 3 | T35: -- | U35: -- | V35: -- | W35: -- | X35: -- | Y35: -- | Z35: -- | AA35: --
J36: 0 | M36: =IF(F36="","",(L36-K36)*24) ->  | N36: =IF(F36="","",ROUND((L36-K36)*24*60,0)) ->  | S36: =$I$19*IF(R36="SI",1,0.1)*IF(OR(O36="P",O36="RP"),0.1,1) -> 3 | T36: =IF(O36="P",J36*S36*ROUND(N36/60,2),"--") -> -- | U36: =IF(O36="RP",J36*S36*Q36/100*ROUND(N36/60,2),"--") -> -- | V36: =IF(AND(O36="F",P36="NO"),J36*S36,"--") -> -- | W36: =IF(O36="F",J36*S36*ROUND(N36/60,2),"--") -> -- | X36: =IF(AND(O36="R",P36="NO"),J36*S36*Q36/100,"--") -> -- | Y36: =IF(O36="R",J36*S36*ROUND(N36/60,2)*Q36/100,"--") -> -- | Z36: =IF(O36="RF",J36*S36*ROUND(N36/60,2),"--") -> -- | AA36: =IF(O36="RR",J36*S36*ROUND(N36/60,2)*Q36/100,"--") -> -- | AC36: =IF(F36="","",SUM(T36:AA36)*IF(AB36="SI",1,2)) -> 
J37: 0 | M37: =IF(F37="","",(L37-K37)*24) ->  | N37: =IF(F37="","",ROUND((L37-K37)*24*60,0)) ->  | S37: =$I$19*IF(R37="SI",1,0.1)*IF(OR(O37="P",O37="RP"),0.1,1) -> 3 | T37: =IF(O37="P",J37*S37*ROUND(N37/60,2),"--") -> -- | U37: =IF(O37="RP",J37*S37*Q37/100*ROUND(N37/60,2),"--") -> -- | V37: =IF(AND(O37="F",P37="NO"),J37*S37,"--") -> -- | W37: =IF(O37="F",J37*S37*ROUND(N37/60,2),"--") -> -- | X37: =IF(AND(O37="R",P37="NO"),J37*S37*Q37/100,"--") -> -- | Y37: =IF(O37="R",J37*S37*ROUND(N37/60,2)*Q37/100,"--") -> -- | Z37: =IF(O37="RF",J37*S37*ROUND(N37/60,2),"--") -> -- | AA37: =IF(O37="RR",J37*S37*ROUND(N37/60,2)*Q37/100,"--") -> -- | AC37: =IF(F37="","",SUM(T37:AA37)*IF(AB37="SI",1,2)) -> 
C39: (²) | D39: P - PROGRAMADA ; F - FORZADA ; RP - REDUCCIÓN PROGRAMADA ; R - REDUCCIÓN FORZADA | T39: =SUM(T22:T38) -> 76.69431 | U39: 321.141051 | V39: 945.945 | W39: 7888.45365 | X39: 87.318 | Y39: 56.7567 | Z39: 0 | AA39: 0 | AC39: =ROUND(SUM(AC22:AC38),2) -> 26587.25

Sheet LI-RIOJA-04 (1)
B2: ANEXO I al Memorandum D.T.E.E. N° 526 / 2016
A4: ENTE NACIONAL REGULADOR
A5: DE LA ELECTRICIDAD
F8: SISTEMA DE TRANSPORTE DE ENERGÍA ELÉCTRICA POR DISTRIBUCIÓN TRONCAL - TRANSNOA S.A.
F10: 1.- LÍNEAS
F12: 1.2.- Transportista Independiente TRANSPORTEL La Rioja Sur
B14: ='TOT-0415'!B14 -> Desde el 01 al 30 de abril de 2015
F16: $/100 km-h : LINEAS 132 kV | G16: 62.8386 | K16: FACTOR DE PENALIZACION K = | L16: =30*'TOT-0415'!B13 -> 30 | M16: =IF(L16=30," ",IF(L16=60,"Coeficiente duplicado por tasa de falla >4 Sal. x año/100 km.","REVISAR COEFICIENTE")) -> 
C17: 3 | D17: 4 | E17: 5 | F17: 6 | G17: 7 | H17: 8 | I17: 9 | J17: 10 | K17: 11 | L17: 12 | M17: 13 | N17: 14 | O17: 15 | P17: 16 | Q17: 17 | R17: 18 | S17: 19 | T17: 20 | U17: 21 | V17: 22 | W17: 23 | X17: 24 | Y17: 25 | Z17: 26 | AA17: 27
C18: N° | D18: INDISP | E18: ID EQUIPO | F18: LÍNEAS | G18: U [kV] | H18: Long. [km] | I18: $/h | J18: Salida | K18: Entrada | L18: Hs. Indisp | M18: Minutos Indisp. | N18: Tipo Sal.(²) | O18: C.R. % | P18: PENALIZ. PROGRAM. | Q18: REDUCC. PROGRAM. | R18: PENALIZACION FORZADA Por Salida 1ras. 3 hs. hs. Restantes | U18: REDUCC. FORZADA Por Salida 1ras. 3 hs. hs. Restantes | X18: RESTANTE FORZADA | Y18: REDUCC. RESTANTE | Z18: Informó en Térm. | AA18: TOTAL PENALIZAC.
C21: 63 | D21: 287091 | E21: 4942 | F21: LA RIOJA SUR P.I.PATQUIA | G21: 132 | H21: 40 | I21: =$G$16/100*IF(H21>25,H21,25) -> 25.13544 | J21: 2015-04-04T07:09:00 | K21: 2015-04-04T09:20:00 | L21: =IF(F21="","",(K21-J21)*24) -> 2.183333333 | M21: =IF(F21="","",ROUND((K21-J21)*24*60,0)) -> 131 | N21: F | O21: =IF(F21="","","--") -> -- | P21: =IF(N21="P",ROUND(M21/60,2)*I21*$L$16*0.01,"--") -> -- | Q21: =IF(N21="RP",I21*O21*ROUND(L21/60,2)*0.01*M21/100,"--") -> -- | R21: =IF(N21="F",I21*$L$16,"--") -> 754.0632 | S21: =IF(AND(M21>10,N21="F"),I21*$L$16*IF(M21>180,3,ROUND((M21)/60,2)),"--") -> 1643.857776 | T21: =IF(AND(M21>180,N21="F"),(ROUND(M21/60,2)-3)*I21*$L$16*0.1,"--") -> -- | U21: =IF(N21="R",I21*$L$16*O21/100,"--") -> -- | V21: =IF(AND(M21>10,N21="R"),I21*$L$16*O21/100*IF(M21>180,3,ROUND(M21/60,2)),"--") -> -- | W21: =IF(AND(M21>180,N21="R"),(ROUND(M21/60,2)-3)*I21*$L$16*0.1*O21/100,"--") -> -- | X21: =IF(N21="RF",ROUND(M21/60,2)*I21*$L$16*0.1,"--") -> -- | Y21: =IF(N21="RR",ROUND(M21/60,2)*I21*$L$16*0.1*O21/100,"--") -> -- | Z21: SI | AA21: =IF(F21="","",SUM(P21:Y21)*IF(Z21="SI",1,2)) -> 2397.920976
C22: 64 | D22: 287471 | E22: 4942 | F22: LA RIOJA SUR P.I.PATQUIA | G22: 132 | H22: 40 | I22: 25.13544 | J22: 2015-04-14T11:45:00 | K22: 2015-04-14T12:14:00 | L22: 0.4833333333 | M22: 29 | N22: F | O22: -- | P22: -- | Q22: -- | R22: 754.0632 | S22: 361.950336 | T22: -- | U22: -- | V22: -- | W22: -- | X22: -- | Y22: -- | Z22: SI | AA22: 1116.013536
I23: 15.70965 | P23: -- | Q23: -- | R23: -- | S23: -- | T23: -- | U23: -- | V23: -- | W23: -- | X23: -- | Y23: -- | Z23: =IF(F23="","","SI") -> 
I24: 15.70965 | P24: -- | Q24: -- | R24: -- | S24: -- | T24: -- | U24: -- | V24: -- | W24: -- | X24: -- | Y24: --
I25: 15.70965 | P25: -- | Q25: -- | R25: -- | S25: -- | T25: -- | U25: -- | V25: -- | W25: -- | X25: -- | Y25: --
I26: 15.70965 | P26: -- | Q26: -- | R26: -- | S26: -- | T26: -- | U26: -- | V26: -- | W26: -- | X26: -- | Y26: --
I27: 15.70965 | P27: -- | Q27: -- | R27: -- | S27: -- | T27: -- | U27: -- | V27: -- | W27: -- | X27: -- | Y27: --
I28: 15.70965 | P28: -- | Q28: -- | R28: -- | S28: -- | T28: -- | U28: -- | V28: -- | W28: -- | X28: -- | Y28: --
I29: 15.70965 | P29: -- | Q29: -- | R29: -- | S29: -- | T29: -- | U29: -- | V29: -- | W29: -- | X29: -- | Y29: --
I30: 15.70965 | P30: -- | Q30: -- | R30: -- | S30: -- | T30: -- | U30: -- | V30: -- | W30: -- | X30: -- | Y30: --
I31: 15.70965 | P31: -- | Q31: -- | R31: -- | S31: -- | T31: -- | U31: -- | V31: -- | W31: -- | X31: -- | Y31: --
I32: 15.70965 | P32: -- | Q32: -- | R32: -- | S32: -- | T32: -- | U32: -- | V32: -- | W32: -- | X32: -- | Y32: --
I33: 15.70965 | P33: -- | Q33: -- | R33: -- | S33: -- | T33: -- | U33: -- | V33: -- | W33: -- | X33: -- | Y33: --
I34: 15.70965 | P34: -- | Q34: -- | R34: -- | S34: -- | T34: -- | U34: -- | V34: -- | W34: -- | X34: -- | Y34: --
I35: 15.70965 | P35: -- | Q35: -- | R35: -- | S35: -- | T35: -- | U35: -- | V35: -- | W35: -- | X35: -- | Y35: --
I36: 15.70965 | P36: -- | Q36: -- | R36: -- | S36: -- | T36: -- | U36: -- | V36: -- | W36: -- | X36: -- | Y36: --
I37: 15.70965 | P37: -- | Q37: -- | R37: -- | S37: -- | T37: -- | U37: -- | V37: -- | W37: -- | X37: -- | Y37: --
I38: 15.70965 | P38: -- | Q38: -- | R38: -- | S38: -- | T38: -- | U38: -- | V38: -- | W38: -- | X38: -- | Y38: --
I39: 15.70965 | P39: -- | Q39: -- | R39: -- | S39: -- | T39: -- | U39: -- | V39: -- | W39: -- | X39: -- | Y39: --
I40: 15.70965 | P40: -- | Q40: -- | R40: -- | S40: -- | T40: -- | U40: -- | V40: -- | W40: -- | X40: -- | Y40: --
C42: (²) | D42: F - FORZADA | P42: =SUM(P19:P41) -> 0 | Q42: 0 | R42: 1508.1264 | S42: 2005.808112 | T42: 0 | U42: 0 | V42: 0 | W42: 0 | X42: 0 | Y42: 0 | AA42: =ROUND(SUM(AA19:AA41),2) -> 3513.93

Sheet CAUSAS-VST-04 (1)
B2: ANEXO I al Memorandum D.T.E.E. N° 526 / 2016
A4: ENTE NACIONAL REGULADOR
A5: DE LA ELECTRICIDAD
F8: SISTEMA DE TRANSPORTE DE ENERGÍA ELÉCTRICA POR DISTRIBUCIÓN TRONCAL - TRANSNOA S.A.
G11: Indisponibilidades Descartadas por Causa "Vinculado y Sin Tensión"
B14: ='TOT-0415'!B14 -> Desde el 01 al 30 de abril de 2015
C17: Id | D17: ID EQUIPO | E17: INDISP | F17: AGENTE | G17: CAUSA
C19: 65 | D19: 5444 | E19: 287078 | F19: TRANSNOA | G19: VINCULADO Y SIN TENSION : Descarga atmosférica en cercanías de la ET La Rioja Norte
C20: 66 | D20: 5445 | E20: 287079 | F20: TRANSNOA | G20: VINCULADO Y SIN TENSION : Descarga atmosférica en cercanías de la ET La Rioja Norte
C21: 67 | D21: 5451 | E21: 287080 | F21: TRANSNOA | G21: VINCULADO Y SIN TENSION : Descarga atmosférica en cercanías de la ET La Rioja Norte
C22: 68 | D22: 5452 | E22: 287081 | F22: TRANSNOA | G22: VINCULADO Y SIN TENSION : Descarga atmosférica en cercanías de la ET La Rioja Norte
C23: 69 | D23: 5437 | E23: 287082 | F23: TRANSNOA | G23: VINCULADO Y SIN TENSION : Descarga atmosférica en cercanías de la ET La Rioja Norte
C24: 70 | D24: 5442 | E24: 287084 | F24: TRANSNOA | G24: VINCULADO Y SIN TENSION : Falla de aislación debido a fuerte tormenta en la zona
C25: 71 | D25: 5441 | E25: 287085 | F25: TRANSNOA | G25: VINCULADO Y SIN TENSION : Falla de aislación debido a fuerte tormenta en la zona
C26: 72 | D26: 5446 | E26: 287086 | F26: TRANSNOA | G26: VINCULADO Y SIN TENSION : Falla de aislación debido a fuerte tormenta en la zona
C27: 73 | D27: 5447 | E27: 287087 | F27: TRANSNOA | G27: VINCULADO Y SIN TENSION : Falla de aislación debido a fuerte tormenta en la zona
C28: 74 | D28: 5448 | E28: 287088 | F28: TRANSNOA | G28: VINCULADO Y SIN TENSION : Falla de aislación debido a fuerte tormenta en la zona
C29: 75 | D29: 5449 | E29: 287089 | F29: TRANSNOA | G29: VINCULADO Y SIN TENSION : Falla de aislación debido a fuerte tormenta en la zona
C30: 76 | D30: 5443 | E30: 287090 | F30: TRANSNOA | G30: VINCULADO Y SIN TENSION : Falla de aislación debido a fuerte tormenta en la zona
C31: 77 | D31: 5450 | E31: 287092 | F31: TRANSNOA | G31: VINCULADO Y SIN TENSION : Falla de aislación debido a fuerte tormenta en la zona
C32: 78 | D32: 339 | E32: 287194 | F32: TRANSNOA | G32: VINCULADO Y SIN TENSION: Actuación de respaldo ante falla en el distribuidor Mota Botello en 13.2 Kv
C33: 79 | D33: 335 | E33: 287195 | F33: TRANSNOA | G33: VINCULADO Y SIN TENSION: Actuación de respaldo ante falla en el distribuidor Mota Botello en 13.2 Kv
C34: 80 | D34: 334 | E34: 287196 | F34: TRANSNOA | G34: VINCULADO Y SIN TENSION: Actuación de respaldo ante falla en el distribuidor Mota Botello en 13.2 Kv
C35: 81 | D35: 342 | E35: 287197 | F35: TRANSNOA | G35: VINCULADO Y SIN TENSION: Actuación de respaldo ante falla en el distribuidor Mota Botello en 13.2 Kv
C36: 82 | D36: 336 | E36: 287198 | F36: TRANSNOA | G36: VINCULADO Y SIN TENSION: Actuación de respaldo ante falla en el distribuidor Mota Botello en 13.2 Kv
C37: 83 | D37: 534 | E37: 287203 | F37: TRANSNOA | G37: VINCULADO Y SIN TENSION :Ruptura del guardamotor del interruptor de 132 kV salida Villa Quinteros
C38: 84 | D38: 5140 | E38: 287204 | F38: TRANSNOA | G38: VINCULADO Y SIN TENSION :Ruptura del guardamotor del interruptor de 132 kV salida Villa Quinteros
C39: 85 | D39: 323 | E39: 287205 | F39: TRANSNOA | G39: VINCULADO Y SIN TENSION :Ruptura del guardamotor del interruptor de 132 kV salida Villa Quinteros
C40: 86 | D40: 322 | E40: 287206 | F40: TRANSNOA | G40: VINCULADO Y SIN TENSION :Ruptura del guardamotor del interruptor de 132 kV salida Villa Quinteros
C41: 87 | D41: 326 | E41: 287207 | F41: TRANSNOA | G41: VINCULADO Y SIN TENSION :Ruptura del guardamotor del interruptor de 132 kV salida Villa Quinteros

Sheet CAUSAS-VST-04 (2)
B2: ANEXO I al Memorandum D.T.E.E. N° 526 / 2016
A4: ENTE NACIONAL REGULADOR
A5: DE LA ELECTRICIDAD
F8: SISTEMA DE TRANSPORTE DE ENERGÍA ELÉCTRICA POR DISTRIBUCIÓN TRONCAL - TRANSNOA S.A.
G11: Indisponibilidades Descartadas por Causa "Vinculado y Sin Tensión"
B14: ='TOT-0415'!B14 -> Desde el 01 al 30 de abril de 2015
C17: Id | D17: ID EQUIPO | E17: INDISP | F17: AGENTE | G17: CAUSA
C19: 88 | D19: 327 | E19: 287208 | F19: TRANSNOA | G19: VINCULADO Y SIN TENSION :Ruptura del guardamotor del interruptor de 132 kV salida Villa Quinteros
C20: 89 | D20: 324 | E20: 287209 | F20: TRANSNOA | G20: VINCULADO Y SIN TENSION :Ruptura del guardamotor del interruptor de 132 kV salida Villa Quinteros
C21: 90 | D21: 325 | E21: 287210 | F21: TRANSNOA | G21: VINCULADO Y SIN TENSION :Ruptura del guardamotor del interruptor de 132 kV salida Villa Quinteros
C22: 91 | D22: 321 | E22: 287211 | F22: TRANSNOA | G22: VINCULADO Y SIN TENSION :Ruptura del guardamotor del interruptor de 132 kV salida Villa Quinteros
C23: 92 | D23: 3600 | E23: 287212 | F23: TRANSNOA | G23: VINCULADO Y SIN TENSION :Ruptura del guardamotor del interruptor de 132 kV salida Villa Quinteros
C24: 93 | D24: 320 | E24: 287213 | F24: TRANSNOA | G24: VINCULADO Y SIN TENSION :Ruptura del guardamotor del interruptor de 132 kV salida Villa Quinteros
C25: 94 | D25: 5131 | E25: 287218 | F25: TRANSNOA | G25: VINCULADO Y SIN TENSION : Descarga atmosférica en LAT 132 kV Huacra – Catamarca.
C26: 95 | D26: 5132 | E26: 287219 | F26: TRANSNOA | G26: VINCULADO Y SIN TENSION : Descarga atmosférica en LAT 132 kV Huacra – Catamarca.
C27: 96 | D27: 3620 | E27: 287223 | F27: TRANSNOA | G27: VINCULADO Y SIN TENSION : Aún se investigan.
C28: 97 | D28: 2736 | E28: 287225 | F28: TRANSNOA | G28: VINCULADO Y SIN TENSION : Falla de aislación en aislador soporte a barras en 13.2 kV.
C29: 98 | D29: 2733 | E29: 287226 | F29: TRANSNOA | G29: VINCULADO Y SIN TENSION : Falla de aislación en aislador soporte a barras en 13.2 kV.
C30: 99 | D30: 3835 | E30: 287227 | F30: TRANSNOA | G30: VINCULADO Y SIN TENSION : Falla de aislación en aislador soporte a barras en 13.2 kV.
C31: 100 | D31: 2743 | E31: 287228 | F31: TRANSNOA | G31: VINCULADO Y SIN TENSION : Falla de aislación en aislador soporte a barras en 13.2 kV.
C32: 101 | D32: 2732 | E32: 287229 | F32: TRANSNOA | G32: VINCULADO Y SIN TENSION : Falla de aislación en aislador soporte a barras en 13.2 kV.
C33: 102 | D33: 4987 | E33: 287230 | F33: TRANSNOA | G33: VINCULADO Y SIN TENSION : Falla de aislación en aislador soporte a barras en 13.2 kV.
C34: 103 | D34: 4850 | E34: 287231 | F34: TRANSNOA | G34: VINCULADO Y SIN TENSION : Falla de aislación en aislador soporte a barras en 13.2 kV.
C35: 104 | D35: 5446 | E35: 287472 | F35: TRANSNOA | G35: VINCULADO Y SIN TENSION : Ruptura dieléctrica de aislador orgánico en playa de 132 kV de ET Chamical
C36: 105 | D36: 5447 | E36: 287473 | F36: TRANSNOA | G36: VINCULADO Y SIN TENSION : Ruptura dieléctrica de aislador orgánico en playa de 132 kV de ET Chamical
C37: 106 | D37: 5448 | E37: 287474 | F37: TRANSNOA | G37: VINCULADO Y SIN TENSION : Ruptura dieléctrica de aislador orgánico en playa de 132 kV de ET Chamical
C38: 107 | D38: 5449 | E38: 287475 | F38: TRANSNOA | G38: VINCULADO Y SIN TENSION : Ruptura dieléctrica de aislador orgánico en playa de 132 kV de ET Chamical
C39: 108 | D39: 5442 | E39: 287476 | F39: TRANSNOA | G39: VINCULADO Y SIN TENSION : Ruptura dieléctrica de aislador orgánico en playa de 132 kV de ET Chamical
C40: 109 | D40: 5441 | E40: 287477 | F40: TRANSNOA | G40: VINCULADO Y SIN TENSION : Ruptura dieléctrica de aislador orgánico en playa de 132 kV de ET Chamical
C41: 110 | D41: 5443 | E41: 287478 | F41: TRANSNOA | G41: VINCULADO Y SIN TENSION : Ruptura dieléctrica de aislador orgánico en playa de 132 kV de ET Chamical
C42: 111 | D42: 5450 | E42: 287479 | F42: TRANSNOA | G42: VINCULADO Y SIN TENSION : Ruptura dieléctrica de aislador orgánico en playa de 132 kV de ET Chamical

Sheet CAUSAS-VST-04 (3)
B2: ANEXO I al Memorandum D.T.E.E. N° 526 / 2016
A4: ENTE NACIONAL REGULADOR
A5: DE LA ELECTRICIDAD
F8: SISTEMA DE TRANSPORTE DE ENERGÍA ELÉCTRICA POR DISTRIBUCIÓN TRONCAL - TRANSNOA S.A.
G11: Indisponibilidades Descartadas por Causa "Vinculado y Sin Tensión"
B14: ='TOT-0415'!B14 -> Desde el 01 al 30 de abril de 2015
C17: Id | D17: ID EQUIPO | E17: INDISP | F17: AGENTE | G17: CAUSA
C19: 112 | D19: 5131 | E19: 287480 | F19: TRANSNOA | G19: VINCULADO Y SIN TENSION : Falla fugitiva de aislación en LAT 132 kV Huacra – Catamarca.
C20: 113 | D20: 5132 | E20: 287481 | F20: TRANSNOA | G20: VINCULADO Y SIN TENSION : Falla fugitiva de aislación en LAT 132 kV Huacra – Catamarca.
C21: 114 | D21: 5130 | E21: 287483 | F21: TRANSNOA | G21: VINCULADO Y SIN TENSION : Falla fugitiva de aislación en LAT 132 kV Huacra – Catamarca.
C22: 115 | D22: 3620 | E22: 287484 | F22: TRANSNOA | G22: VINCULADO Y SIN TENSION : Actuación de respaldo ante falla de aislación en el distribuidor Fiambalá 33 kV.
C23: 116 | D23: 339 | E23: 287488 | F23: TRANSNOA | G23: VINCULADO Y SIN TENSION : Actuación de respaldo ante conductor cortado en el distribuidor Esquiú en 13.2 kV
C24: 117 | D24: 335 | E24: 287489 | F24: TRANSNOA | G24: VINCULADO Y SIN TENSION : Actuación de respaldo ante conductor cortado en el distribuidor Esquiú en 13.2 kV
C25: 118 | D25: 334 | E25: 287490 | F25: TRANSNOA | G25: VINCULADO Y SIN TENSION : Actuación de respaldo ante conductor cortado en el distribuidor Esquiú en 13.2 kV
C26: 119 | D26: 342 | E26: 287491 | F26: TRANSNOA | G26: VINCULADO Y SIN TENSION : Actuación de respaldo ante conductor cortado en el distribuidor Esquiú en 13.2 kV
C27: 120 | D27: 336 | E27: 287492 | F27: TRANSNOA | G27: VINCULADO Y SIN TENSION : Actuación de respaldo ante conductor cortado en el distribuidor Esquiú en 13.2 kV
C28: 121 | D28: 346 | E28: 287494 | F28: TRANSNOA | G28: VINCULADO Y SIN TENSION : Actuación del relé de flujo de RBC del Trafo Nº 1
C29: 122 | D29: 347 | E29: 287495 | F29: TRANSNOA | G29: VINCULADO Y SIN TENSION : Actuación del relé de flujo de RBC del Trafo Nº 1
C30: 123 | D30: 348 | E30: 287496 | F30: TRANSNOA | G30: VINCULADO Y SIN TENSION : Actuación del relé de flujo de RBC del Trafo Nº 1
C31: 124 | D31: 450 | E31: 287501 | F31: TRANSNOA | G31: VINCULADO Y SIN TENSION :Aislador orgánico deteriorado en el piquete Nº 166
C32: 125 | D32: 451 | E32: 287502 | F32: TRANSNOA | G32: VINCULADO Y SIN TENSION :Aislador orgánico deteriorado en el piquete Nº 166
C33: 126 | D33: 449 | E33: 287505 | F33: TRANSNOA | G33: VINCULADO Y SIN TENSION :Aislador orgánico deteriorado en el piquete Nº 166
C34: 127 | D34: 447 | E34: 287506 | F34: TRANSNOA | G34: VINCULADO Y SIN TENSION :Aislador orgánico deteriorado en el piquete Nº 166
C35: 128 | D35: 448 | E35: 287507 | F35: TRANSNOA | G35: VINCULADO Y SIN TENSION :Aislador orgánico deteriorado en el piquete Nº 166
C36: 129 | D36: 3731 | E36: 287508 | F36: TRANSNOA | G36: VINCULADO Y SIN TENSION :Aislador orgánico deteriorado en el piquete Nº 166
C37: 130 | D37: 3729 | E37: 287509 | F37: TRANSNOA | G37: VINCULADO Y SIN TENSION :Aislador orgánico deteriorado en el piquete Nº 166
C38: 131 | D38: 3730 | E38: 287510 | F38: TRANSNOA | G38: VINCULADO Y SIN TENSION :Aislador orgánico deteriorado en el piquete Nº 166
C39: 132 | D39: 4993 | E39: 287511 | F39: TRANSNOA | G39: VINCULADO Y SIN TENSION :Aislador orgánico deteriorado en el piquete Nº 166
C40: 133 | D40: 565 | E40: 287512 | F40: TRANSNOA | G40: VINCULADO Y SIN TENSION :Aislador orgánico deteriorado en el piquete Nº 166
C41: 134 | D41: 2735 | E41: 287717 | F41: TRANSNOA | G41: VINCULADO Y SIN TENSION : Falla de aislación en aislador soporte a barras en 13.2 kV
C42: 135 | D42: 2744 | E42: 287718 | F42: TRANSNOA | G42: VINCULADO Y SIN TENSION : Falla de aislación en aislador soporte a barras en 13.2 kV

Sheet CAUSAS-VST-04 (4)
B2: ANEXO I al Memorandum D.T.E.E. N° 526 / 2016
A4: ENTE NACIONAL REGULADOR
A5: DE LA ELECTRICIDAD
F8: SISTEMA DE TRANSPORTE DE ENERGÍA ELÉCTRICA POR DISTRIBUCIÓN TRONCAL - TRANSNOA S.A.
G11: Indisponibilidades Descartadas por Causa "Vinculado y Sin Tensión"
B14: ='TOT-0415'!B14 -> Desde el 01 al 30 de abril de 2015
C17: Id | D17: ID EQUIPO | E17: INDISP | F17: AGENTE | G17: CAUSA
C19: 136 | D19: 4274 | E19: 287719 | F19: TRANSNOA | G19: VINCULADO Y SIN TENSION : Falla de aislación en aislador soporte a barras en 13.2 kV
C20: 137 | D20: 2745 | E20: 287720 | F20: TRANSNOA | G20: VINCULADO Y SIN TENSION : Falla de aislación en aislador soporte a barras en 13.2 kV
C21: 138 | D21: 2734 | E21: 287721 | F21: TRANSNOA | G21: VINCULADO Y SIN TENSION : Falla de aislación en aislador soporte a barras en 13.2 kV
C22: 139 | D22: 4857 | E22: 287722 | F22: TRANSNOA | G22: VINCULADO Y SIN TENSION : Falla de aislación en aislador soporte a barras en 13.2 kV
C23: 140 | D23: 1844 | E23: 287723 | F23: TRANSNOA | G23: VINCULADO Y SIN TENSION : Falla de aislación en aislador soporte a barras en 13.2 kV
C24: 141 | D24: 5265 | E24: 287726 | F24: TRANSNOA | G24: VINCULADO Y SIN TENSION : Falla de aislación en aislador soporte a barras en 13.2 kV
C25: 142 | D25: 5297 | E25: 287727 | F25: TRANSNOA | G25: VINCULADO Y SIN TENSION : Falla de aislación en aislador soporte a barras en 13.2 kV
C26: 143 | D26: 5298 | E26: 287728 | F26: TRANSNOA | G26: VINCULADO Y SIN TENSION : Falla de aislación en aislador soporte a barras en 13.2 kV
C27: 144 | D27: 5334 | E27: 287741 | F27: TRANSNOA | G27: VINCULADO Y SIN TENSION : Disparo de protección de cuba del reactor de neutro (reactor rígido a bornes de Trafo Nº 2)
C28: 145 | D28: 5335 | E28: 287742 | F28: TRANSNOA | G28: VINCULADO Y SIN TENSION : Disparo de protección de cuba del reactor de neutro (reactor rígido a bornes de Trafo Nº 2)

Sheet SUP-TRANSPORTEL
B2: ANEXO I al Memorandum D.T.E.E. N° 526 / 2016
A3: ENTE NACIONAL REGULADOR
A4: DE LA ELECTRICIDAD
D7: SISTEMA DE TRANSPORTE DE ENERGÍA ELÉCTRICA POR DISTRIBUCIÓN TRONCAL - TRANSNOA S.A.
D9: 3.1- SUPERVISIÓN - Transportista Independiente TRANSPORTEL La Rioja Sur
B11: ='TOT-0415'!B14 -> Desde el 01 al 30 de abril de 2015
C15: a) Datos
L16: Salida en 132 kV o 66 kV = | M16: 2.414
D17: Tiempo de servicio = | E17: =MID(B11,16,2)*24 -> 720 | F17: hs | I17: $/100 km-h : LÍNEAS 132 kV | J17: 381.239 | L17: Salida en 33 kV | M17: 1.811
D18: Porcentaje por Supervisión = | E18: 0.04 | L18: Salida en 13,2 kV = | M18: 1.811
C20: b) SM: es la suma de las sanciones a que en cada mes se hiciere pasible el Transportista Independiente, valorizadas con idénticos criterios que los que se aplican a la Concesionaria.
D23: SANCIÓN al T.I. | F23: LÍNEAS | H23: SM = | I23: 21318.88 | L23: SEGÚN 1.2.
C25: c) RM : es la remuneración que mensualmente recibiría el Transportista Independiente, si su servicio fuera valorizado conforme al régimen remuneratorio que se aplica a la Concesionaria.
D27: Cargo por Capacidad de Transporte | E27: U [kV] | F27: Long [km] | H27: Cargo por C. T. | I27: ="Cargo por E.E.T." -> Cargo por E.E.T. | L27: TOTAL
D28: LA RIOJA SUR P.I.LA RIOJA | E28: 132 | F28: 40 | H28: =F28*$J$17*$E$17/100 -> 109796.832 | I28: 0 | J28: ="(DTE "&DATO!$G$14&DATO!$H$14&")" -> (DTE 0415) | L28: =SUM(H28:K28) -> 109796.832
D29: LA RIOJA SUR P.I.PATQUIA | E29: 132 | F29: 40 | H29: =F29*$J$17*$E$17/100 -> 109796.832 | I29: 0 | J29: ="(DTE "&DATO!$G$14&DATO!$H$14&")" -> (DTE 0415) | L29: =SUM(H29:K29) -> 109796.832
L30: =SUM(L28:L29) -> 219593.664
H33: RM = | I33: =+L30 -> 219593.664 | K33: RM * = | L33: 36195.0336
C35: d) CS: Es el cargo por Supervisión de la Operación que la Transportista percibe por supervisar la operación y mantenimiento del Transportista Independiente.
D37: Cargo por Supervisión afectado a la sanción | H37: CS = | I37: =E18*L33 -> 1447.801344
C39: e) SANCIÓN
D40: Sanción Calculada | E40: =10*I23*I37/I33 -> 1405.573483
D42: TOTAL A PENALIZAR A TRANSNOA S.A. POR SUPERVISIÓN A SU TI
H44: SANCIÓN = | I44: =IF($E$40>3*I37,3*I37,$E$40) -> 1405.573483 | K44: RM * = VALOR EMPLEADO PARA CALCULAR CS

Sheet Tasa de Falla
B2: ANEXO I al Memorandum D.T.E.E. N° 526 / 2016
A3: ENTE NACIONAL REGULADOR
A4: DE LA ELECTRICIDAD
B6: SISTEMA DE TRANSPORTE DE ENERGÍA ELÉCTRICA POR DISTRIBUCIÓN TRONCAL
B8: TRANSNOA S.A.
B10: INDISPONIBILIDADES FORZADAS DE LÍNEAS - TASA DE FALLA
B13: y | D13: Correspondiente al mes abril de 2015
C15: N° | D15: LÍNEAS | E15: U [kV] | F15: Long. [km] | G15: 2014-04-01 | H15: 2014-05-01 | I15: 2014-06-01 | J15: 2014-07-01 | K15: 2014-08-01 | L15: 2014-09-01 | M15: 2014-10-01 | N15: 2014-11-01 | O15: 2014-12-01 | P15: 2015-01-01 | Q15: 2015-02-01 | R15: 2015-03-01 | S15: 2015-04-01
C17: ='[1]Tasa de Falla'!C17 -> 1 | D17: ='[1]Tasa de Falla'!D17 -> AGUA BLANCA - VILLA QUINTEROS | E17: ='[1]Tasa de Falla'!E17 -> 132 | F17: ='[1]Tasa de Falla'!F17 -> 23.8 | G17: =IF('[1]Tasa de Falla'!IK17=0,"",'[1]Tasa de Falla'!IK17) ->  | H17: =IF('[1]Tasa de Falla'!IL17=0,"",'[1]Tasa de Falla'!IL17) ->  | I17: =IF('[1]Tasa de Falla'!IM17=0,"",'[1]Tasa de Falla'!IM17) ->  | J17: =IF('[1]Tasa de Falla'!IN17=0,"",'[1]Tasa de Falla'!IN17) ->  | K17: =IF('[1]Tasa de Falla'!IO17=0,"",'[1]Tasa de Falla'!IO17) ->  | L17: =IF('[1]Tasa de Falla'!IP17=0,"",'[1]Tasa de Falla'!IP17) ->  | M17: =IF('[1]Tasa de Falla'!IQ17=0,"",'[1]Tasa de Falla'!IQ17) ->  | N17: =IF('[1]Tasa de Falla'!IR17=0,"",'[1]Tasa de Falla'!IR17) ->  | O17: =IF('[1]Tasa de Falla'!IS17=0,"",'[1]Tasa de Falla'!IS17) ->  | P17: =IF('[1]Tasa de Falla'!IT17=0,"",'[1]Tasa de Falla'!IT17) ->  | Q17: =IF('[1]Tasa de Falla'!IU17=0,"",'[1]Tasa de Falla'!IU17) ->  | R17: =IF('[1]Tasa de Falla'!IV17=0,"",'[1]Tasa de Falla'!IV17) -> 
C18: ='[1]Tasa de Falla'!C18 -> 2 | D18: ='[1]Tasa de Falla'!D18 -> AGUILARES - ESCABA | E18: ='[1]Tasa de Falla'!E18 -> 132 | F18: ='[1]Tasa de Falla'!F18 -> 27 | G18: =IF('[1]Tasa de Falla'!IK18=0,"",'[1]Tasa de Falla'!IK18) ->  | H18: =IF('[1]Tasa de Falla'!IL18=0,"",'[1]Tasa de Falla'!IL18) ->  | I18: =IF('[1]Tasa de Falla'!IM18=0,"",'[1]Tasa de Falla'!IM18) ->  | J18: =IF('[1]Tasa de Falla'!IN18=0,"",'[1]Tasa de Falla'!IN18) ->  | K18: =IF('[1]Tasa de Falla'!IO18=0,"",'[1]Tasa de Falla'!IO18) ->  | L18: =IF('[1]Tasa de Falla'!IP18=0,"",'[1]Tasa de Falla'!IP18) -> 1 | M18: =IF('[1]Tasa de Falla'!IQ18=0,"",'[1]Tasa de Falla'!IQ18) ->  | N18: =IF('[1]Tasa de Falla'!IR18=0,"",'[1]Tasa de Falla'!IR18) ->  | O18: =IF('[1]Tasa de Falla'!IS18=0,"",'[1]Tasa de Falla'!IS18) ->  | P18: =IF('[1]Tasa de Falla'!IT18=0,"",'[1]Tasa de Falla'!IT18) ->  | Q18: =IF('[1]Tasa de Falla'!IU18=0,"",'[1]Tasa de Falla'!IU18) ->  | R18: =IF('[1]Tasa de Falla'!IV18=0,"",'[1]Tasa de Falla'!IV18) -> 
C19: ='[1]Tasa de Falla'!C19 -> 3 | D19: ='[1]Tasa de Falla'!D19 -> CABRA CORRAL - SALTA SUR | E19: ='[1]Tasa de Falla'!E19 -> 132 | F19: ='[1]Tasa de Falla'!F19 -> 62 | G19: =IF('[1]Tasa de Falla'!IK19=0,"",'[1]Tasa de Falla'!IK19) -> XXXX | H19: =IF('[1]Tasa de Falla'!IL19=0,"",'[1]Tasa de Falla'!IL19) -> XXXX | I19: =IF('[1]Tasa de Falla'!IM19=0,"",'[1]Tasa de Falla'!IM19) -> XXXX | J19: =IF('[1]Tasa de Falla'!IN19=0,"",'[1]Tasa de Falla'!IN19) -> XXXX | K19: =IF('[1]Tasa de Falla'!IO19=0,"",'[1]Tasa de Falla'!IO19) -> XXXX | L19: =IF('[1]Tasa de Falla'!IP19=0,"",'[1]Tasa de Falla'!IP19) -> XXXX | M19: =IF('[1]Tasa de Falla'!IQ19=0,"",'[1]Tasa de Falla'!IQ19) -> XXXX | N19: =IF('[1]Tasa de Falla'!IR19=0,"",'[1]Tasa de Falla'!IR19) -> XXXX | O19: =IF('[1]Tasa de Falla'!IS19=0,"",'[1]Tasa de Falla'!IS19) -> XXXX | P19: =IF('[1]Tasa de Falla'!IT19=0,"",'[1]Tasa de Falla'!IT19) -> XXXX | Q19: =IF('[1]Tasa de Falla'!IU19=0,"",'[1]Tasa de Falla'!IU19) -> XXXX | R19: =IF('[1]Tasa de Falla'!IV19=0,"",'[1]Tasa de Falla'!IV19) -> XXXX
C20: ='[1]Tasa de Falla'!C20 -> 4 | D20: ='[1]Tasa de Falla'!D20 -> CEVIL POZO - TUCUMAN NORTE | E20: ='[1]Tasa de Falla'!E20 -> 132 | F20: ='[1]Tasa de Falla'!F20 -> 14.5 | G20: =IF('[1]Tasa de Falla'!IK20=0,"",'[1]Tasa de Falla'!IK20) ->  | H20: =IF('[1]Tasa de Falla'!IL20=0,"",'[1]Tasa de Falla'!IL20) ->  | I20: =IF('[1]Tasa de Falla'!IM20=0,"",'[1]Tasa de Falla'!IM20) ->  | J20: =IF('[1]Tasa de Falla'!IN20=0,"",'[1]Tasa de Falla'!IN20) ->  | K20: =IF('[1]Tasa de Falla'!IO20=0,"",'[1]Tasa de Falla'!IO20) ->  | L20: =IF('[1]Tasa de Falla'!IP20=0,"",'[1]Tasa de Falla'!IP20) ->  | M20: =IF('[1]Tasa de Falla'!IQ20=0,"",'[1]Tasa de Falla'!IQ20) ->  | N20: =IF('[1]Tasa de Falla'!IR20=0,"",'[1]Tasa de Falla'!IR20) ->  | O20: =IF('[1]Tasa de Falla'!IS20=0,"",'[1]Tasa de Falla'!IS20) ->  | P20: =IF('[1]Tasa de Falla'!IT20=0,"",'[1]Tasa de Falla'!IT20) ->  | Q20: =IF('[1]Tasa de Falla'!IU20=0,"",'[1]Tasa de Falla'!IU20) ->  | R20: =IF('[1]Tasa de Falla'!IV20=0,"",'[1]Tasa de Falla'!IV20) -> 
C21: ='[1]Tasa de Falla'!C21 -> 5 | D21: ='[1]Tasa de Falla'!D21 -> CAMPO SANTO - MINETTI | E21: ='[1]Tasa de Falla'!E21 -> 132 | F21: ='[1]Tasa de Falla'!F21 -> 29.9 | G21: =IF('[1]Tasa de Falla'!IK21=0,"",'[1]Tasa de Falla'!IK21) -> XXXX | H21: =IF('[1]Tasa de Falla'!IL21=0,"",'[1]Tasa de Falla'!IL21) -> XXXX | I21: =IF('[1]Tasa de Falla'!IM21=0,"",'[1]Tasa de Falla'!IM21) -> XXXX | J21: =IF('[1]Tasa de Falla'!IN21=0,"",'[1]Tasa de Falla'!IN21) -> XXXX | K21: =IF('[1]Tasa de Falla'!IO21=0,"",'[1]Tasa de Falla'!IO21) -> XXXX | L21: =IF('[1]Tasa de Falla'!IP21=0,"",'[1]Tasa de Falla'!IP21) -> XXXX | M21: =IF('[1]Tasa de Falla'!IQ21=0,"",'[1]Tasa de Falla'!IQ21) -> XXXX | N21: =IF('[1]Tasa de Falla'!IR21=0,"",'[1]Tasa de Falla'!IR21) -> XXXX | O21: =IF('[1]Tasa de Falla'!IS21=0,"",'[1]Tasa de Falla'!IS21) -> XXXX | P21: =IF('[1]Tasa de Falla'!IT21=0,"",'[1]Tasa de Falla'!IT21) -> XXXX | Q21: =IF('[1]Tasa de Falla'!IU21=0,"",'[1]Tasa de Falla'!IU21) -> XXXX | R21: =IF('[1]Tasa de Falla'!IV21=0,"",'[1]Tasa de Falla'!IV21) -> XXXX
C22: ='[1]Tasa de Falla'!C22 -> 6 | D22: ='[1]Tasa de Falla'!D22 -> ESCABA - HUACRA | E22: ='[1]Tasa de Falla'!E22 -> 132 | F22: ='[1]Tasa de Falla'!F22 -> 49.9 | G22: =IF('[1]Tasa de Falla'!IK22=0,"",'[1]Tasa de Falla'!IK22) -> XXXX | H22: =IF('[1]Tasa de Falla'!IL22=0,"",'[1]Tasa de Falla'!IL22) -> XXXX | I22: =IF('[1]Tasa de Falla'!IM22=0,"",'[1]Tasa de Falla'!IM22) -> XXXX | J22: =IF('[1]Tasa de Falla'!IN22=0,"",'[1]Tasa de Falla'!IN22) -> XXXX | K22: =IF('[1]Tasa de Falla'!IO22=0,"",'[1]Tasa de Falla'!IO22) -> XXXX | L22: =IF('[1]Tasa de Falla'!IP22=0,"",'[1]Tasa de Falla'!IP22) -> XXXX | M22: =IF('[1]Tasa de Falla'!IQ22=0,"",'[1]Tasa de Falla'!IQ22) -> XXXX | N22: =IF('[1]Tasa de Falla'!IR22=0,"",'[1]Tasa de Falla'!IR22) -> XXXX | O22: =IF('[1]Tasa de Falla'!IS22=0,"",'[1]Tasa de Falla'!IS22) -> XXXX | P22: =IF('[1]Tasa de Falla'!IT22=0,"",'[1]Tasa de Falla'!IT22) -> XXXX | Q22: =IF('[1]Tasa de Falla'!IU22=0,"",'[1]Tasa de Falla'!IU22) -> XXXX | R22: =IF('[1]Tasa de Falla'!IV22=0,"",'[1]Tasa de Falla'!IV22) -> XXXX
C23: ='[1]Tasa de Falla'!C23 -> 7 | D23: ='[1]Tasa de Falla'!D23 -> ESTATICA SUR - EL BRACHO | E23: ='[1]Tasa de Falla'!E23 -> 132 | F23: ='[1]Tasa de Falla'!F23 -> 19.6 | G23: =IF('[1]Tasa de Falla'!IK23=0,"",'[1]Tasa de Falla'!IK23) ->  | H23: =IF('[1]Tasa de Falla'!IL23=0,"",'[1]Tasa de Falla'!IL23) ->  | I23: =IF('[1]Tasa de Falla'!IM23=0,"",'[1]Tasa de Falla'!IM23) ->  | J23: =IF('[1]Tasa de Falla'!IN23=0,"",'[1]Tasa de Falla'!IN23) ->  | K23: =IF('[1]Tasa de Falla'!IO23=0,"",'[1]Tasa de Falla'!IO23) ->  | L23: =IF('[1]Tasa de Falla'!IP23=0,"",'[1]Tasa de Falla'!IP23) ->  | M23: =IF('[1]Tasa de Falla'!IQ23=0,"",'[1]Tasa de Falla'!IQ23) ->  | N23: =IF('[1]Tasa de Falla'!IR23=0,"",'[1]Tasa de Falla'!IR23) ->  | O23: =IF('[1]Tasa de Falla'!IS23=0,"",'[1]Tasa de Falla'!IS23) ->  | P23: =IF('[1]Tasa de Falla'!IT23=0,"",'[1]Tasa de Falla'!IT23) ->  | Q23: =IF('[1]Tasa de Falla'!IU23=0,"",'[1]Tasa de Falla'!IU23) ->  | R23: =IF('[1]Tasa de Falla'!IV23=0,"",'[1]Tasa de Falla'!IV23) -> XXXX
C24: ='[1]Tasa de Falla'!C24 -> 8 | D24: ='[1]Tasa de Falla'!D24 -> ESTATICA SUR - INDEPENDENCIA 1 (O.F.) | E24: ='[1]Tasa de Falla'!E24 -> 132 | F24: ='[1]Tasa de Falla'!F24 -> 2.6 | G24: =IF('[1]Tasa de Falla'!IK24=0,"",'[1]Tasa de Falla'!IK24) ->  | H24: =IF('[1]Tasa de Falla'!IL24=0,"",'[1]Tasa de Falla'!IL24) ->  | I24: =IF('[1]Tasa de Falla'!IM24=0,"",'[1]Tasa de Falla'!IM24) ->  | J24: =IF('[1]Tasa de Falla'!IN24=0,"",'[1]Tasa de Falla'!IN24) ->  | K24: =IF('[1]Tasa de Falla'!IO24=0,"",'[1]Tasa de Falla'!IO24) ->  | L24: =IF('[1]Tasa de Falla'!IP24=0,"",'[1]Tasa de Falla'!IP24) ->  | M24: =IF('[1]Tasa de Falla'!IQ24=0,"",'[1]Tasa de Falla'!IQ24) ->  | N24: =IF('[1]Tasa de Falla'!IR24=0,"",'[1]Tasa de Falla'!IR24) ->  | O24: =IF('[1]Tasa de Falla'!IS24=0,"",'[1]Tasa de Falla'!IS24) ->  | P24: =IF('[1]Tasa de Falla'!IT24=0,"",'[1]Tasa de Falla'!IT24) ->  | Q24: =IF('[1]Tasa de Falla'!IU24=0,"",'[1]Tasa de Falla'!IU24) ->  | R24: =IF('[1]Tasa de Falla'!IV24=0,"",'[1]Tasa de Falla'!IV24) -> 
C25: ='[1]Tasa de Falla'!C25 -> 9 | D25: ='[1]Tasa de Falla'!D25 -> ESTATICA SUR - SARMIENTO "TRANSNOA S.A." | E25: ='[1]Tasa de Falla'!E25 -> 132 | F25: ='[1]Tasa de Falla'!F25 -> 4.4 | G25: =IF('[1]Tasa de Falla'!IK25=0,"",'[1]Tasa de Falla'!IK25) ->  | H25: =IF('[1]Tasa de Falla'!IL25=0,"",'[1]Tasa de Falla'!IL25) ->  | I25: =IF('[1]Tasa de Falla'!IM25=0,"",'[1]Tasa de Falla'!IM25) ->  | J25: =IF('[1]Tasa de Falla'!IN25=0,"",'[1]Tasa de Falla'!IN25) ->  | K25: =IF('[1]Tasa de Falla'!IO25=0,"",'[1]Tasa de Falla'!IO25) ->  | L25: =IF('[1]Tasa de Falla'!IP25=0,"",'[1]Tasa de Falla'!IP25) ->  | M25: =IF('[1]Tasa de Falla'!IQ25=0,"",'[1]Tasa de Falla'!IQ25) ->  | N25: =IF('[1]Tasa de Falla'!IR25=0,"",'[1]Tasa de Falla'!IR25) ->  | O25: =IF('[1]Tasa de Falla'!IS25=0,"",'[1]Tasa de Falla'!IS25) ->  | P25: =IF('[1]Tasa de Falla'!IT25=0,"",'[1]Tasa de Falla'!IT25) ->  | Q25: =IF('[1]Tasa de Falla'!IU25=0,"",'[1]Tasa de Falla'!IU25) ->  | R25: =IF('[1]Tasa de Falla'!IV25=0,"",'[1]Tasa de Falla'!IV25) -> 
C26: ='[1]Tasa de Falla'!C26 -> 10 | D26: ='[1]Tasa de Falla'!D26 -> GÜEMES - EL BRACHO | E26: ='[1]Tasa de Falla'!E26 -> 132 | F26: ='[1]Tasa de Falla'!F26 -> 308 | G26: =IF('[1]Tasa de Falla'!IK26=0,"",'[1]Tasa de Falla'!IK26) -> XXXX | H26: =IF('[1]Tasa de Falla'!IL26=0,"",'[1]Tasa de Falla'!IL26) -> XXXX | I26: =IF('[1]Tasa de Falla'!IM26=0,"",'[1]Tasa de Falla'!IM26) -> XXXX | J26: =IF('[1]Tasa de Falla'!IN26=0,"",'[1]Tasa de Falla'!IN26) -> XXXX | K26: =IF('[1]Tasa de Falla'!IO26=0,"",'[1]Tasa de Falla'!IO26) -> XXXX | L26: =IF('[1]Tasa de Falla'!IP26=0,"",'[1]Tasa de Falla'!IP26) -> XXXX | M26: =IF('[1]Tasa de Falla'!IQ26=0,"",'[1]Tasa de Falla'!IQ26) -> XXXX | N26: =IF('[1]Tasa de Falla'!IR26=0,"",'[1]Tasa de Falla'!IR26) -> XXXX | O26: =IF('[1]Tasa de Falla'!IS26=0,"",'[1]Tasa de Falla'!IS26) -> XXXX | P26: =IF('[1]Tasa de Falla'!IT26=0,"",'[1]Tasa de Falla'!IT26) -> XXXX | Q26: =IF('[1]Tasa de Falla'!IU26=0,"",'[1]Tasa de Falla'!IU26) -> XXXX | R26: =IF('[1]Tasa de Falla'!IV26=0,"",'[1]Tasa de Falla'!IV26) -> XXXX
C27: ='[1]Tasa de Falla'!C27 -> 11 | D27: ='[1]Tasa de Falla'!D27 -> CAMPO SANTO - GÜEMES | E27: ='[1]Tasa de Falla'!E27 -> 132 | F27: ='[1]Tasa de Falla'!F27 -> 6.2 | G27: =IF('[1]Tasa de Falla'!IK27=0,"",'[1]Tasa de Falla'!IK27) -> XXXX | H27: =IF('[1]Tasa de Falla'!IL27=0,"",'[1]Tasa de Falla'!IL27) -> XXXX | I27: =IF('[1]Tasa de Falla'!IM27=0,"",'[1]Tasa de Falla'!IM27) -> XXXX | J27: =IF('[1]Tasa de Falla'!IN27=0,"",'[1]Tasa de Falla'!IN27) -> XXXX | K27: =IF('[1]Tasa de Falla'!IO27=0,"",'[1]Tasa de Falla'!IO27) -> XXXX | L27: =IF('[1]Tasa de Falla'!IP27=0,"",'[1]Tasa de Falla'!IP27) -> XXXX | M27: =IF('[1]Tasa de Falla'!IQ27=0,"",'[1]Tasa de Falla'!IQ27) -> XXXX | N27: =IF('[1]Tasa de Falla'!IR27=0,"",'[1]Tasa de Falla'!IR27) -> XXXX | O27: =IF('[1]Tasa de Falla'!IS27=0,"",'[1]Tasa de Falla'!IS27) -> XXXX | P27: =IF('[1]Tasa de Falla'!IT27=0,"",'[1]Tasa de Falla'!IT27) -> XXXX | Q27: =IF('[1]Tasa de Falla'!IU27=0,"",'[1]Tasa de Falla'!IU27) -> XXXX | R27: =IF('[1]Tasa de Falla'!IV27=0,"",'[1]Tasa de Falla'!IV27) -> XXXX
C28: ='[1]Tasa de Falla'!C28 -> 12 | D28: ='[1]Tasa de Falla'!D28 -> GÜEMES - SAN JUANCITO | E28: ='[1]Tasa de Falla'!E28 -> 132 | F28: ='[1]Tasa de Falla'!F28 -> 36.24 | G28: =IF('[1]Tasa de Falla'!IK28=0,"",'[1]Tasa de Falla'!IK28) -> 1 | H28: =IF('[1]Tasa de Falla'!IL28=0,"",'[1]Tasa de Falla'!IL28) ->  | I28: =IF('[1]Tasa de Falla'!IM28=0,"",'[1]Tasa de Falla'!IM28) ->  | J28: =IF('[1]Tasa de Falla'!IN28=0,"",'[1]Tasa de Falla'!IN28) ->  | K28: =IF('[1]Tasa de Falla'!IO28=0,"",'[1]Tasa de Falla'!IO28) ->  | L28: =IF('[1]Tasa de Falla'!IP28=0,"",'[1]Tasa de Falla'!IP28) ->  | M28: =IF('[1]Tasa de Falla'!IQ28=0,"",'[1]Tasa de Falla'!IQ28) ->  | N28: =IF('[1]Tasa de Falla'!IR28=0,"",'[1]Tasa de Falla'!IR28) ->  | O28: =IF('[1]Tasa de Falla'!IS28=0,"",'[1]Tasa de Falla'!IS28) ->  | P28: =IF('[1]Tasa de Falla'!IT28=0,"",'[1]Tasa de Falla'!IT28) ->  | Q28: =IF('[1]Tasa de Falla'!IU28=0,"",'[1]Tasa de Falla'!IU28) ->  | R28: =IF('[1]Tasa de Falla'!IV28=0,"",'[1]Tasa de Falla'!IV28) -> 
C29: ='[1]Tasa de Falla'!C29 -> 13 | D29: ='[1]Tasa de Falla'!D29 -> CATAMARCA - HUACRA | E29: ='[1]Tasa de Falla'!E29 -> 132 | F29: ='[1]Tasa de Falla'!F29 -> 67.3 | G29: =IF('[1]Tasa de Falla'!IK29=0,"",'[1]Tasa de Falla'!IK29) ->  | H29: =IF('[1]Tasa de Falla'!IL29=0,"",'[1]Tasa de Falla'!IL29) ->  | I29: =IF('[1]Tasa de Falla'!IM29=0,"",'[1]Tasa de Falla'!IM29) ->  | J29: =IF('[1]Tasa de Falla'!IN29=0,"",'[1]Tasa de Falla'!IN29) ->  | K29: =IF('[1]Tasa de Falla'!IO29=0,"",'[1]Tasa de Falla'!IO29) ->  | L29: =IF('[1]Tasa de Falla'!IP29=0,"",'[1]Tasa de Falla'!IP29) ->  | M29: =IF('[1]Tasa de Falla'!IQ29=0,"",'[1]Tasa de Falla'!IQ29) ->  | N29: =IF('[1]Tasa de Falla'!IR29=0,"",'[1]Tasa de Falla'!IR29) ->  | O29: =IF('[1]Tasa de Falla'!IS29=0,"",'[1]Tasa de Falla'!IS29) ->  | P29: =IF('[1]Tasa de Falla'!IT29=0,"",'[1]Tasa de Falla'!IT29) ->  | Q29: =IF('[1]Tasa de Falla'!IU29=0,"",'[1]Tasa de Falla'!IU29) ->  | R29: =IF('[1]Tasa de Falla'!IV29=0,"",'[1]Tasa de Falla'!IV29) -> 
C30: ='[1]Tasa de Falla'!C30 -> 14 | D30: ='[1]Tasa de Falla'!D30 -> HUACRA - LA CALERA | E30: ='[1]Tasa de Falla'!E30 -> 132 | F30: ='[1]Tasa de Falla'!F30 -> 91.2 | G30: =IF('[1]Tasa de Falla'!IK30=0,"",'[1]Tasa de Falla'!IK30) -> 1 | H30: =IF('[1]Tasa de Falla'!IL30=0,"",'[1]Tasa de Falla'!IL30) ->  | I30: =IF('[1]Tasa de Falla'!IM30=0,"",'[1]Tasa de Falla'!IM30) ->  | J30: =IF('[1]Tasa de Falla'!IN30=0,"",'[1]Tasa de Falla'!IN30) ->  | K30: =IF('[1]Tasa de Falla'!IO30=0,"",'[1]Tasa de Falla'!IO30) ->  | L30: =IF('[1]Tasa de Falla'!IP30=0,"",'[1]Tasa de Falla'!IP30) ->  | M30: =IF('[1]Tasa de Falla'!IQ30=0,"",'[1]Tasa de Falla'!IQ30) ->  | N30: =IF('[1]Tasa de Falla'!IR30=0,"",'[1]Tasa de Falla'!IR30) ->  | O30: =IF('[1]Tasa de Falla'!IS30=0,"",'[1]Tasa de Falla'!IS30) ->  | P30: =IF('[1]Tasa de Falla'!IT30=0,"",'[1]Tasa de Falla'!IT30) ->  | Q30: =IF('[1]Tasa de Falla'!IU30=0,"",'[1]Tasa de Falla'!IU30) ->  | R30: =IF('[1]Tasa de Falla'!IV30=0,"",'[1]Tasa de Falla'!IV30) -> 
C31: ='[1]Tasa de Falla'!C31 -> 15 | D31: ='[1]Tasa de Falla'!D31 -> AGUA BLANCA - INDEPENDENCIA | E31: ='[1]Tasa de Falla'!E31 -> 132 | F31: ='[1]Tasa de Falla'!F31 -> 34.14 | G31: =IF('[1]Tasa de Falla'!IK31=0,"",'[1]Tasa de Falla'!IK31) ->  | H31: =IF('[1]Tasa de Falla'!IL31=0,"",'[1]Tasa de Falla'!IL31) ->  | I31: =IF('[1]Tasa de Falla'!IM31=0,"",'[1]Tasa de Falla'!IM31) ->  | J31: =IF('[1]Tasa de Falla'!IN31=0,"",'[1]Tasa de Falla'!IN31) ->  | K31: =IF('[1]Tasa de Falla'!IO31=0,"",'[1]Tasa de Falla'!IO31) ->  | L31: =IF('[1]Tasa de Falla'!IP31=0,"",'[1]Tasa de Falla'!IP31) ->  | M31: =IF('[1]Tasa de Falla'!IQ31=0,"",'[1]Tasa de Falla'!IQ31) -> 1 | N31: =IF('[1]Tasa de Falla'!IR31=0,"",'[1]Tasa de Falla'!IR31) ->  | O31: =IF('[1]Tasa de Falla'!IS31=0,"",'[1]Tasa de Falla'!IS31) ->  | P31: =IF('[1]Tasa de Falla'!IT31=0,"",'[1]Tasa de Falla'!IT31) -> 1 | Q31: =IF('[1]Tasa de Falla'!IU31=0,"",'[1]Tasa de Falla'!IU31) ->  | R31: =IF('[1]Tasa de Falla'!IV31=0,"",'[1]Tasa de Falla'!IV31) -> 
C32: ='[1]Tasa de Falla'!C32 -> 16 | D32: ='[1]Tasa de Falla'!D32 -> INDEPENDENCIA - EL BRACHO 1 | E32: ='[1]Tasa de Falla'!E32 -> 132 | F32: ='[1]Tasa de Falla'!F32 -> 17.1 | G32: =IF('[1]Tasa de Falla'!IK32=0,"",'[1]Tasa de Falla'!IK32) ->  | H32: =IF('[1]Tasa de Falla'!IL32=0,"",'[1]Tasa de Falla'!IL32) ->  | I32: =IF('[1]Tasa de Falla'!IM32=0,"",'[1]Tasa de Falla'!IM32) ->  | J32: =IF('[1]Tasa de Falla'!IN32=0,"",'[1]Tasa de Falla'!IN32) ->  | K32: =IF('[1]Tasa de Falla'!IO32=0,"",'[1]Tasa de Falla'!IO32) ->  | L32: =IF('[1]Tasa de Falla'!IP32=0,"",'[1]Tasa de Falla'!IP32) ->  | M32: =IF('[1]Tasa de Falla'!IQ32=0,"",'[1]Tasa de Falla'!IQ32) ->  | N32: =IF('[1]Tasa de Falla'!IR32=0,"",'[1]Tasa de Falla'!IR32) ->  | O32: =IF('[1]Tasa de Falla'!IS32=0,"",'[1]Tasa de Falla'!IS32) ->  | P32: =IF('[1]Tasa de Falla'!IT32=0,"",'[1]Tasa de Falla'!IT32) -> 1 | Q32: =IF('[1]Tasa de Falla'!IU32=0,"",'[1]Tasa de Falla'!IU32) ->  | R32: =IF('[1]Tasa de Falla'!IV32=0,"",'[1]Tasa de Falla'!IV32) -> 
C33: ='[1]Tasa de Falla'!C33 -> 17 | D33: ='[1]Tasa de Falla'!D33 -> INDEPENDENCIA - LULES - PAPEL TUCUMAN | E33: ='[1]Tasa de Falla'!E33 -> 132 | F33: ='[1]Tasa de Falla'!F33 -> 19.3 | G33: =IF('[1]Tasa de Falla'!IK33=0,"",'[1]Tasa de Falla'!IK33) ->  | H33: =IF('[1]Tasa de Falla'!IL33=0,"",'[1]Tasa de Falla'!IL33) ->  | I33: =IF('[1]Tasa de Falla'!IM33=0,"",'[1]Tasa de Falla'!IM33) ->  | J33: =IF('[1]Tasa de Falla'!IN33=0,"",'[1]Tasa de Falla'!IN33) ->  | K33: =IF('[1]Tasa de Falla'!IO33=0,"",'[1]Tasa de Falla'!IO33) ->  | L33: =IF('[1]Tasa de Falla'!IP33=0,"",'[1]Tasa de Falla'!IP33) ->  | M33: =IF('[1]Tasa de Falla'!IQ33=0,"",'[1]Tasa de Falla'!IQ33) ->  | N33: =IF('[1]Tasa de Falla'!IR33=0,"",'[1]Tasa de Falla'!IR33) ->  | O33: =IF('[1]Tasa de Falla'!IS33=0,"",'[1]Tasa de Falla'!IS33) ->  | P33: =IF('[1]Tasa de Falla'!IT33=0,"",'[1]Tasa de Falla'!IT33) ->  | Q33: =IF('[1]Tasa de Falla'!IU33=0,"",'[1]Tasa de Falla'!IU33) ->  | R33: =IF('[1]Tasa de Falla'!IV33=0,"",'[1]Tasa de Falla'!IV33) -> 
C34: ='[1]Tasa de Falla'!C34 -> 18 | D34: ='[1]Tasa de Falla'!D34 -> FRIAS - LA CALERA NOA. | E34: ='[1]Tasa de Falla'!E34 -> 132 | F34: ='[1]Tasa de Falla'!F34 -> 27.3 | G34: =IF('[1]Tasa de Falla'!IK34=0,"",'[1]Tasa de Falla'!IK34) -> 1 | H34: =IF('[1]Tasa de Falla'!IL34=0,"",'[1]Tasa de Falla'!IL34) ->  | I34: =IF('[1]Tasa de Falla'!IM34=0,"",'[1]Tasa de Falla'!IM34) ->  | J34: =IF('[1]Tasa de Falla'!IN34=0,"",'[1]Tasa de Falla'!IN34) ->  | K34: =IF('[1]Tasa de Falla'!IO34=0,"",'[1]Tasa de Falla'!IO34) ->  | L34: =IF('[1]Tasa de Falla'!IP34=0,"",'[1]Tasa de Falla'!IP34) ->  | M34: =IF('[1]Tasa de Falla'!IQ34=0,"",'[1]Tasa de Falla'!IQ34) ->  | N34: =IF('[1]Tasa de Falla'!IR34=0,"",'[1]Tasa de Falla'!IR34) ->  | O34: =IF('[1]Tasa de Falla'!IS34=0,"",'[1]Tasa de Falla'!IS34) -> 1 | P34: =IF('[1]Tasa de Falla'!IT34=0,"",'[1]Tasa de Falla'!IT34) ->  | Q34: =IF('[1]Tasa de Falla'!IU34=0,"",'[1]Tasa de Falla'!IU34) ->  | R34: =IF('[1]Tasa de Falla'!IV34=0,"",'[1]Tasa de Falla'!IV34) -> 
C35: ='[1]Tasa de Falla'!C35 -> 19 | D35: ='[1]Tasa de Falla'!D35 -> LA BANDA - SANTIAGO CENTRO | E35: ='[1]Tasa de Falla'!E35 -> 132 | F35: ='[1]Tasa de Falla'!F35 -> 10.91 | G35: =IF('[1]Tasa de Falla'!IK35=0,"",'[1]Tasa de Falla'!IK35) ->  | H35: =IF('[1]Tasa de Falla'!IL35=0,"",'[1]Tasa de Falla'!IL35) ->  | I35: =IF('[1]Tasa de Falla'!IM35=0,"",'[1]Tasa de Falla'!IM35) ->  | J35: =IF('[1]Tasa de Falla'!IN35=0,"",'[1]Tasa de Falla'!IN35) ->  | K35: =IF('[1]Tasa de Falla'!IO35=0,"",'[1]Tasa de Falla'!IO35) ->  | L35: =IF('[1]Tasa de Falla'!IP35=0,"",'[1]Tasa de Falla'!IP35) ->  | M35: =IF('[1]Tasa de Falla'!IQ35=0,"",'[1]Tasa de Falla'!IQ35) ->  | N35: =IF('[1]Tasa de Falla'!IR35=0,"",'[1]Tasa de Falla'!IR35) ->  | O35: =IF('[1]Tasa de Falla'!IS35=0,"",'[1]Tasa de Falla'!IS35) ->  | P35: =IF('[1]Tasa de Falla'!IT35=0,"",'[1]Tasa de Falla'!IT35) ->  | Q35: =IF('[1]Tasa de Falla'!IU35=0,"",'[1]Tasa de Falla'!IU35) ->  | R35: =IF('[1]Tasa de Falla'!IV35=0,"",'[1]Tasa de Falla'!IV35) -> 1
C36: ='[1]Tasa de Falla'!C36 -> 20 | D36: ='[1]Tasa de Falla'!D36 -> LIBERTADOR NOA. - PICHANAL | E36: ='[1]Tasa de Falla'!E36 -> 132 | F36: ='[1]Tasa de Falla'!F36 -> 76 | G36: =IF('[1]Tasa de Falla'!IK36=0,"",'[1]Tasa de Falla'!IK36) -> 2 | H36: =IF('[1]Tasa de Falla'!IL36=0,"",'[1]Tasa de Falla'!IL36) ->  | I36: =IF('[1]Tasa de Falla'!IM36=0,"",'[1]Tasa de Falla'!IM36) -> 3 | J36: =IF('[1]Tasa de Falla'!IN36=0,"",'[1]Tasa de Falla'!IN36) ->  | K36: =IF('[1]Tasa de Falla'!IO36=0,"",'[1]Tasa de Falla'!IO36) -> 1 | L36: =IF('[1]Tasa de Falla'!IP36=0,"",'[1]Tasa de Falla'!IP36) ->  | M36: =IF('[1]Tasa de Falla'!IQ36=0,"",'[1]Tasa de Falla'!IQ36) ->  | N36: =IF('[1]Tasa de Falla'!IR36=0,"",'[1]Tasa de Falla'!IR36) -> 2 | O36: =IF('[1]Tasa de Falla'!IS36=0,"",'[1]Tasa de Falla'!IS36) ->  | P36: =IF('[1]Tasa de Falla'!IT36=0,"",'[1]Tasa de Falla'!IT36) -> 1 | Q36: =IF('[1]Tasa de Falla'!IU36=0,"",'[1]Tasa de Falla'!IU36) -> 1 | R36: =IF('[1]Tasa de Falla'!IV36=0,"",'[1]Tasa de Falla'!IV36) -> 4
C37: ='[1]Tasa de Falla'!C37 -> 21 | D37: ='[1]Tasa de Falla'!D37 -> GÜEMES - METAN | E37: ='[1]Tasa de Falla'!E37 -> 132 | F37: ='[1]Tasa de Falla'!F37 -> 97.13 | G37: =IF('[1]Tasa de Falla'!IK37=0,"",'[1]Tasa de Falla'!IK37) -> XXXX | H37: =IF('[1]Tasa de Falla'!IL37=0,"",'[1]Tasa de Falla'!IL37) -> XXXX | I37: =IF('[1]Tasa de Falla'!IM37=0,"",'[1]Tasa de Falla'!IM37) -> XXXX | J37: =IF('[1]Tasa de Falla'!IN37=0,"",'[1]Tasa de Falla'!IN37) -> XXXX | K37: =IF('[1]Tasa de Falla'!IO37=0,"",'[1]Tasa de Falla'!IO37) -> XXXX | L37: =IF('[1]Tasa de Falla'!IP37=0,"",'[1]Tasa de Falla'!IP37) -> XXXX | M37: =IF('[1]Tasa de Falla'!IQ37=0,"",'[1]Tasa de Falla'!IQ37) -> XXXX | N37: =IF('[1]Tasa de Falla'!IR37=0,"",'[1]Tasa de Falla'!IR37) -> XXXX | O37: =IF('[1]Tasa de Falla'!IS37=0,"",'[1]Tasa de Falla'!IS37) -> XXXX | P37: =IF('[1]Tasa de Falla'!IT37=0,"",'[1]Tasa de Falla'!IT37) -> XXXX | Q37: =IF('[1]Tasa de Falla'!IU37=0,"",'[1]Tasa de Falla'!IU37) -> XXXX | R37: =IF('[1]Tasa de Falla'!IV37=0,"",'[1]Tasa de Falla'!IV37) -> XXXX
C38: ='[1]Tasa de Falla'!C38 -> 22 | D38: ='[1]Tasa de Falla'!D38 -> MINETTI - SAN JUANCITO | E38: ='[1]Tasa de Falla'!E38 -> 132 | F38: ='[1]Tasa de Falla'!F38 -> 26 | G38: =IF('[1]Tasa de Falla'!IK38=0,"",'[1]Tasa de Falla'!IK38) -> 1 | H38: =IF('[1]Tasa de Falla'!IL38=0,"",'[1]Tasa de Falla'!IL38) ->  | I38: =IF('[1]Tasa de Falla'!IM38=0,"",'[1]Tasa de Falla'!IM38) ->  | J38: =IF('[1]Tasa de Falla'!IN38=0,"",'[1]Tasa de Falla'!IN38) ->  | K38: =IF('[1]Tasa de Falla'!IO38=0,"",'[1]Tasa de Falla'!IO38) ->  | L38: =IF('[1]Tasa de Falla'!IP38=0,"",'[1]Tasa de Falla'!IP38) ->  | M38: =IF('[1]Tasa de Falla'!IQ38=0,"",'[1]Tasa de Falla'!IQ38) ->  | N38: =IF('[1]Tasa de Falla'!IR38=0,"",'[1]Tasa de Falla'!IR38) ->  | O38: =IF('[1]Tasa de Falla'!IS38=0,"",'[1]Tasa de Falla'!IS38) ->  | P38: =IF('[1]Tasa de Falla'!IT38=0,"",'[1]Tasa de Falla'!IT38) ->  | Q38: =IF('[1]Tasa de Falla'!IU38=0,"",'[1]Tasa de Falla'!IU38) ->  | R38: =IF('[1]Tasa de Falla'!IV38=0,"",'[1]Tasa de Falla'!IV38) -> 
C39: ='[1]Tasa de Falla'!C39 -> 23 | D39: ='[1]Tasa de Falla'!D39 -> PALPALA - JUJUY SUR | E39: ='[1]Tasa de Falla'!E39 -> 132 | F39: ='[1]Tasa de Falla'!F39 -> 14 | G39: =IF('[1]Tasa de Falla'!IK39=0,"",'[1]Tasa de Falla'!IK39) -> XXXX | H39: =IF('[1]Tasa de Falla'!IL39=0,"",'[1]Tasa de Falla'!IL39) -> XXXX | I39: =IF('[1]Tasa de Falla'!IM39=0,"",'[1]Tasa de Falla'!IM39) -> XXXX | J39: =IF('[1]Tasa de Falla'!IN39=0,"",'[1]Tasa de Falla'!IN39) -> XXXX | K39: =IF('[1]Tasa de Falla'!IO39=0,"",'[1]Tasa de Falla'!IO39) -> XXXX | L39: =IF('[1]Tasa de Falla'!IP39=0,"",'[1]Tasa de Falla'!IP39) -> XXXX | M39: =IF('[1]Tasa de Falla'!IQ39=0,"",'[1]Tasa de Falla'!IQ39) -> XXXX | N39: =IF('[1]Tasa de Falla'!IR39=0,"",'[1]Tasa de Falla'!IR39) -> XXXX | O39: =IF('[1]Tasa de Falla'!IS39=0,"",'[1]Tasa de Falla'!IS39) -> XXXX | P39: =IF('[1]Tasa de Falla'!IT39=0,"",'[1]Tasa de Falla'!IT39) -> XXXX | Q39: =IF('[1]Tasa de Falla'!IU39=0,"",'[1]Tasa de Falla'!IU39) -> XXXX | R39: =IF('[1]Tasa de Falla'!IV39=0,"",'[1]Tasa de Falla'!IV39) -> XXXX
C40: ='[1]Tasa de Falla'!C40 -> 24 | D40: ='[1]Tasa de Falla'!D40 -> ORAN - PICHANAL | E40: ='[1]Tasa de Falla'!E40 -> 132 | F40: ='[1]Tasa de Falla'!F40 -> 17 | G40: =IF('[1]Tasa de Falla'!IK40=0,"",'[1]Tasa de Falla'!IK40) -> XXXX | H40: =IF('[1]Tasa de Falla'!IL40=0,"",'[1]Tasa de Falla'!IL40) -> XXXX | I40: =IF('[1]Tasa de Falla'!IM40=0,"",'[1]Tasa de Falla'!IM40) -> XXXX | J40: =IF('[1]Tasa de Falla'!IN40=0,"",'[1]Tasa de Falla'!IN40) -> XXXX | K40: =IF('[1]Tasa de Falla'!IO40=0,"",'[1]Tasa de Falla'!IO40) -> XXXX | L40: =IF('[1]Tasa de Falla'!IP40=0,"",'[1]Tasa de Falla'!IP40) -> XXXX | M40: =IF('[1]Tasa de Falla'!IQ40=0,"",'[1]Tasa de Falla'!IQ40) -> XXXX | N40: =IF('[1]Tasa de Falla'!IR40=0,"",'[1]Tasa de Falla'!IR40) -> XXXX | O40: =IF('[1]Tasa de Falla'!IS40=0,"",'[1]Tasa de Falla'!IS40) -> XXXX | P40: =IF('[1]Tasa de Falla'!IT40=0,"",'[1]Tasa de Falla'!IT40) -> XXXX | Q40: =IF('[1]Tasa de Falla'!IU40=0,"",'[1]Tasa de Falla'!IU40) -> XXXX | R40: =IF('[1]Tasa de Falla'!IV40=0,"",'[1]Tasa de Falla'!IV40) -> XXXX
C41: ='[1]Tasa de Falla'!C41 -> 25 | D41: ='[1]Tasa de Falla'!D41 -> PICHANAL - TARTAGAL | E41: ='[1]Tasa de Falla'!E41 -> 132 | F41: ='[1]Tasa de Falla'!F41 -> 105 | G41: =IF('[1]Tasa de Falla'!IK41=0,"",'[1]Tasa de Falla'!IK41) ->  | H41: =IF('[1]Tasa de Falla'!IL41=0,"",'[1]Tasa de Falla'!IL41) ->  | I41: =IF('[1]Tasa de Falla'!IM41=0,"",'[1]Tasa de Falla'!IM41) ->  | J41: =IF('[1]Tasa de Falla'!IN41=0,"",'[1]Tasa de Falla'!IN41) ->  | K41: =IF('[1]Tasa de Falla'!IO41=0,"",'[1]Tasa de Falla'!IO41) ->  | L41: =IF('[1]Tasa de Falla'!IP41=0,"",'[1]Tasa de Falla'!IP41) ->  | M41: =IF('[1]Tasa de Falla'!IQ41=0,"",'[1]Tasa de Falla'!IQ41) -> 1 | N41: =IF('[1]Tasa de Falla'!IR41=0,"",'[1]Tasa de Falla'!IR41) -> 1 | O41: =IF('[1]Tasa de Falla'!IS41=0,"",'[1]Tasa de Falla'!IS41) ->  | P41: =IF('[1]Tasa de Falla'!IT41=0,"",'[1]Tasa de Falla'!IT41) ->  | Q41: =IF('[1]Tasa de Falla'!IU41=0,"",'[1]Tasa de Falla'!IU41) ->  | R41: =IF('[1]Tasa de Falla'!IV41=0,"",'[1]Tasa de Falla'!IV41) -> XXXX
C42: ='[1]Tasa de Falla'!C42 -> 26 | D42: ='[1]Tasa de Falla'!D42 -> C.H. RIO HONDO - LA BANDA | E42: ='[1]Tasa de Falla'!E42 -> 132 | F42: ='[1]Tasa de Falla'!F42 -> 76.5 | G42: =IF('[1]Tasa de Falla'!IK42=0,"",'[1]Tasa de Falla'!IK42) -> 1 | H42: =IF('[1]Tasa de Falla'!IL42=0,"",'[1]Tasa de Falla'!IL42) -> 1 | I42: =IF('[1]Tasa de Falla'!IM42=0,"",'[1]Tasa de Falla'!IM42) ->  | J42: =IF('[1]Tasa de Falla'!IN42=0,"",'[1]Tasa de Falla'!IN42) ->  | K42: =IF('[1]Tasa de Falla'!IO42=0,"",'[1]Tasa de Falla'!IO42) -> 1 | L42: =IF('[1]Tasa de Falla'!IP42=0,"",'[1]Tasa de Falla'!IP42) -> 1 | M42: =IF('[1]Tasa de Falla'!IQ42=0,"",'[1]Tasa de Falla'!IQ42) ->  | N42: =IF('[1]Tasa de Falla'!IR42=0,"",'[1]Tasa de Falla'!IR42) ->  | O42: =IF('[1]Tasa de Falla'!IS42=0,"",'[1]Tasa de Falla'!IS42) ->  | P42: =IF('[1]Tasa de Falla'!IT42=0,"",'[1]Tasa de Falla'!IT42) -> 2 | Q42: =IF('[1]Tasa de Falla'!IU42=0,"",'[1]Tasa de Falla'!IU42) ->  | R42: =IF('[1]Tasa de Falla'!IV42=0,"",'[1]Tasa de Falla'!IV42) -> 1
C43: ='[1]Tasa de Falla'!C43 -> 27 | D43: ='[1]Tasa de Falla'!D43 -> LA RIOJA - RECREO 2 | E43: ='[1]Tasa de Falla'!E43 -> 132 | F43: ='[1]Tasa de Falla'!F43 -> 220 | G43: =IF('[1]Tasa de Falla'!IK43=0,"",'[1]Tasa de Falla'!IK43) -> XXXX | H43: =IF('[1]Tasa de Falla'!IL43=0,"",'[1]Tasa de Falla'!IL43) -> XXXX | I43: =IF('[1]Tasa de Falla'!IM43=0,"",'[1]Tasa de Falla'!IM43) -> XXXX | J43: =IF('[1]Tasa de Falla'!IN43=0,"",'[1]Tasa de Falla'!IN43) -> XXXX | K43: =IF('[1]Tasa de Falla'!IO43=0,"",'[1]Tasa de Falla'!IO43) -> XXXX | L43: =IF('[1]Tasa de Falla'!IP43=0,"",'[1]Tasa de Falla'!IP43) -> XXXX | M43: =IF('[1]Tasa de Falla'!IQ43=0,"",'[1]Tasa de Falla'!IQ43) -> XXXX | N43: =IF('[1]Tasa de Falla'!IR43=0,"",'[1]Tasa de Falla'!IR43) -> XXXX | O43: =IF('[1]Tasa de Falla'!IS43=0,"",'[1]Tasa de Falla'!IS43) -> XXXX | P43: =IF('[1]Tasa de Falla'!IT43=0,"",'[1]Tasa de Falla'!IT43) -> XXXX | Q43: =IF('[1]Tasa de Falla'!IU43=0,"",'[1]Tasa de Falla'!IU43) -> XXXX | R43: =IF('[1]Tasa de Falla'!IV43=0,"",'[1]Tasa de Falla'!IV43) -> XXXX
C44: ='[1]Tasa de Falla'!C44 -> 28 | D44: ='[1]Tasa de Falla'!D44 -> CAMPO SANTO - SALTA SUR | E44: ='[1]Tasa de Falla'!E44 -> 132 | F44: ='[1]Tasa de Falla'!F44 -> 40.92 | G44: =IF('[1]Tasa de Falla'!IK44=0,"",'[1]Tasa de Falla'!IK44) -> XXXX | H44: =IF('[1]Tasa de Falla'!IL44=0,"",'[1]Tasa de Falla'!IL44) -> XXXX | I44: =IF('[1]Tasa de Falla'!IM44=0,"",'[1]Tasa de Falla'!IM44) -> XXXX | J44: =IF('[1]Tasa de Falla'!IN44=0,"",'[1]Tasa de Falla'!IN44) -> XXXX | K44: =IF('[1]Tasa de Falla'!IO44=0,"",'[1]Tasa de Falla'!IO44) -> XXXX | L44: =IF('[1]Tasa de Falla'!IP44=0,"",'[1]Tasa de Falla'!IP44) -> XXXX | M44: =IF('[1]Tasa de Falla'!IQ44=0,"",'[1]Tasa de Falla'!IQ44) -> XXXX | N44: =IF('[1]Tasa de Falla'!IR44=0,"",'[1]Tasa de Falla'!IR44) -> XXXX | O44: =IF('[1]Tasa de Falla'!IS44=0,"",'[1]Tasa de Falla'!IS44) -> XXXX | P44: =IF('[1]Tasa de Falla'!IT44=0,"",'[1]Tasa de Falla'!IT44) -> XXXX | Q44: =IF('[1]Tasa de Falla'!IU44=0,"",'[1]Tasa de Falla'!IU44) -> XXXX | R44: =IF('[1]Tasa de Falla'!IV44=0,"",'[1]Tasa de Falla'!IV44) -> XXXX
C45: ='[1]Tasa de Falla'!C45 -> 29 | D45: ='[1]Tasa de Falla'!D45 -> PALPALA - SAN JUANCITO | E45: ='[1]Tasa de Falla'!E45 -> 132 | F45: ='[1]Tasa de Falla'!F45 -> 23.9 | G45: =IF('[1]Tasa de Falla'!IK45=0,"",'[1]Tasa de Falla'!IK45) ->  | H45: =IF('[1]Tasa de Falla'!IL45=0,"",'[1]Tasa de Falla'!IL45) ->  | I45: =IF('[1]Tasa de Falla'!IM45=0,"",'[1]Tasa de Falla'!IM45) ->  | J45: =IF('[1]Tasa de Falla'!IN45=0,"",'[1]Tasa de Falla'!IN45) ->  | K45: =IF('[1]Tasa de Falla'!IO45=0,"",'[1]Tasa de Falla'!IO45) ->  | L45: =IF('[1]Tasa de Falla'!IP45=0,"",'[1]Tasa de Falla'!IP45) ->  | M45: =IF('[1]Tasa de Falla'!IQ45=0,"",'[1]Tasa de Falla'!IQ45) ->  | N45: =IF('[1]Tasa de Falla'!IR45=0,"",'[1]Tasa de Falla'!IR45) ->  | O45: =IF('[1]Tasa de Falla'!IS45=0,"",'[1]Tasa de Falla'!IS45) ->  | P45: =IF('[1]Tasa de Falla'!IT45=0,"",'[1]Tasa de Falla'!IT45) -> 2 | Q45: =IF('[1]Tasa de Falla'!IU45=0,"",'[1]Tasa de Falla'!IU45) ->  | R45: =IF('[1]Tasa de Falla'!IV45=0,"",'[1]Tasa de Falla'!IV45) -> 
C46: ='[1]Tasa de Falla'!C46 -> 30 | D46: ='[1]Tasa de Falla'!D46 -> SAN JUANCITO - SAN PEDRO JUJUY | E46: ='[1]Tasa de Falla'!E46 -> 132 | F46: ='[1]Tasa de Falla'!F46 -> 27 | G46: =IF('[1]Tasa de Falla'!IK46=0,"",'[1]Tasa de Falla'!IK46) ->  | H46: =IF('[1]Tasa de Falla'!IL46=0,"",'[1]Tasa de Falla'!IL46) ->  | I46: =IF('[1]Tasa de Falla'!IM46=0,"",'[1]Tasa de Falla'!IM46) ->  | J46: =IF('[1]Tasa de Falla'!IN46=0,"",'[1]Tasa de Falla'!IN46) ->  | K46: =IF('[1]Tasa de Falla'!IO46=0,"",'[1]Tasa de Falla'!IO46) ->  | L46: =IF('[1]Tasa de Falla'!IP46=0,"",'[1]Tasa de Falla'!IP46) ->  | M46: =IF('[1]Tasa de Falla'!IQ46=0,"",'[1]Tasa de Falla'!IQ46) ->  | N46: =IF('[1]Tasa de Falla'!IR46=0,"",'[1]Tasa de Falla'!IR46) ->  | O46: =IF('[1]Tasa de Falla'!IS46=0,"",'[1]Tasa de Falla'!IS46) ->  | P46: =IF('[1]Tasa de Falla'!IT46=0,"",'[1]Tasa de Falla'!IT46) ->  | Q46: =IF('[1]Tasa de Falla'!IU46=0,"",'[1]Tasa de Falla'!IU46) ->  | R46: =IF('[1]Tasa de Falla'!IV46=0,"",'[1]Tasa de Falla'!IV46) -> 
C47: ='[1]Tasa de Falla'!C47 -> 31 | D47: ='[1]Tasa de Falla'!D47 -> SAN MARTIN - CATAMARCA | E47: ='[1]Tasa de Falla'!E47 -> 132 | F47: ='[1]Tasa de Falla'!F47 -> 88 | G47: =IF('[1]Tasa de Falla'!IK47=0,"",'[1]Tasa de Falla'!IK47) -> XXXX | H47: =IF('[1]Tasa de Falla'!IL47=0,"",'[1]Tasa de Falla'!IL47) -> XXXX | I47: =IF('[1]Tasa de Falla'!IM47=0,"",'[1]Tasa de Falla'!IM47) -> XXXX | J47: =IF('[1]Tasa de Falla'!IN47=0,"",'[1]Tasa de Falla'!IN47) -> XXXX | K47: =IF('[1]Tasa de Falla'!IO47=0,"",'[1]Tasa de Falla'!IO47) -> XXXX | L47: =IF('[1]Tasa de Falla'!IP47=0,"",'[1]Tasa de Falla'!IP47) -> XXXX | M47: =IF('[1]Tasa de Falla'!IQ47=0,"",'[1]Tasa de Falla'!IQ47) -> XXXX | N47: =IF('[1]Tasa de Falla'!IR47=0,"",'[1]Tasa de Falla'!IR47) -> XXXX | O47: =IF('[1]Tasa de Falla'!IS47=0,"",'[1]Tasa de Falla'!IS47) -> XXXX | P47: =IF('[1]Tasa de Falla'!IT47=0,"",'[1]Tasa de Falla'!IT47) -> XXXX | Q47: =IF('[1]Tasa de Falla'!IU47=0,"",'[1]Tasa de Falla'!IU47) -> XXXX | R47: =IF('[1]Tasa de Falla'!IV47=0,"",'[1]Tasa de Falla'!IV47) -> XXXX
C48: ='[1]Tasa de Falla'!C48 -> 32 | D48: ='[1]Tasa de Falla'!D48 -> SAN MARTIN - RECREO | E48: ='[1]Tasa de Falla'!E48 -> 132 | F48: ='[1]Tasa de Falla'!F48 -> 115 | G48: =IF('[1]Tasa de Falla'!IK48=0,"",'[1]Tasa de Falla'!IK48) -> XXXX | H48: =IF('[1]Tasa de Falla'!IL48=0,"",'[1]Tasa de Falla'!IL48) -> XXXX | I48: =IF('[1]Tasa de Falla'!IM48=0,"",'[1]Tasa de Falla'!IM48) -> XXXX | J48: =IF('[1]Tasa de Falla'!IN48=0,"",'[1]Tasa de Falla'!IN48) -> XXXX | K48: =IF('[1]Tasa de Falla'!IO48=0,"",'[1]Tasa de Falla'!IO48) -> XXXX | L48: =IF('[1]Tasa de Falla'!IP48=0,"",'[1]Tasa de Falla'!IP48) -> XXXX | M48: =IF('[1]Tasa de Falla'!IQ48=0,"",'[1]Tasa de Falla'!IQ48) -> XXXX | N48: =IF('[1]Tasa de Falla'!IR48=0,"",'[1]Tasa de Falla'!IR48) -> XXXX | O48: =IF('[1]Tasa de Falla'!IS48=0,"",'[1]Tasa de Falla'!IS48) -> XXXX | P48: =IF('[1]Tasa de Falla'!IT48=0,"",'[1]Tasa de Falla'!IT48) -> XXXX | Q48: =IF('[1]Tasa de Falla'!IU48=0,"",'[1]Tasa de Falla'!IU48) -> XXXX | R48: =IF('[1]Tasa de Falla'!IV48=0,"",'[1]Tasa de Falla'!IV48) -> XXXX
C49: ='[1]Tasa de Falla'!C49 -> 33 | D49: ='[1]Tasa de Falla'!D49 -> SAN MARTIN C. - LA RIOJA | E49: ='[1]Tasa de Falla'!E49 -> 132 | F49: ='[1]Tasa de Falla'!F49 -> 105 | G49: =IF('[1]Tasa de Falla'!IK49=0,"",'[1]Tasa de Falla'!IK49) -> XXXX | H49: =IF('[1]Tasa de Falla'!IL49=0,"",'[1]Tasa de Falla'!IL49) -> XXXX | I49: =IF('[1]Tasa de Falla'!IM49=0,"",'[1]Tasa de Falla'!IM49) -> XXXX | J49: =IF('[1]Tasa de Falla'!IN49=0,"",'[1]Tasa de Falla'!IN49) -> XXXX | K49: =IF('[1]Tasa de Falla'!IO49=0,"",'[1]Tasa de Falla'!IO49) -> XXXX | L49: =IF('[1]Tasa de Falla'!IP49=0,"",'[1]Tasa de Falla'!IP49) -> XXXX | M49: =IF('[1]Tasa de Falla'!IQ49=0,"",'[1]Tasa de Falla'!IQ49) -> XXXX | N49: =IF('[1]Tasa de Falla'!IR49=0,"",'[1]Tasa de Falla'!IR49) -> XXXX | O49: =IF('[1]Tasa de Falla'!IS49=0,"",'[1]Tasa de Falla'!IS49) -> XXXX | P49: =IF('[1]Tasa de Falla'!IT49=0,"",'[1]Tasa de Falla'!IT49) -> XXXX | Q49: =IF('[1]Tasa de Falla'!IU49=0,"",'[1]Tasa de Falla'!IU49) -> XXXX | R49: =IF('[1]Tasa de Falla'!IV49=0,"",'[1]Tasa de Falla'!IV49) -> XXXX
C50: ='[1]Tasa de Falla'!C50 -> 34 | D50: ='[1]Tasa de Falla'!D50 -> SAN PEDRO JUJUY - LIBERTADOR NOA. | E50: ='[1]Tasa de Falla'!E50 -> 132 | F50: ='[1]Tasa de Falla'!F50 -> 49 | G50: =IF('[1]Tasa de Falla'!IK50=0,"",'[1]Tasa de Falla'!IK50) ->  | H50: =IF('[1]Tasa de Falla'!IL50=0,"",'[1]Tasa de Falla'!IL50) ->  | I50: =IF('[1]Tasa de Falla'!IM50=0,"",'[1]Tasa de Falla'!IM50) ->  | J50: =IF('[1]Tasa de Falla'!IN50=0,"",'[1]Tasa de Falla'!IN50) ->  | K50: =IF('[1]Tasa de Falla'!IO50=0,"",'[1]Tasa de Falla'!IO50) ->  | L50: =IF('[1]Tasa de Falla'!IP50=0,"",'[1]Tasa de Falla'!IP50) ->  | M50: =IF('[1]Tasa de Falla'!IQ50=0,"",'[1]Tasa de Falla'!IQ50) ->  | N50: =IF('[1]Tasa de Falla'!IR50=0,"",'[1]Tasa de Falla'!IR50) -> 1 | O50: =IF('[1]Tasa de Falla'!IS50=0,"",'[1]Tasa de Falla'!IS50) ->  | P50: =IF('[1]Tasa de Falla'!IT50=0,"",'[1]Tasa de Falla'!IT50) ->  | Q50: =IF('[1]Tasa de Falla'!IU50=0,"",'[1]Tasa de Falla'!IU50) ->  | R50: =IF('[1]Tasa de Falla'!IV50=0,"",'[1]Tasa de Falla'!IV50) -> 
C51: ='[1]Tasa de Falla'!C51 -> 35 | D51: ='[1]Tasa de Falla'!D51 -> TUCUMAN NORTE - EL BRACHO | E51: ='[1]Tasa de Falla'!E51 -> 132 | F51: ='[1]Tasa de Falla'!F51 -> 31.5 | G51: =IF('[1]Tasa de Falla'!IK51=0,"",'[1]Tasa de Falla'!IK51) ->  | H51: =IF('[1]Tasa de Falla'!IL51=0,"",'[1]Tasa de Falla'!IL51) ->  | I51: =IF('[1]Tasa de Falla'!IM51=0,"",'[1]Tasa de Falla'!IM51) ->  | J51: =IF('[1]Tasa de Falla'!IN51=0,"",'[1]Tasa de Falla'!IN51) ->  | K51: =IF('[1]Tasa de Falla'!IO51=0,"",'[1]Tasa de Falla'!IO51) ->  | L51: =IF('[1]Tasa de Falla'!IP51=0,"",'[1]Tasa de Falla'!IP51) ->  | M51: =IF('[1]Tasa de Falla'!IQ51=0,"",'[1]Tasa de Falla'!IQ51) ->  | N51: =IF('[1]Tasa de Falla'!IR51=0,"",'[1]Tasa de Falla'!IR51) -> 1 | O51: =IF('[1]Tasa de Falla'!IS51=0,"",'[1]Tasa de Falla'!IS51) ->  | P51: =IF('[1]Tasa de Falla'!IT51=0,"",'[1]Tasa de Falla'!IT51) ->  | Q51: =IF('[1]Tasa de Falla'!IU51=0,"",'[1]Tasa de Falla'!IU51) ->  | R51: =IF('[1]Tasa de Falla'!IV51=0,"",'[1]Tasa de Falla'!IV51) -> 
C52: ='[1]Tasa de Falla'!C52 -> 36 | D52: ='[1]Tasa de Falla'!D52 -> C.H. EL CADILLAL - TUCUMAN NORTE | E52: ='[1]Tasa de Falla'!E52 -> 132 | F52: ='[1]Tasa de Falla'!F52 -> 21.8 | G52: =IF('[1]Tasa de Falla'!IK52=0,"",'[1]Tasa de Falla'!IK52) -> 1 | H52: =IF('[1]Tasa de Falla'!IL52=0,"",'[1]Tasa de Falla'!IL52) ->  | I52: =IF('[1]Tasa de Falla'!IM52=0,"",'[1]Tasa de Falla'!IM52) ->  | J52: =IF('[1]Tasa de Falla'!IN52=0,"",'[1]Tasa de Falla'!IN52) ->  | K52: =IF('[1]Tasa de Falla'!IO52=0,"",'[1]Tasa de Falla'!IO52) ->  | L52: =IF('[1]Tasa de Falla'!IP52=0,"",'[1]Tasa de Falla'!IP52) ->  | M52: =IF('[1]Tasa de Falla'!IQ52=0,"",'[1]Tasa de Falla'!IQ52) ->  | N52: =IF('[1]Tasa de Falla'!IR52=0,"",'[1]Tasa de Falla'!IR52) ->  | O52: =IF('[1]Tasa de Falla'!IS52=0,"",'[1]Tasa de Falla'!IS52) ->  | P52: =IF('[1]Tasa de Falla'!IT52=0,"",'[1]Tasa de Falla'!IT52) -> 1 | Q52: =IF('[1]Tasa de Falla'!IU52=0,"",'[1]Tasa de Falla'!IU52) -> 2 | R52: =IF('[1]Tasa de Falla'!IV52=0,"",'[1]Tasa de Falla'!IV52) -> 
C53: ='[1]Tasa de Falla'!C53 -> 37 | D53: ='[1]Tasa de Falla'!D53 -> TUCUMAN NORTE - CABRA CORRAL | E53: ='[1]Tasa de Falla'!E53 -> 132 | F53: ='[1]Tasa de Falla'!F53 -> 190 | G53: =IF('[1]Tasa de Falla'!IK53=0,"",'[1]Tasa de Falla'!IK53) -> XXXX | H53: =IF('[1]Tasa de Falla'!IL53=0,"",'[1]Tasa de Falla'!IL53) -> XXXX | I53: =IF('[1]Tasa de Falla'!IM53=0,"",'[1]Tasa de Falla'!IM53) -> XXXX | J53: =IF('[1]Tasa de Falla'!IN53=0,"",'[1]Tasa de Falla'!IN53) -> XXXX | K53: =IF('[1]Tasa de Falla'!IO53=0,"",'[1]Tasa de Falla'!IO53) -> XXXX | L53: =IF('[1]Tasa de Falla'!IP53=0,"",'[1]Tasa de Falla'!IP53) -> XXXX | M53: =IF('[1]Tasa de Falla'!IQ53=0,"",'[1]Tasa de Falla'!IQ53) -> XXXX | N53: =IF('[1]Tasa de Falla'!IR53=0,"",'[1]Tasa de Falla'!IR53) -> XXXX | O53: =IF('[1]Tasa de Falla'!IS53=0,"",'[1]Tasa de Falla'!IS53) -> XXXX | P53: =IF('[1]Tasa de Falla'!IT53=0,"",'[1]Tasa de Falla'!IT53) -> XXXX | Q53: =IF('[1]Tasa de Falla'!IU53=0,"",'[1]Tasa de Falla'!IU53) -> XXXX | R53: =IF('[1]Tasa de Falla'!IV53=0,"",'[1]Tasa de Falla'!IV53) -> XXXX
C54: ='[1]Tasa de Falla'!C54 -> 38 | D54: ='[1]Tasa de Falla'!D54 -> METAN - TUCUMAN NORTE | E54: ='[1]Tasa de Falla'!E54 -> 132 | F54: ='[1]Tasa de Falla'!F54 -> 155.6 | G54: =IF('[1]Tasa de Falla'!IK54=0,"",'[1]Tasa de Falla'!IK54) ->  | H54: =IF('[1]Tasa de Falla'!IL54=0,"",'[1]Tasa de Falla'!IL54) ->  | I54: =IF('[1]Tasa de Falla'!IM54=0,"",'[1]Tasa de Falla'!IM54) ->  | J54: =IF('[1]Tasa de Falla'!IN54=0,"",'[1]Tasa de Falla'!IN54) ->  | K54: =IF('[1]Tasa de Falla'!IO54=0,"",'[1]Tasa de Falla'!IO54) ->  | L54: =IF('[1]Tasa de Falla'!IP54=0,"",'[1]Tasa de Falla'!IP54) ->  | M54: =IF('[1]Tasa de Falla'!IQ54=0,"",'[1]Tasa de Falla'!IQ54) ->  | N54: =IF('[1]Tasa de Falla'!IR54=0,"",'[1]Tasa de Falla'!IR54) -> 1 | O54: =IF('[1]Tasa de Falla'!IS54=0,"",'[1]Tasa de Falla'!IS54) -> 1 | P54: =IF('[1]Tasa de Falla'!IT54=0,"",'[1]Tasa de Falla'!IT54) -> 1 | Q54: =IF('[1]Tasa de Falla'!IU54=0,"",'[1]Tasa de Falla'!IU54) ->  | R54: =IF('[1]Tasa de Falla'!IV54=0,"",'[1]Tasa de Falla'!IV54) -> 
C55: ='[1]Tasa de Falla'!C55 -> 39 | D55: ='[1]Tasa de Falla'!D55 -> SARMIENTO - TUCUMAN NORTE (O.F.) | E55: ='[1]Tasa de Falla'!E55 -> 132 | F55: ='[1]Tasa de Falla'!F55 -> 3.3 | G55: =IF('[1]Tasa de Falla'!IK55=0,"",'[1]Tasa de Falla'!IK55) ->  | H55: =IF('[1]Tasa de Falla'!IL55=0,"",'[1]Tasa de Falla'!IL55) ->  | I55: =IF('[1]Tasa de Falla'!IM55=0,"",'[1]Tasa de Falla'!IM55) ->  | J55: =IF('[1]Tasa de Falla'!IN55=0,"",'[1]Tasa de Falla'!IN55) ->  | K55: =IF('[1]Tasa de Falla'!IO55=0,"",'[1]Tasa de Falla'!IO55) ->  | L55: =IF('[1]Tasa de Falla'!IP55=0,"",'[1]Tasa de Falla'!IP55) ->  | M55: =IF('[1]Tasa de Falla'!IQ55=0,"",'[1]Tasa de Falla'!IQ55) ->  | N55: =IF('[1]Tasa de Falla'!IR55=0,"",'[1]Tasa de Falla'!IR55) ->  | O55: =IF('[1]Tasa de Falla'!IS55=0,"",'[1]Tasa de Falla'!IS55) ->  | P55: =IF('[1]Tasa de Falla'!IT55=0,"",'[1]Tasa de Falla'!IT55) ->  | Q55: =IF('[1]Tasa de Falla'!IU55=0,"",'[1]Tasa de Falla'!IU55) ->  | R55: =IF('[1]Tasa de Falla'!IV55=0,"",'[1]Tasa de Falla'!IV55) -> 
C56: ='[1]Tasa de Falla'!C56 -> 40 | D56: ='[1]Tasa de Falla'!D56 -> TUCUMAN OESTE - TUCUMAN NORTE | E56: ='[1]Tasa de Falla'!E56 -> 132 | F56: ='[1]Tasa de Falla'!F56 -> 7 | G56: =IF('[1]Tasa de Falla'!IK56=0,"",'[1]Tasa de Falla'!IK56) ->  | H56: =IF('[1]Tasa de Falla'!IL56=0,"",'[1]Tasa de Falla'!IL56) ->  | I56: =IF('[1]Tasa de Falla'!IM56=0,"",'[1]Tasa de Falla'!IM56) -> 2 | J56: =IF('[1]Tasa de Falla'!IN56=0,"",'[1]Tasa de Falla'!IN56) ->  | K56: =IF('[1]Tasa de Falla'!IO56=0,"",'[1]Tasa de Falla'!IO56) -> 1 | L56: =IF('[1]Tasa de Falla'!IP56=0,"",'[1]Tasa de Falla'!IP56) ->  | M56: =IF('[1]Tasa de Falla'!IQ56=0,"",'[1]Tasa de Falla'!IQ56) ->  | N56: =IF('[1]Tasa de Falla'!IR56=0,"",'[1]Tasa de Falla'!IR56) -> 1 | O56: =IF('[1]Tasa de Falla'!IS56=0,"",'[1]Tasa de Falla'!IS56) ->  | P56: =IF('[1]Tasa de Falla'!IT56=0,"",'[1]Tasa de Falla'!IT56) ->  | Q56: =IF('[1]Tasa de Falla'!IU56=0,"",'[1]Tasa de Falla'!IU56) ->  | R56: =IF('[1]Tasa de Falla'!IV56=0,"",'[1]Tasa de Falla'!IV56) -> 
C57: ='[1]Tasa de Falla'!C57 -> 41 | D57: ='[1]Tasa de Falla'!D57 -> AGUILARES - VILLA QUINTEROS | E57: ='[1]Tasa de Falla'!E57 -> 132 | F57: ='[1]Tasa de Falla'!F57 -> 21 | G57: =IF('[1]Tasa de Falla'!IK57=0,"",'[1]Tasa de Falla'!IK57) ->  | H57: =IF('[1]Tasa de Falla'!IL57=0,"",'[1]Tasa de Falla'!IL57) ->  | I57: =IF('[1]Tasa de Falla'!IM57=0,"",'[1]Tasa de Falla'!IM57) ->  | J57: =IF('[1]Tasa de Falla'!IN57=0,"",'[1]Tasa de Falla'!IN57) ->  | K57: =IF('[1]Tasa de Falla'!IO57=0,"",'[1]Tasa de Falla'!IO57) ->  | L57: =IF('[1]Tasa de Falla'!IP57=0,"",'[1]Tasa de Falla'!IP57) ->  | M57: =IF('[1]Tasa de Falla'!IQ57=0,"",'[1]Tasa de Falla'!IQ57) ->  | N57: =IF('[1]Tasa de Falla'!IR57=0,"",'[1]Tasa de Falla'!IR57) ->  | O57: =IF('[1]Tasa de Falla'!IS57=0,"",'[1]Tasa de Falla'!IS57) ->  | P57: =IF('[1]Tasa de Falla'!IT57=0,"",'[1]Tasa de Falla'!IT57) ->  | Q57: =IF('[1]Tasa de Falla'!IU57=0,"",'[1]Tasa de Falla'!IU57) ->  | R57: =IF('[1]Tasa de Falla'!IV57=0,"",'[1]Tasa de Falla'!IV57) -> 
C58: ='[1]Tasa de Falla'!C58 -> 42 | D58: ='[1]Tasa de Falla'!D58 -> C.H. PUEBLO VIEJO - VILLA QUINTEROS | E58: ='[1]Tasa de Falla'!E58 -> 132 | F58: ='[1]Tasa de Falla'!F58 -> 24.5 | G58: =IF('[1]Tasa de Falla'!IK58=0,"",'[1]Tasa de Falla'!IK58) ->  | H58: =IF('[1]Tasa de Falla'!IL58=0,"",'[1]Tasa de Falla'!IL58) ->  | I58: =IF('[1]Tasa de Falla'!IM58=0,"",'[1]Tasa de Falla'!IM58) ->  | J58: =IF('[1]Tasa de Falla'!IN58=0,"",'[1]Tasa de Falla'!IN58) -> 1 | K58: =IF('[1]Tasa de Falla'!IO58=0,"",'[1]Tasa de Falla'!IO58) ->  | L58: =IF('[1]Tasa de Falla'!IP58=0,"",'[1]Tasa de Falla'!IP58) ->  | M58: =IF('[1]Tasa de Falla'!IQ58=0,"",'[1]Tasa de Falla'!IQ58) ->  | N58: =IF('[1]Tasa de Falla'!IR58=0,"",'[1]Tasa de Falla'!IR58) -> 3 | O58: =IF('[1]Tasa de Falla'!IS58=0,"",'[1]Tasa de Falla'!IS58) ->  | P58: =IF('[1]Tasa de Falla'!IT58=0,"",'[1]Tasa de Falla'!IT58) ->  | Q58: =IF('[1]Tasa de Falla'!IU58=0,"",'[1]Tasa de Falla'!IU58) ->  | R58: =IF('[1]Tasa de Falla'!IV58=0,"",'[1]Tasa de Falla'!IV58) -> 1
C59: ='[1]Tasa de Falla'!C59 -> 43 | D59: ='[1]Tasa de Falla'!D59 -> C.H. RIO HONDO - VILLA QUINTEROS | E59: ='[1]Tasa de Falla'!E59 -> 132 | F59: ='[1]Tasa de Falla'!F59 -> 75.4 | G59: =IF('[1]Tasa de Falla'!IK59=0,"",'[1]Tasa de Falla'!IK59) ->  | H59: =IF('[1]Tasa de Falla'!IL59=0,"",'[1]Tasa de Falla'!IL59) ->  | I59: =IF('[1]Tasa de Falla'!IM59=0,"",'[1]Tasa de Falla'!IM59) ->  | J59: =IF('[1]Tasa de Falla'!IN59=0,"",'[1]Tasa de Falla'!IN59) ->  | K59: =IF('[1]Tasa de Falla'!IO59=0,"",'[1]Tasa de Falla'!IO59) ->  | L59: =IF('[1]Tasa de Falla'!IP59=0,"",'[1]Tasa de Falla'!IP59) ->  | M59: =IF('[1]Tasa de Falla'!IQ59=0,"",'[1]Tasa de Falla'!IQ59) ->  | N59: =IF('[1]Tasa de Falla'!IR59=0,"",'[1]Tasa de Falla'!IR59) ->  | O59: =IF('[1]Tasa de Falla'!IS59=0,"",'[1]Tasa de Falla'!IS59) ->  | P59: =IF('[1]Tasa de Falla'!IT59=0,"",'[1]Tasa de Falla'!IT59) ->  | Q59: =IF('[1]Tasa de Falla'!IU59=0,"",'[1]Tasa de Falla'!IU59) ->  | R59: =IF('[1]Tasa de Falla'!IV59=0,"",'[1]Tasa de Falla'!IV59) -> 
C60: ='[1]Tasa de Falla'!C60 -> 44 | D60: ='[1]Tasa de Falla'!D60 -> C.H. RIO HONDO - SANTIAGO CENTRO | E60: ='[1]Tasa de Falla'!E60 -> 132 | F60: ='[1]Tasa de Falla'!F60 -> 79 | G60: =IF('[1]Tasa de Falla'!IK60=0,"",'[1]Tasa de Falla'!IK60) -> XXXX | H60: =IF('[1]Tasa de Falla'!IL60=0,"",'[1]Tasa de Falla'!IL60) -> XXXX | I60: =IF('[1]Tasa de Falla'!IM60=0,"",'[1]Tasa de Falla'!IM60) -> XXXX | J60: =IF('[1]Tasa de Falla'!IN60=0,"",'[1]Tasa de Falla'!IN60) -> XXXX | K60: =IF('[1]Tasa de Falla'!IO60=0,"",'[1]Tasa de Falla'!IO60) -> XXXX | L60: =IF('[1]Tasa de Falla'!IP60=0,"",'[1]Tasa de Falla'!IP60) -> XXXX | M60: =IF('[1]Tasa de Falla'!IQ60=0,"",'[1]Tasa de Falla'!IQ60) -> XXXX | N60: =IF('[1]Tasa de Falla'!IR60=0,"",'[1]Tasa de Falla'!IR60) -> XXXX | O60: =IF('[1]Tasa de Falla'!IS60=0,"",'[1]Tasa de Falla'!IS60) -> XXXX | P60: =IF('[1]Tasa de Falla'!IT60=0,"",'[1]Tasa de Falla'!IT60) -> XXXX | Q60: =IF('[1]Tasa de Falla'!IU60=0,"",'[1]Tasa de Falla'!IU60) -> XXXX | R60: =IF('[1]Tasa de Falla'!IV60=0,"",'[1]Tasa de Falla'!IV60) -> XXXX
C61: ='[1]Tasa de Falla'!C61 -> 45 | D61: ='[1]Tasa de Falla'!D61 -> C.H. RIO HONDO - EL BRACHO | E61: ='[1]Tasa de Falla'!E61 -> 132 | F61: ='[1]Tasa de Falla'!F61 -> 80.66 | G61: =IF('[1]Tasa de Falla'!IK61=0,"",'[1]Tasa de Falla'!IK61) ->  | H61: =IF('[1]Tasa de Falla'!IL61=0,"",'[1]Tasa de Falla'!IL61) ->  | I61: =IF('[1]Tasa de Falla'!IM61=0,"",'[1]Tasa de Falla'!IM61) ->  | J61: =IF('[1]Tasa de Falla'!IN61=0,"",'[1]Tasa de Falla'!IN61) ->  | K61: =IF('[1]Tasa de Falla'!IO61=0,"",'[1]Tasa de Falla'!IO61) ->  | L61: =IF('[1]Tasa de Falla'!IP61=0,"",'[1]Tasa de Falla'!IP61) ->  | M61: =IF('[1]Tasa de Falla'!IQ61=0,"",'[1]Tasa de Falla'!IQ61) ->  | N61: =IF('[1]Tasa de Falla'!IR61=0,"",'[1]Tasa de Falla'!IR61) ->  | O61: =IF('[1]Tasa de Falla'!IS61=0,"",'[1]Tasa de Falla'!IS61) -> XXXX | P61: =IF('[1]Tasa de Falla'!IT61=0,"",'[1]Tasa de Falla'!IT61) -> XXXX | Q61: =IF('[1]Tasa de Falla'!IU61=0,"",'[1]Tasa de Falla'!IU61) -> XXXX | R61: =IF('[1]Tasa de Falla'!IV61=0,"",'[1]Tasa de Falla'!IV61) -> XXXX
C62: ='[1]Tasa de Falla'!C62 -> 46 | D62: ='[1]Tasa de Falla'!D62 -> SALTA SUR - SALTA NORTE | E62: ='[1]Tasa de Falla'!E62 -> 132 | F62: ='[1]Tasa de Falla'!F62 -> 10 | G62: =IF('[1]Tasa de Falla'!IK62=0,"",'[1]Tasa de Falla'!IK62) ->  | H62: =IF('[1]Tasa de Falla'!IL62=0,"",'[1]Tasa de Falla'!IL62) ->  | I62: =IF('[1]Tasa de Falla'!IM62=0,"",'[1]Tasa de Falla'!IM62) ->  | J62: =IF('[1]Tasa de Falla'!IN62=0,"",'[1]Tasa de Falla'!IN62) ->  | K62: =IF('[1]Tasa de Falla'!IO62=0,"",'[1]Tasa de Falla'!IO62) ->  | L62: =IF('[1]Tasa de Falla'!IP62=0,"",'[1]Tasa de Falla'!IP62) ->  | M62: =IF('[1]Tasa de Falla'!IQ62=0,"",'[1]Tasa de Falla'!IQ62) ->  | N62: =IF('[1]Tasa de Falla'!IR62=0,"",'[1]Tasa de Falla'!IR62) ->  | O62: =IF('[1]Tasa de Falla'!IS62=0,"",'[1]Tasa de Falla'!IS62) ->  | P62: =IF('[1]Tasa de Falla'!IT62=0,"",'[1]Tasa de Falla'!IT62) ->  | Q62: =IF('[1]Tasa de Falla'!IU62=0,"",'[1]Tasa de Falla'!IU62) ->  | R62: =IF('[1]Tasa de Falla'!IV62=0,"",'[1]Tasa de Falla'!IV62) -> 
C63: ='[1]Tasa de Falla'!C63 -> 47 | D63: ='[1]Tasa de Falla'!D63 -> PALPALA - JUJUY ESTE | E63: ='[1]Tasa de Falla'!E63 -> 132 | F63: ='[1]Tasa de Falla'!F63 -> 12.3 | G63: =IF('[1]Tasa de Falla'!IK63=0,"",'[1]Tasa de Falla'!IK63) ->  | H63: =IF('[1]Tasa de Falla'!IL63=0,"",'[1]Tasa de Falla'!IL63) ->  | I63: =IF('[1]Tasa de Falla'!IM63=0,"",'[1]Tasa de Falla'!IM63) ->  | J63: =IF('[1]Tasa de Falla'!IN63=0,"",'[1]Tasa de Falla'!IN63) ->  | K63: =IF('[1]Tasa de Falla'!IO63=0,"",'[1]Tasa de Falla'!IO63) ->  | L63: =IF('[1]Tasa de Falla'!IP63=0,"",'[1]Tasa de Falla'!IP63) ->  | M63: =IF('[1]Tasa de Falla'!IQ63=0,"",'[1]Tasa de Falla'!IQ63) ->  | N63: =IF('[1]Tasa de Falla'!IR63=0,"",'[1]Tasa de Falla'!IR63) ->  | O63: =IF('[1]Tasa de Falla'!IS63=0,"",'[1]Tasa de Falla'!IS63) ->  | P63: =IF('[1]Tasa de Falla'!IT63=0,"",'[1]Tasa de Falla'!IT63) -> 1 | Q63: =IF('[1]Tasa de Falla'!IU63=0,"",'[1]Tasa de Falla'!IU63) ->  | R63: =IF('[1]Tasa de Falla'!IV63=0,"",'[1]Tasa de Falla'!IV63) -> 
C64: ='[1]Tasa de Falla'!C64 -> 48 | D64: ='[1]Tasa de Falla'!D64 -> JUJUY ESTE - JUJUY SUR | E64: ='[1]Tasa de Falla'!E64 -> 132 | F64: ='[1]Tasa de Falla'!F64 -> 4.3 | G64: =IF('[1]Tasa de Falla'!IK64=0,"",'[1]Tasa de Falla'!IK64) ->  | H64: =IF('[1]Tasa de Falla'!IL64=0,"",'[1]Tasa de Falla'!IL64) -> 1 | I64: =IF('[1]Tasa de Falla'!IM64=0,"",'[1]Tasa de Falla'!IM64) ->  | J64: =IF('[1]Tasa de Falla'!IN64=0,"",'[1]Tasa de Falla'!IN64) ->  | K64: =IF('[1]Tasa de Falla'!IO64=0,"",'[1]Tasa de Falla'!IO64) ->  | L64: =IF('[1]Tasa de Falla'!IP64=0,"",'[1]Tasa de Falla'!IP64) ->  | M64: =IF('[1]Tasa de Falla'!IQ64=0,"",'[1]Tasa de Falla'!IQ64) ->  | N64: =IF('[1]Tasa de Falla'!IR64=0,"",'[1]Tasa de Falla'!IR64) ->  | O64: =IF('[1]Tasa de Falla'!IS64=0,"",'[1]Tasa de Falla'!IS64) ->  | P64: =IF('[1]Tasa de Falla'!IT64=0,"",'[1]Tasa de Falla'!IT64) ->  | Q64: =IF('[1]Tasa de Falla'!IU64=0,"",'[1]Tasa de Falla'!IU64) ->  | R64: =IF('[1]Tasa de Falla'!IV64=0,"",'[1]Tasa de Falla'!IV64) -> 
C65: ='[1]Tasa de Falla'!C65 -> 49 | D65: ='[1]Tasa de Falla'!D65 -> CEVIL POZO - GUEMES | E65: ='[1]Tasa de Falla'!E65 -> 132 | F65: ='[1]Tasa de Falla'!F65 -> 291 | G65: =IF('[1]Tasa de Falla'!IK65=0,"",'[1]Tasa de Falla'!IK65) -> XXXX | H65: =IF('[1]Tasa de Falla'!IL65=0,"",'[1]Tasa de Falla'!IL65) -> XXXX | I65: =IF('[1]Tasa de Falla'!IM65=0,"",'[1]Tasa de Falla'!IM65) -> XXXX | J65: =IF('[1]Tasa de Falla'!IN65=0,"",'[1]Tasa de Falla'!IN65) -> XXXX | K65: =IF('[1]Tasa de Falla'!IO65=0,"",'[1]Tasa de Falla'!IO65) -> XXXX | L65: =IF('[1]Tasa de Falla'!IP65=0,"",'[1]Tasa de Falla'!IP65) -> XXXX | M65: =IF('[1]Tasa de Falla'!IQ65=0,"",'[1]Tasa de Falla'!IQ65) -> XXXX | N65: =IF('[1]Tasa de Falla'!IR65=0,"",'[1]Tasa de Falla'!IR65) -> XXXX | O65: =IF('[1]Tasa de Falla'!IS65=0,"",'[1]Tasa de Falla'!IS65) -> XXXX | P65: =IF('[1]Tasa de Falla'!IT65=0,"",'[1]Tasa de Falla'!IT65) -> XXXX | Q65: =IF('[1]Tasa de Falla'!IU65=0,"",'[1]Tasa de Falla'!IU65) -> XXXX | R65: =IF('[1]Tasa de Falla'!IV65=0,"",'[1]Tasa de Falla'!IV65) -> XXXX
C66: ='[1]Tasa de Falla'!C66 -> 50 | D66: ='[1]Tasa de Falla'!D66 -> CEVIL POZO - EL BRACHO | E66: ='[1]Tasa de Falla'!E66 -> 132 | F66: ='[1]Tasa de Falla'!F66 -> 17 | G66: =IF('[1]Tasa de Falla'!IK66=0,"",'[1]Tasa de Falla'!IK66) ->  | H66: =IF('[1]Tasa de Falla'!IL66=0,"",'[1]Tasa de Falla'!IL66) ->  | I66: =IF('[1]Tasa de Falla'!IM66=0,"",'[1]Tasa de Falla'!IM66) ->  | J66: =IF('[1]Tasa de Falla'!IN66=0,"",'[1]Tasa de Falla'!IN66) ->  | K66: =IF('[1]Tasa de Falla'!IO66=0,"",'[1]Tasa de Falla'!IO66) ->  | L66: =IF('[1]Tasa de Falla'!IP66=0,"",'[1]Tasa de Falla'!IP66) ->  | M66: =IF('[1]Tasa de Falla'!IQ66=0,"",'[1]Tasa de Falla'!IQ66) ->  | N66: =IF('[1]Tasa de Falla'!IR66=0,"",'[1]Tasa de Falla'!IR66) ->  | O66: =IF('[1]Tasa de Falla'!IS66=0,"",'[1]Tasa de Falla'!IS66) ->  | P66: =IF('[1]Tasa de Falla'!IT66=0,"",'[1]Tasa de Falla'!IT66) ->  | Q66: =IF('[1]Tasa de Falla'!IU66=0,"",'[1]Tasa de Falla'!IU66) ->  | R66: =IF('[1]Tasa de Falla'!IV66=0,"",'[1]Tasa de Falla'!IV66) -> 
C67: ='[1]Tasa de Falla'!C67 -> 0 | D67: ='[1]Tasa de Falla'!D67 -> 0 | E67: ='[1]Tasa de Falla'!E67 -> 0 | F67: ='[1]Tasa de Falla'!F67 -> 0 | G67: =IF('[1]Tasa de Falla'!IK67=0,"",'[1]Tasa de Falla'!IK67) ->  | H67: =IF('[1]Tasa de Falla'!IL67=0,"",'[1]Tasa de Falla'!IL67) ->  | I67: =IF('[1]Tasa de Falla'!IM67=0,"",'[1]Tasa de Falla'!IM67) ->  | J67: =IF('[1]Tasa de Falla'!IN67=0,"",'[1]Tasa de Falla'!IN67) ->  | K67: =IF('[1]Tasa de Falla'!IO67=0,"",'[1]Tasa de Falla'!IO67) ->  | L67: =IF('[1]Tasa de Falla'!IP67=0,"",'[1]Tasa de Falla'!IP67) ->  | M67: =IF('[1]Tasa de Falla'!IQ67=0,"",'[1]Tasa de Falla'!IQ67) ->  | N67: =IF('[1]Tasa de Falla'!IR67=0,"",'[1]Tasa de Falla'!IR67) ->  | O67: =IF('[1]Tasa de Falla'!IS67=0,"",'[1]Tasa de Falla'!IS67) ->  | P67: =IF('[1]Tasa de Falla'!IT67=0,"",'[1]Tasa de Falla'!IT67) ->  | Q67: =IF('[1]Tasa de Falla'!IU67=0,"",'[1]Tasa de Falla'!IU67) ->  | R67: =IF('[1]Tasa de Falla'!IV67=0,"",'[1]Tasa de Falla'!IV67) -> 
C68: ='[1]Tasa de Falla'!C68 -> 51 | D68: ='[1]Tasa de Falla'!D68 -> METAN - EL TUNAL | E68: ='[1]Tasa de Falla'!E68 -> 132 | F68: ='[1]Tasa de Falla'!F68 -> 75.6 | G68: =IF('[1]Tasa de Falla'!IK68=0,"",'[1]Tasa de Falla'!IK68) ->  | H68: =IF('[1]Tasa de Falla'!IL68=0,"",'[1]Tasa de Falla'!IL68) ->  | I68: =IF('[1]Tasa de Falla'!IM68=0,"",'[1]Tasa de Falla'!IM68) ->  | J68: =IF('[1]Tasa de Falla'!IN68=0,"",'[1]Tasa de Falla'!IN68) ->  | K68: =IF('[1]Tasa de Falla'!IO68=0,"",'[1]Tasa de Falla'!IO68) ->  | L68: =IF('[1]Tasa de Falla'!IP68=0,"",'[1]Tasa de Falla'!IP68) ->  | M68: =IF('[1]Tasa de Falla'!IQ68=0,"",'[1]Tasa de Falla'!IQ68) ->  | N68: =IF('[1]Tasa de Falla'!IR68=0,"",'[1]Tasa de Falla'!IR68) ->  | O68: =IF('[1]Tasa de Falla'!IS68=0,"",'[1]Tasa de Falla'!IS68) ->  | P68: =IF('[1]Tasa de Falla'!IT68=0,"",'[1]Tasa de Falla'!IT68) ->  | Q68: =IF('[1]Tasa de Falla'!IU68=0,"",'[1]Tasa de Falla'!IU68) ->  | R68: =IF('[1]Tasa de Falla'!IV68=0,"",'[1]Tasa de Falla'!IV68) -> 
C69: ='[1]Tasa de Falla'!C69 -> 52 | D69: ='[1]Tasa de Falla'!D69 -> EL TUNAL - J.V. GONZALEZ | E69: ='[1]Tasa de Falla'!E69 -> 132 | F69: ='[1]Tasa de Falla'!F69 -> 41.4 | G69: =IF('[1]Tasa de Falla'!IK69=0,"",'[1]Tasa de Falla'!IK69) ->  | H69: =IF('[1]Tasa de Falla'!IL69=0,"",'[1]Tasa de Falla'!IL69) ->  | I69: =IF('[1]Tasa de Falla'!IM69=0,"",'[1]Tasa de Falla'!IM69) ->  | J69: =IF('[1]Tasa de Falla'!IN69=0,"",'[1]Tasa de Falla'!IN69) ->  | K69: =IF('[1]Tasa de Falla'!IO69=0,"",'[1]Tasa de Falla'!IO69) ->  | L69: =IF('[1]Tasa de Falla'!IP69=0,"",'[1]Tasa de Falla'!IP69) ->  | M69: =IF('[1]Tasa de Falla'!IQ69=0,"",'[1]Tasa de Falla'!IQ69) ->  | N69: =IF('[1]Tasa de Falla'!IR69=0,"",'[1]Tasa de Falla'!IR69) ->  | O69: =IF('[1]Tasa de Falla'!IS69=0,"",'[1]Tasa de Falla'!IS69) ->  | P69: =IF('[1]Tasa de Falla'!IT69=0,"",'[1]Tasa de Falla'!IT69) ->  | Q69: =IF('[1]Tasa de Falla'!IU69=0,"",'[1]Tasa de Falla'!IU69) ->  | R69: =IF('[1]Tasa de Falla'!IV69=0,"",'[1]Tasa de Falla'!IV69) -> 
C70: ='[1]Tasa de Falla'!C70 -> 0 | D70: ='[1]Tasa de Falla'!D70 -> 0 | E70: ='[1]Tasa de Falla'!E70 -> 0 | F70: ='[1]Tasa de Falla'!F70 -> 0 | G70: =IF('[1]Tasa de Falla'!IK70=0,"",'[1]Tasa de Falla'!IK70) ->  | H70: =IF('[1]Tasa de Falla'!IL70=0,"",'[1]Tasa de Falla'!IL70) ->  | I70: =IF('[1]Tasa de Falla'!IM70=0,"",'[1]Tasa de Falla'!IM70) ->  | J70: =IF('[1]Tasa de Falla'!IN70=0,"",'[1]Tasa de Falla'!IN70) ->  | K70: =IF('[1]Tasa de Falla'!IO70=0,"",'[1]Tasa de Falla'!IO70) ->  | L70: =IF('[1]Tasa de Falla'!IP70=0,"",'[1]Tasa de Falla'!IP70) ->  | M70: =IF('[1]Tasa de Falla'!IQ70=0,"",'[1]Tasa de Falla'!IQ70) ->  | N70: =IF('[1]Tasa de Falla'!IR70=0,"",'[1]Tasa de Falla'!IR70) ->  | O70: =IF('[1]Tasa de Falla'!IS70=0,"",'[1]Tasa de Falla'!IS70) ->  | P70: =IF('[1]Tasa de Falla'!IT70=0,"",'[1]Tasa de Falla'!IT70) ->  | Q70: =IF('[1]Tasa de Falla'!IU70=0,"",'[1]Tasa de Falla'!IU70) ->  | R70: =IF('[1]Tasa de Falla'!IV70=0,"",'[1]Tasa de Falla'!IV70) -> 
C71: ='[1]Tasa de Falla'!C71 -> 53 | D71: ='[1]Tasa de Falla'!D71 -> LOS PIZARROS - ESCABA | E71: ='[1]Tasa de Falla'!E71 -> 132 | F71: ='[1]Tasa de Falla'!F71 -> 21.4 | G71: =IF('[1]Tasa de Falla'!IK71=0,"",'[1]Tasa de Falla'!IK71) ->  | H71: =IF('[1]Tasa de Falla'!IL71=0,"",'[1]Tasa de Falla'!IL71) ->  | I71: =IF('[1]Tasa de Falla'!IM71=0,"",'[1]Tasa de Falla'!IM71) ->  | J71: =IF('[1]Tasa de Falla'!IN71=0,"",'[1]Tasa de Falla'!IN71) ->  | K71: =IF('[1]Tasa de Falla'!IO71=0,"",'[1]Tasa de Falla'!IO71) ->  | L71: =IF('[1]Tasa de Falla'!IP71=0,"",'[1]Tasa de Falla'!IP71) ->  | M71: =IF('[1]Tasa de Falla'!IQ71=0,"",'[1]Tasa de Falla'!IQ71) ->  | N71: =IF('[1]Tasa de Falla'!IR71=0,"",'[1]Tasa de Falla'!IR71) -> 1 | O71: =IF('[1]Tasa de Falla'!IS71=0,"",'[1]Tasa de Falla'!IS71) ->  | P71: =IF('[1]Tasa de Falla'!IT71=0,"",'[1]Tasa de Falla'!IT71) -> 1 | Q71: =IF('[1]Tasa de Falla'!IU71=0,"",'[1]Tasa de Falla'!IU71) ->  | R71: =IF('[1]Tasa de Falla'!IV71=0,"",'[1]Tasa de Falla'!IV71) -> 1
C72: ='[1]Tasa de Falla'!C72 -> 54 | D72: ='[1]Tasa de Falla'!D72 -> LOS PIZARROS - LA COCHA | E72: ='[1]Tasa de Falla'!E72 -> 132 | F72: ='[1]Tasa de Falla'!F72 -> 6.5 | G72: =IF('[1]Tasa de Falla'!IK72=0,"",'[1]Tasa de Falla'!IK72) ->  | H72: =IF('[1]Tasa de Falla'!IL72=0,"",'[1]Tasa de Falla'!IL72) ->  | I72: =IF('[1]Tasa de Falla'!IM72=0,"",'[1]Tasa de Falla'!IM72) ->  | J72: =IF('[1]Tasa de Falla'!IN72=0,"",'[1]Tasa de Falla'!IN72) ->  | K72: =IF('[1]Tasa de Falla'!IO72=0,"",'[1]Tasa de Falla'!IO72) ->  | L72: =IF('[1]Tasa de Falla'!IP72=0,"",'[1]Tasa de Falla'!IP72) ->  | M72: =IF('[1]Tasa de Falla'!IQ72=0,"",'[1]Tasa de Falla'!IQ72) ->  | N72: =IF('[1]Tasa de Falla'!IR72=0,"",'[1]Tasa de Falla'!IR72) ->  | O72: =IF('[1]Tasa de Falla'!IS72=0,"",'[1]Tasa de Falla'!IS72) ->  | P72: =IF('[1]Tasa de Falla'!IT72=0,"",'[1]Tasa de Falla'!IT72) ->  | Q72: =IF('[1]Tasa de Falla'!IU72=0,"",'[1]Tasa de Falla'!IU72) ->  | R72: =IF('[1]Tasa de Falla'!IV72=0,"",'[1]Tasa de Falla'!IV72) -> 
C73: ='[1]Tasa de Falla'!C73 -> 55 | D73: ='[1]Tasa de Falla'!D73 -> HUACRA - LOS PIZARROS | E73: ='[1]Tasa de Falla'!E73 -> 132 | F73: ='[1]Tasa de Falla'!F73 -> 28.5 | G73: =IF('[1]Tasa de Falla'!IK73=0,"",'[1]Tasa de Falla'!IK73) ->  | H73: =IF('[1]Tasa de Falla'!IL73=0,"",'[1]Tasa de Falla'!IL73) ->  | I73: =IF('[1]Tasa de Falla'!IM73=0,"",'[1]Tasa de Falla'!IM73) ->  | J73: =IF('[1]Tasa de Falla'!IN73=0,"",'[1]Tasa de Falla'!IN73) ->  | K73: =IF('[1]Tasa de Falla'!IO73=0,"",'[1]Tasa de Falla'!IO73) ->  | L73: =IF('[1]Tasa de Falla'!IP73=0,"",'[1]Tasa de Falla'!IP73) ->  | M73: =IF('[1]Tasa de Falla'!IQ73=0,"",'[1]Tasa de Falla'!IQ73) ->  | N73: =IF('[1]Tasa de Falla'!IR73=0,"",'[1]Tasa de Falla'!IR73) ->  | O73: =IF('[1]Tasa de Falla'!IS73=0,"",'[1]Tasa de Falla'!IS73) ->  | P73: =IF('[1]Tasa de Falla'!IT73=0,"",'[1]Tasa de Falla'!IT73) -> 1 | Q73: =IF('[1]Tasa de Falla'!IU73=0,"",'[1]Tasa de Falla'!IU73) -> 1 | R73: =IF('[1]Tasa de Falla'!IV73=0,"",'[1]Tasa de Falla'!IV73) -> 
C74: ='[1]Tasa de Falla'!C74 -> 56 | D74: ='[1]Tasa de Falla'!D74 -> CEVIL POZO - AVELLANEDA | E74: ='[1]Tasa de Falla'!E74 -> 132 | F74: ='[1]Tasa de Falla'!F74 -> 8 | G74: =IF('[1]Tasa de Falla'!IK74=0,"",'[1]Tasa de Falla'!IK74) ->  | H74: =IF('[1]Tasa de Falla'!IL74=0,"",'[1]Tasa de Falla'!IL74) ->  | I74: =IF('[1]Tasa de Falla'!IM74=0,"",'[1]Tasa de Falla'!IM74) ->  | J74: =IF('[1]Tasa de Falla'!IN74=0,"",'[1]Tasa de Falla'!IN74) ->  | K74: =IF('[1]Tasa de Falla'!IO74=0,"",'[1]Tasa de Falla'!IO74) ->  | L74: =IF('[1]Tasa de Falla'!IP74=0,"",'[1]Tasa de Falla'!IP74) ->  | M74: =IF('[1]Tasa de Falla'!IQ74=0,"",'[1]Tasa de Falla'!IQ74) ->  | N74: =IF('[1]Tasa de Falla'!IR74=0,"",'[1]Tasa de Falla'!IR74) ->  | O74: =IF('[1]Tasa de Falla'!IS74=0,"",'[1]Tasa de Falla'!IS74) ->  | P74: =IF('[1]Tasa de Falla'!IT74=0,"",'[1]Tasa de Falla'!IT74) ->  | Q74: =IF('[1]Tasa de Falla'!IU74=0,"",'[1]Tasa de Falla'!IU74) ->  | R74: =IF('[1]Tasa de Falla'!IV74=0,"",'[1]Tasa de Falla'!IV74) -> 
C75: ='[1]Tasa de Falla'!C75 -> 57 | D75: ='[1]Tasa de Falla'!D75 -> CABRA CORRAL - SALTA ESTE | E75: ='[1]Tasa de Falla'!E75 -> 132 | F75: ='[1]Tasa de Falla'!F75 -> 55 | G75: =IF('[1]Tasa de Falla'!IK75=0,"",'[1]Tasa de Falla'!IK75) -> 1 | H75: =IF('[1]Tasa de Falla'!IL75=0,"",'[1]Tasa de Falla'!IL75) ->  | I75: =IF('[1]Tasa de Falla'!IM75=0,"",'[1]Tasa de Falla'!IM75) -> 2 | J75: =IF('[1]Tasa de Falla'!IN75=0,"",'[1]Tasa de Falla'!IN75) ->  | K75: =IF('[1]Tasa de Falla'!IO75=0,"",'[1]Tasa de Falla'!IO75) ->  | L75: =IF('[1]Tasa de Falla'!IP75=0,"",'[1]Tasa de Falla'!IP75) ->  | M75: =IF('[1]Tasa de Falla'!IQ75=0,"",'[1]Tasa de Falla'!IQ75) ->  | N75: =IF('[1]Tasa de Falla'!IR75=0,"",'[1]Tasa de Falla'!IR75) -> 1 | O75: =IF('[1]Tasa de Falla'!IS75=0,"",'[1]Tasa de Falla'!IS75) ->  | P75: =IF('[1]Tasa de Falla'!IT75=0,"",'[1]Tasa de Falla'!IT75) ->  | Q75: =IF('[1]Tasa de Falla'!IU75=0,"",'[1]Tasa de Falla'!IU75) -> 1 | R75: =IF('[1]Tasa de Falla'!IV75=0,"",'[1]Tasa de Falla'!IV75) -> 
C76: ='[1]Tasa de Falla'!C76 -> 58 | D76: ='[1]Tasa de Falla'!D76 -> SALTA ESTE - SALTA SUR | E76: ='[1]Tasa de Falla'!E76 -> 132 | F76: ='[1]Tasa de Falla'!F76 -> 7 | G76: =IF('[1]Tasa de Falla'!IK76=0,"",'[1]Tasa de Falla'!IK76) ->  | H76: =IF('[1]Tasa de Falla'!IL76=0,"",'[1]Tasa de Falla'!IL76) ->  | I76: =IF('[1]Tasa de Falla'!IM76=0,"",'[1]Tasa de Falla'!IM76) ->  | J76: =IF('[1]Tasa de Falla'!IN76=0,"",'[1]Tasa de Falla'!IN76) ->  | K76: =IF('[1]Tasa de Falla'!IO76=0,"",'[1]Tasa de Falla'!IO76) ->  | L76: =IF('[1]Tasa de Falla'!IP76=0,"",'[1]Tasa de Falla'!IP76) ->  | M76: =IF('[1]Tasa de Falla'!IQ76=0,"",'[1]Tasa de Falla'!IQ76) ->  | N76: =IF('[1]Tasa de Falla'!IR76=0,"",'[1]Tasa de Falla'!IR76) ->  | O76: =IF('[1]Tasa de Falla'!IS76=0,"",'[1]Tasa de Falla'!IS76) ->  | P76: =IF('[1]Tasa de Falla'!IT76=0,"",'[1]Tasa de Falla'!IT76) ->  | Q76: =IF('[1]Tasa de Falla'!IU76=0,"",'[1]Tasa de Falla'!IU76) ->  | R76: =IF('[1]Tasa de Falla'!IV76=0,"",'[1]Tasa de Falla'!IV76) -> 
C77: ='[1]Tasa de Falla'!C77 -> 59 | D77: ='[1]Tasa de Falla'!D77 -> V. QUINTEROS - ACONQUIJA - ANDALGALA | E77: ='[1]Tasa de Falla'!E77 -> 132 | F77: ='[1]Tasa de Falla'!F77 -> 102 | G77: =IF('[1]Tasa de Falla'!IK77=0,"",'[1]Tasa de Falla'!IK77) ->  | H77: =IF('[1]Tasa de Falla'!IL77=0,"",'[1]Tasa de Falla'!IL77) ->  | I77: =IF('[1]Tasa de Falla'!IM77=0,"",'[1]Tasa de Falla'!IM77) ->  | J77: =IF('[1]Tasa de Falla'!IN77=0,"",'[1]Tasa de Falla'!IN77) ->  | K77: =IF('[1]Tasa de Falla'!IO77=0,"",'[1]Tasa de Falla'!IO77) ->  | L77: =IF('[1]Tasa de Falla'!IP77=0,"",'[1]Tasa de Falla'!IP77) ->  | M77: =IF('[1]Tasa de Falla'!IQ77=0,"",'[1]Tasa de Falla'!IQ77) -> 1 | N77: =IF('[1]Tasa de Falla'!IR77=0,"",'[1]Tasa de Falla'!IR77) ->  | O77: =IF('[1]Tasa de Falla'!IS77=0,"",'[1]Tasa de Falla'!IS77) ->  | P77: =IF('[1]Tasa de Falla'!IT77=0,"",'[1]Tasa de Falla'!IT77) ->  | Q77: =IF('[1]Tasa de Falla'!IU77=0,"",'[1]Tasa de Falla'!IU77) -> 2 | R77: =IF('[1]Tasa de Falla'!IV77=0,"",'[1]Tasa de Falla'!IV77) -> 1
C78: ='[1]Tasa de Falla'!C78 -> 60 | D78: ='[1]Tasa de Falla'!D78 -> ANDALGALA - BELEN | E78: ='[1]Tasa de Falla'!E78 -> 132 | F78: ='[1]Tasa de Falla'!F78 -> 80.3 | G78: =IF('[1]Tasa de Falla'!IK78=0,"",'[1]Tasa de Falla'!IK78) ->  | H78: =IF('[1]Tasa de Falla'!IL78=0,"",'[1]Tasa de Falla'!IL78) ->  | I78: =IF('[1]Tasa de Falla'!IM78=0,"",'[1]Tasa de Falla'!IM78) ->  | J78: =IF('[1]Tasa de Falla'!IN78=0,"",'[1]Tasa de Falla'!IN78) ->  | K78: =IF('[1]Tasa de Falla'!IO78=0,"",'[1]Tasa de Falla'!IO78) ->  | L78: =IF('[1]Tasa de Falla'!IP78=0,"",'[1]Tasa de Falla'!IP78) ->  | M78: =IF('[1]Tasa de Falla'!IQ78=0,"",'[1]Tasa de Falla'!IQ78) ->  | N78: =IF('[1]Tasa de Falla'!IR78=0,"",'[1]Tasa de Falla'!IR78) ->  | O78: =IF('[1]Tasa de Falla'!IS78=0,"",'[1]Tasa de Falla'!IS78) ->  | P78: =IF('[1]Tasa de Falla'!IT78=0,"",'[1]Tasa de Falla'!IT78) ->  | Q78: =IF('[1]Tasa de Falla'!IU78=0,"",'[1]Tasa de Falla'!IU78) -> 1 | R78: =IF('[1]Tasa de Falla'!IV78=0,"",'[1]Tasa de Falla'!IV78) -> 
C79: ='[1]Tasa de Falla'!C79 -> 61 | D79: ='[1]Tasa de Falla'!D79 -> TUCUMAN NORTE - TRANCAS | E79: ='[1]Tasa de Falla'!E79 -> 132 | F79: ='[1]Tasa de Falla'!F79 -> 75 | G79: =IF('[1]Tasa de Falla'!IK79=0,"",'[1]Tasa de Falla'!IK79) ->  | H79: =IF('[1]Tasa de Falla'!IL79=0,"",'[1]Tasa de Falla'!IL79) ->  | I79: =IF('[1]Tasa de Falla'!IM79=0,"",'[1]Tasa de Falla'!IM79) ->  | J79: =IF('[1]Tasa de Falla'!IN79=0,"",'[1]Tasa de Falla'!IN79) ->  | K79: =IF('[1]Tasa de Falla'!IO79=0,"",'[1]Tasa de Falla'!IO79) ->  | L79: =IF('[1]Tasa de Falla'!IP79=0,"",'[1]Tasa de Falla'!IP79) ->  | M79: =IF('[1]Tasa de Falla'!IQ79=0,"",'[1]Tasa de Falla'!IQ79) ->  | N79: =IF('[1]Tasa de Falla'!IR79=0,"",'[1]Tasa de Falla'!IR79) ->  | O79: =IF('[1]Tasa de Falla'!IS79=0,"",'[1]Tasa de Falla'!IS79) ->  | P79: =IF('[1]Tasa de Falla'!IT79=0,"",'[1]Tasa de Falla'!IT79) ->  | Q79: =IF('[1]Tasa de Falla'!IU79=0,"",'[1]Tasa de Falla'!IU79) ->  | R79: =IF('[1]Tasa de Falla'!IV79=0,"",'[1]Tasa de Falla'!IV79) -> 
C80: ='[1]Tasa de Falla'!C80 -> 62 | D80: ='[1]Tasa de Falla'!D80 -> CABRA CORRAL - TRANCAS | E80: ='[1]Tasa de Falla'!E80 -> 132 | F80: ='[1]Tasa de Falla'!F80 -> 115 | G80: =IF('[1]Tasa de Falla'!IK80=0,"",'[1]Tasa de Falla'!IK80) -> XXXX | H80: =IF('[1]Tasa de Falla'!IL80=0,"",'[1]Tasa de Falla'!IL80) -> XXXX | I80: =IF('[1]Tasa de Falla'!IM80=0,"",'[1]Tasa de Falla'!IM80) -> XXXX | J80: =IF('[1]Tasa de Falla'!IN80=0,"",'[1]Tasa de Falla'!IN80) -> XXXX | K80: =IF('[1]Tasa de Falla'!IO80=0,"",'[1]Tasa de Falla'!IO80) -> XXXX | L80: =IF('[1]Tasa de Falla'!IP80=0,"",'[1]Tasa de Falla'!IP80) -> XXXX | M80: =IF('[1]Tasa de Falla'!IQ80=0,"",'[1]Tasa de Falla'!IQ80) -> XXXX | N80: =IF('[1]Tasa de Falla'!IR80=0,"",'[1]Tasa de Falla'!IR80) -> XXXX | O80: =IF('[1]Tasa de Falla'!IS80=0,"",'[1]Tasa de Falla'!IS80) -> XXXX | P80: =IF('[1]Tasa de Falla'!IT80=0,"",'[1]Tasa de Falla'!IT80) -> XXXX | Q80: =IF('[1]Tasa de Falla'!IU80=0,"",'[1]Tasa de Falla'!IU80) -> XXXX | R80: =IF('[1]Tasa de Falla'!IV80=0,"",'[1]Tasa de Falla'!IV80) -> XXXX
C81: ='[1]Tasa de Falla'!C81 -> 63 | D81: ='[1]Tasa de Falla'!D81 -> LAS MADERAS - JUJUY SUR | E81: ='[1]Tasa de Falla'!E81 -> 132 | F81: ='[1]Tasa de Falla'!F81 -> 27.6 | G81: =IF('[1]Tasa de Falla'!IK81=0,"",'[1]Tasa de Falla'!IK81) ->  | H81: =IF('[1]Tasa de Falla'!IL81=0,"",'[1]Tasa de Falla'!IL81) ->  | I81: =IF('[1]Tasa de Falla'!IM81=0,"",'[1]Tasa de Falla'!IM81) ->  | J81: =IF('[1]Tasa de Falla'!IN81=0,"",'[1]Tasa de Falla'!IN81) ->  | K81: =IF('[1]Tasa de Falla'!IO81=0,"",'[1]Tasa de Falla'!IO81) ->  | L81: =IF('[1]Tasa de Falla'!IP81=0,"",'[1]Tasa de Falla'!IP81) ->  | M81: =IF('[1]Tasa de Falla'!IQ81=0,"",'[1]Tasa de Falla'!IQ81) ->  | N81: =IF('[1]Tasa de Falla'!IR81=0,"",'[1]Tasa de Falla'!IR81) ->  | O81: =IF('[1]Tasa de Falla'!IS81=0,"",'[1]Tasa de Falla'!IS81) ->  | P81: =IF('[1]Tasa de Falla'!IT81=0,"",'[1]Tasa de Falla'!IT81) -> 1 | Q81: =IF('[1]Tasa de Falla'!IU81=0,"",'[1]Tasa de Falla'!IU81) ->  | R81: =IF('[1]Tasa de Falla'!IV81=0,"",'[1]Tasa de Falla'!IV81) -> 
C82: ='[1]Tasa de Falla'!C82 -> 64 | D82: ='[1]Tasa de Falla'!D82 -> BELEN - TINOGASTA | E82: ='[1]Tasa de Falla'!E82 -> 132 | F82: ='[1]Tasa de Falla'!F82 -> 72 | G82: =IF('[1]Tasa de Falla'!IK82=0,"",'[1]Tasa de Falla'!IK82) ->  | H82: =IF('[1]Tasa de Falla'!IL82=0,"",'[1]Tasa de Falla'!IL82) ->  | I82: =IF('[1]Tasa de Falla'!IM82=0,"",'[1]Tasa de Falla'!IM82) ->  | J82: =IF('[1]Tasa de Falla'!IN82=0,"",'[1]Tasa de Falla'!IN82) ->  | K82: =IF('[1]Tasa de Falla'!IO82=0,"",'[1]Tasa de Falla'!IO82) ->  | L82: =IF('[1]Tasa de Falla'!IP82=0,"",'[1]Tasa de Falla'!IP82) ->  | M82: =IF('[1]Tasa de Falla'!IQ82=0,"",'[1]Tasa de Falla'!IQ82) ->  | N82: =IF('[1]Tasa de Falla'!IR82=0,"",'[1]Tasa de Falla'!IR82) ->  | O82: =IF('[1]Tasa de Falla'!IS82=0,"",'[1]Tasa de Falla'!IS82) -> 1 | P82: =IF('[1]Tasa de Falla'!IT82=0,"",'[1]Tasa de Falla'!IT82) ->  | Q82: =IF('[1]Tasa de Falla'!IU82=0,"",'[1]Tasa de Falla'!IU82) ->  | R82: =IF('[1]Tasa de Falla'!IV82=0,"",'[1]Tasa de Falla'!IV82) -> 
C83: ='[1]Tasa de Falla'!C83 -> 65 | D83: ='[1]Tasa de Falla'!D83 -> BURRUYACU - CEVIL POZO | E83: ='[1]Tasa de Falla'!E83 -> 132 | F83: ='[1]Tasa de Falla'!F83 -> 56 | G83: =IF('[1]Tasa de Falla'!IK83=0,"",'[1]Tasa de Falla'!IK83) ->  | H83: =IF('[1]Tasa de Falla'!IL83=0,"",'[1]Tasa de Falla'!IL83) ->  | I83: =IF('[1]Tasa de Falla'!IM83=0,"",'[1]Tasa de Falla'!IM83) ->  | J83: =IF('[1]Tasa de Falla'!IN83=0,"",'[1]Tasa de Falla'!IN83) ->  | K83: =IF('[1]Tasa de Falla'!IO83=0,"",'[1]Tasa de Falla'!IO83) ->  | L83: =IF('[1]Tasa de Falla'!IP83=0,"",'[1]Tasa de Falla'!IP83) ->  | M83: =IF('[1]Tasa de Falla'!IQ83=0,"",'[1]Tasa de Falla'!IQ83) ->  | N83: =IF('[1]Tasa de Falla'!IR83=0,"",'[1]Tasa de Falla'!IR83) -> 1 | O83: =IF('[1]Tasa de Falla'!IS83=0,"",'[1]Tasa de Falla'!IS83) ->  | P83: =IF('[1]Tasa de Falla'!IT83=0,"",'[1]Tasa de Falla'!IT83) ->  | Q83: =IF('[1]Tasa de Falla'!IU83=0,"",'[1]Tasa de Falla'!IU83) -> 1 | R83: =IF('[1]Tasa de Falla'!IV83=0,"",'[1]Tasa de Falla'!IV83) -> 1
C84: ='[1]Tasa de Falla'!C84 -> 66 | D84: ='[1]Tasa de Falla'!D84 -> GÜEMES - BURRUYACU | E84: ='[1]Tasa de Falla'!E84 -> 132 | F84: ='[1]Tasa de Falla'!F84 -> 235.1 | G84: =IF('[1]Tasa de Falla'!IK84=0,"",'[1]Tasa de Falla'!IK84) -> XXXX | H84: =IF('[1]Tasa de Falla'!IL84=0,"",'[1]Tasa de Falla'!IL84) -> XXXX | I84: =IF('[1]Tasa de Falla'!IM84=0,"",'[1]Tasa de Falla'!IM84) -> XXXX | J84: =IF('[1]Tasa de Falla'!IN84=0,"",'[1]Tasa de Falla'!IN84) -> XXXX | K84: =IF('[1]Tasa de Falla'!IO84=0,"",'[1]Tasa de Falla'!IO84) -> XXXX | L84: =IF('[1]Tasa de Falla'!IP84=0,"",'[1]Tasa de Falla'!IP84) -> XXXX | M84: =IF('[1]Tasa de Falla'!IQ84=0,"",'[1]Tasa de Falla'!IQ84) -> XXXX | N84: =IF('[1]Tasa de Falla'!IR84=0,"",'[1]Tasa de Falla'!IR84) -> XXXX | O84: =IF('[1]Tasa de Falla'!IS84=0,"",'[1]Tasa de Falla'!IS84) -> XXXX | P84: =IF('[1]Tasa de Falla'!IT84=0,"",'[1]Tasa de Falla'!IT84) -> XXXX | Q84: =IF('[1]Tasa de Falla'!IU84=0,"",'[1]Tasa de Falla'!IU84) -> XXXX | R84: =IF('[1]Tasa de Falla'!IV84=0,"",'[1]Tasa de Falla'!IV84) -> XXXX
C85: ='[1]Tasa de Falla'!C85 -> 67 | D85: ='[1]Tasa de Falla'!D85 -> FRIAS - RECREO | E85: ='[1]Tasa de Falla'!E85 -> 132 | F85: ='[1]Tasa de Falla'!F85 -> 74.54 | G85: =IF('[1]Tasa de Falla'!IK85=0,"",'[1]Tasa de Falla'!IK85) ->  | H85: =IF('[1]Tasa de Falla'!IL85=0,"",'[1]Tasa de Falla'!IL85) ->  | I85: =IF('[1]Tasa de Falla'!IM85=0,"",'[1]Tasa de Falla'!IM85) ->  | J85: =IF('[1]Tasa de Falla'!IN85=0,"",'[1]Tasa de Falla'!IN85) ->  | K85: =IF('[1]Tasa de Falla'!IO85=0,"",'[1]Tasa de Falla'!IO85) ->  | L85: =IF('[1]Tasa de Falla'!IP85=0,"",'[1]Tasa de Falla'!IP85) ->  | M85: =IF('[1]Tasa de Falla'!IQ85=0,"",'[1]Tasa de Falla'!IQ85) ->  | N85: =IF('[1]Tasa de Falla'!IR85=0,"",'[1]Tasa de Falla'!IR85) ->  | O85: =IF('[1]Tasa de Falla'!IS85=0,"",'[1]Tasa de Falla'!IS85) ->  | P85: =IF('[1]Tasa de Falla'!IT85=0,"",'[1]Tasa de Falla'!IT85) ->  | Q85: =IF('[1]Tasa de Falla'!IU85=0,"",'[1]Tasa de Falla'!IU85) ->  | R85: =IF('[1]Tasa de Falla'!IV85=0,"",'[1]Tasa de Falla'!IV85) -> 
C86: ='[1]Tasa de Falla'!C86 -> 68 | D86: ='[1]Tasa de Falla'!D86 -> RECREO - LA RIOJA 1 | E86: ='[1]Tasa de Falla'!E86 -> 132 | F86: ='[1]Tasa de Falla'!F86 -> 221 | G86: =IF('[1]Tasa de Falla'!IK86=0,"",'[1]Tasa de Falla'!IK86) ->  | H86: =IF('[1]Tasa de Falla'!IL86=0,"",'[1]Tasa de Falla'!IL86) ->  | I86: =IF('[1]Tasa de Falla'!IM86=0,"",'[1]Tasa de Falla'!IM86) ->  | J86: =IF('[1]Tasa de Falla'!IN86=0,"",'[1]Tasa de Falla'!IN86) ->  | K86: =IF('[1]Tasa de Falla'!IO86=0,"",'[1]Tasa de Falla'!IO86) ->  | L86: =IF('[1]Tasa de Falla'!IP86=0,"",'[1]Tasa de Falla'!IP86) ->  | M86: =IF('[1]Tasa de Falla'!IQ86=0,"",'[1]Tasa de Falla'!IQ86) ->  | N86: =IF('[1]Tasa de Falla'!IR86=0,"",'[1]Tasa de Falla'!IR86) ->  | O86: =IF('[1]Tasa de Falla'!IS86=0,"",'[1]Tasa de Falla'!IS86) ->  | P86: =IF('[1]Tasa de Falla'!IT86=0,"",'[1]Tasa de Falla'!IT86) -> 1 | Q86: =IF('[1]Tasa de Falla'!IU86=0,"",'[1]Tasa de Falla'!IU86) -> 1 | R86: =IF('[1]Tasa de Falla'!IV86=0,"",'[1]Tasa de Falla'!IV86) -> 
C87: ='[1]Tasa de Falla'!C87 -> 69 | D87: ='[1]Tasa de Falla'!D87 -> RECREO - LA RIOJA 2 | E87: ='[1]Tasa de Falla'!E87 -> 132 | F87: ='[1]Tasa de Falla'!F87 -> 220 | G87: =IF('[1]Tasa de Falla'!IK87=0,"",'[1]Tasa de Falla'!IK87) ->  | H87: =IF('[1]Tasa de Falla'!IL87=0,"",'[1]Tasa de Falla'!IL87) ->  | I87: =IF('[1]Tasa de Falla'!IM87=0,"",'[1]Tasa de Falla'!IM87) -> 1 | J87: =IF('[1]Tasa de Falla'!IN87=0,"",'[1]Tasa de Falla'!IN87) ->  | K87: =IF('[1]Tasa de Falla'!IO87=0,"",'[1]Tasa de Falla'!IO87) ->  | L87: =IF('[1]Tasa de Falla'!IP87=0,"",'[1]Tasa de Falla'!IP87) ->  | M87: =IF('[1]Tasa de Falla'!IQ87=0,"",'[1]Tasa de Falla'!IQ87) ->  | N87: =IF('[1]Tasa de Falla'!IR87=0,"",'[1]Tasa de Falla'!IR87) ->  | O87: =IF('[1]Tasa de Falla'!IS87=0,"",'[1]Tasa de Falla'!IS87) -> 1 | P87: =IF('[1]Tasa de Falla'!IT87=0,"",'[1]Tasa de Falla'!IT87) ->  | Q87: =IF('[1]Tasa de Falla'!IU87=0,"",'[1]Tasa de Falla'!IU87) -> 1 | R87: =IF('[1]Tasa de Falla'!IV87=0,"",'[1]Tasa de Falla'!IV87) -> 
C88: ='[1]Tasa de Falla'!C88 -> 70 | D88: ='[1]Tasa de Falla'!D88 -> RECREO - CATAMARCA | E88: ='[1]Tasa de Falla'!E88 -> 132 | F88: ='[1]Tasa de Falla'!F88 -> 203 | G88: =IF('[1]Tasa de Falla'!IK88=0,"",'[1]Tasa de Falla'!IK88) ->  | H88: =IF('[1]Tasa de Falla'!IL88=0,"",'[1]Tasa de Falla'!IL88) ->  | I88: =IF('[1]Tasa de Falla'!IM88=0,"",'[1]Tasa de Falla'!IM88) -> 1 | J88: =IF('[1]Tasa de Falla'!IN88=0,"",'[1]Tasa de Falla'!IN88) ->  | K88: =IF('[1]Tasa de Falla'!IO88=0,"",'[1]Tasa de Falla'!IO88) -> 1 | L88: =IF('[1]Tasa de Falla'!IP88=0,"",'[1]Tasa de Falla'!IP88) ->  | M88: =IF('[1]Tasa de Falla'!IQ88=0,"",'[1]Tasa de Falla'!IQ88) ->  | N88: =IF('[1]Tasa de Falla'!IR88=0,"",'[1]Tasa de Falla'!IR88) ->  | O88: =IF('[1]Tasa de Falla'!IS88=0,"",'[1]Tasa de Falla'!IS88) ->  | P88: =IF('[1]Tasa de Falla'!IT88=0,"",'[1]Tasa de Falla'!IT88) -> 2 | Q88: =IF('[1]Tasa de Falla'!IU88=0,"",'[1]Tasa de Falla'!IU88) ->  | R88: =IF('[1]Tasa de Falla'!IV88=0,"",'[1]Tasa de Falla'!IV88) -> 
C89: ='[1]Tasa de Falla'!C89 -> 71 | D89: ='[1]Tasa de Falla'!D89 -> CABRA CORRAL - EL CARRIL | E89: ='[1]Tasa de Falla'!E89 -> 132 | F89: ='[1]Tasa de Falla'!F89 -> 33.75 | G89: =IF('[1]Tasa de Falla'!IK89=0,"",'[1]Tasa de Falla'!IK89) -> 1 | H89: =IF('[1]Tasa de Falla'!IL89=0,"",'[1]Tasa de Falla'!IL89) ->  | I89: =IF('[1]Tasa de Falla'!IM89=0,"",'[1]Tasa de Falla'!IM89) -> 2 | J89: =IF('[1]Tasa de Falla'!IN89=0,"",'[1]Tasa de Falla'!IN89) ->  | K89: =IF('[1]Tasa de Falla'!IO89=0,"",'[1]Tasa de Falla'!IO89) ->  | L89: =IF('[1]Tasa de Falla'!IP89=0,"",'[1]Tasa de Falla'!IP89) ->  | M89: =IF('[1]Tasa de Falla'!IQ89=0,"",'[1]Tasa de Falla'!IQ89) ->  | N89: =IF('[1]Tasa de Falla'!IR89=0,"",'[1]Tasa de Falla'!IR89) -> 1 | O89: =IF('[1]Tasa de Falla'!IS89=0,"",'[1]Tasa de Falla'!IS89) ->  | P89: =IF('[1]Tasa de Falla'!IT89=0,"",'[1]Tasa de Falla'!IT89) ->  | Q89: =IF('[1]Tasa de Falla'!IU89=0,"",'[1]Tasa de Falla'!IU89) ->  | R89: =IF('[1]Tasa de Falla'!IV89=0,"",'[1]Tasa de Falla'!IV89) -> 
C90: ='[1]Tasa de Falla'!C90 -> 72 | D90: ='[1]Tasa de Falla'!D90 -> PAMPA GRANDE - CABRA CORRAL | E90: ='[1]Tasa de Falla'!E90 -> 132 | F90: ='[1]Tasa de Falla'!F90 -> 60 | G90: =IF('[1]Tasa de Falla'!IK90=0,"",'[1]Tasa de Falla'!IK90) -> 1 | H90: =IF('[1]Tasa de Falla'!IL90=0,"",'[1]Tasa de Falla'!IL90) ->  | I90: =IF('[1]Tasa de Falla'!IM90=0,"",'[1]Tasa de Falla'!IM90) -> 3 | J90: =IF('[1]Tasa de Falla'!IN90=0,"",'[1]Tasa de Falla'!IN90) -> 1 | K90: =IF('[1]Tasa de Falla'!IO90=0,"",'[1]Tasa de Falla'!IO90) -> 1 | L90: =IF('[1]Tasa de Falla'!IP90=0,"",'[1]Tasa de Falla'!IP90) ->  | M90: =IF('[1]Tasa de Falla'!IQ90=0,"",'[1]Tasa de Falla'!IQ90) ->  | N90: =IF('[1]Tasa de Falla'!IR90=0,"",'[1]Tasa de Falla'!IR90) ->  | O90: =IF('[1]Tasa de Falla'!IS90=0,"",'[1]Tasa de Falla'!IS90) ->  | P90: =IF('[1]Tasa de Falla'!IT90=0,"",'[1]Tasa de Falla'!IT90) ->  | Q90: =IF('[1]Tasa de Falla'!IU90=0,"",'[1]Tasa de Falla'!IU90) -> 1 | R90: =IF('[1]Tasa de Falla'!IV90=0,"",'[1]Tasa de Falla'!IV90) -> 1
C91: ='[1]Tasa de Falla'!C91 -> 73 | D91: ='[1]Tasa de Falla'!D91 -> PAMPA GRANDE - CAFAYATE | E91: ='[1]Tasa de Falla'!E91 -> 132 | F91: ='[1]Tasa de Falla'!F91 -> 63 | G91: =IF('[1]Tasa de Falla'!IK91=0,"",'[1]Tasa de Falla'!IK91) ->  | H91: =IF('[1]Tasa de Falla'!IL91=0,"",'[1]Tasa de Falla'!IL91) ->  | I91: =IF('[1]Tasa de Falla'!IM91=0,"",'[1]Tasa de Falla'!IM91) ->  | J91: =IF('[1]Tasa de Falla'!IN91=0,"",'[1]Tasa de Falla'!IN91) ->  | K91: =IF('[1]Tasa de Falla'!IO91=0,"",'[1]Tasa de Falla'!IO91) -> 1 | L91: =IF('[1]Tasa de Falla'!IP91=0,"",'[1]Tasa de Falla'!IP91) ->  | M91: =IF('[1]Tasa de Falla'!IQ91=0,"",'[1]Tasa de Falla'!IQ91) ->  | N91: =IF('[1]Tasa de Falla'!IR91=0,"",'[1]Tasa de Falla'!IR91) ->  | O91: =IF('[1]Tasa de Falla'!IS91=0,"",'[1]Tasa de Falla'!IS91) ->  | P91: =IF('[1]Tasa de Falla'!IT91=0,"",'[1]Tasa de Falla'!IT91) ->  | Q91: =IF('[1]Tasa de Falla'!IU91=0,"",'[1]Tasa de Falla'!IU91) ->  | R91: =IF('[1]Tasa de Falla'!IV91=0,"",'[1]Tasa de Falla'!IV91) -> 
C92: ='[1]Tasa de Falla'!C92 -> 74 | D92: ='[1]Tasa de Falla'!D92 -> PAMPA GRANDE - TRANCAS | E92: ='[1]Tasa de Falla'!E92 -> 132 | F92: ='[1]Tasa de Falla'!F92 -> 55 | G92: =IF('[1]Tasa de Falla'!IK92=0,"",'[1]Tasa de Falla'!IK92) ->  | H92: =IF('[1]Tasa de Falla'!IL92=0,"",'[1]Tasa de Falla'!IL92) ->  | I92: =IF('[1]Tasa de Falla'!IM92=0,"",'[1]Tasa de Falla'!IM92) -> 3 | J92: =IF('[1]Tasa de Falla'!IN92=0,"",'[1]Tasa de Falla'!IN92) ->  | K92: =IF('[1]Tasa de Falla'!IO92=0,"",'[1]Tasa de Falla'!IO92) ->  | L92: =IF('[1]Tasa de Falla'!IP92=0,"",'[1]Tasa de Falla'!IP92) ->  | M92: =IF('[1]Tasa de Falla'!IQ92=0,"",'[1]Tasa de Falla'!IQ92) ->  | N92: =IF('[1]Tasa de Falla'!IR92=0,"",'[1]Tasa de Falla'!IR92) ->  | O92: =IF('[1]Tasa de Falla'!IS92=0,"",'[1]Tasa de Falla'!IS92) ->  | P92: =IF('[1]Tasa de Falla'!IT92=0,"",'[1]Tasa de Falla'!IT92) ->  | Q92: =IF('[1]Tasa de Falla'!IU92=0,"",'[1]Tasa de Falla'!IU92) ->  | R92: =IF('[1]Tasa de Falla'!IV92=0,"",'[1]Tasa de Falla'!IV92) -> 
C93: ='[1]Tasa de Falla'!C93 -> 75 | D93: ='[1]Tasa de Falla'!D93 -> SANTIAGO CENTRO - FERNANDEZ - SUNCHO CORRAL | E93: ='[1]Tasa de Falla'!E93 -> 132 | F93: ='[1]Tasa de Falla'!F93 -> 103 | G93: =IF('[1]Tasa de Falla'!IK93=0,"",'[1]Tasa de Falla'!IK93) ->  | H93: =IF('[1]Tasa de Falla'!IL93=0,"",'[1]Tasa de Falla'!IL93) -> 2 | I93: =IF('[1]Tasa de Falla'!IM93=0,"",'[1]Tasa de Falla'!IM93) ->  | J93: =IF('[1]Tasa de Falla'!IN93=0,"",'[1]Tasa de Falla'!IN93) ->  | K93: =IF('[1]Tasa de Falla'!IO93=0,"",'[1]Tasa de Falla'!IO93) ->  | L93: =IF('[1]Tasa de Falla'!IP93=0,"",'[1]Tasa de Falla'!IP93) ->  | M93: =IF('[1]Tasa de Falla'!IQ93=0,"",'[1]Tasa de Falla'!IQ93) ->  | N93: =IF('[1]Tasa de Falla'!IR93=0,"",'[1]Tasa de Falla'!IR93) ->  | O93: =IF('[1]Tasa de Falla'!IS93=0,"",'[1]Tasa de Falla'!IS93) ->  | P93: =IF('[1]Tasa de Falla'!IT93=0,"",'[1]Tasa de Falla'!IT93) ->  | Q93: =IF('[1]Tasa de Falla'!IU93=0,"",'[1]Tasa de Falla'!IU93) ->  | R93: =IF('[1]Tasa de Falla'!IV93=0,"",'[1]Tasa de Falla'!IV93) -> 
C94: ='[1]Tasa de Falla'!C94 -> 76 | D94: ='[1]Tasa de Falla'!D94 -> SUNCHO CORRAL - ANATUYA | E94: ='[1]Tasa de Falla'!E94 -> 132 | F94: ='[1]Tasa de Falla'!F94 -> 81 | G94: =IF('[1]Tasa de Falla'!IK94=0,"",'[1]Tasa de Falla'!IK94) ->  | H94: =IF('[1]Tasa de Falla'!IL94=0,"",'[1]Tasa de Falla'!IL94) ->  | I94: =IF('[1]Tasa de Falla'!IM94=0,"",'[1]Tasa de Falla'!IM94) ->  | J94: =IF('[1]Tasa de Falla'!IN94=0,"",'[1]Tasa de Falla'!IN94) ->  | K94: =IF('[1]Tasa de Falla'!IO94=0,"",'[1]Tasa de Falla'!IO94) ->  | L94: =IF('[1]Tasa de Falla'!IP94=0,"",'[1]Tasa de Falla'!IP94) ->  | M94: =IF('[1]Tasa de Falla'!IQ94=0,"",'[1]Tasa de Falla'!IQ94) ->  | N94: =IF('[1]Tasa de Falla'!IR94=0,"",'[1]Tasa de Falla'!IR94) -> 2 | O94: =IF('[1]Tasa de Falla'!IS94=0,"",'[1]Tasa de Falla'!IS94) -> 1 | P94: =IF('[1]Tasa de Falla'!IT94=0,"",'[1]Tasa de Falla'!IT94) ->  | Q94: =IF('[1]Tasa de Falla'!IU94=0,"",'[1]Tasa de Falla'!IU94) ->  | R94: =IF('[1]Tasa de Falla'!IV94=0,"",'[1]Tasa de Falla'!IV94) -> 
C95: ='[1]Tasa de Falla'!C95 -> 77 | D95: ='[1]Tasa de Falla'!D95 -> LAS MADERAS - GÜEMES SALTA | E95: ='[1]Tasa de Falla'!E95 -> 132 | F95: ='[1]Tasa de Falla'!F95 -> 42 | G95: =IF('[1]Tasa de Falla'!IK95=0,"",'[1]Tasa de Falla'!IK95) -> 1 | H95: =IF('[1]Tasa de Falla'!IL95=0,"",'[1]Tasa de Falla'!IL95) ->  | I95: =IF('[1]Tasa de Falla'!IM95=0,"",'[1]Tasa de Falla'!IM95) ->  | J95: =IF('[1]Tasa de Falla'!IN95=0,"",'[1]Tasa de Falla'!IN95) ->  | K95: =IF('[1]Tasa de Falla'!IO95=0,"",'[1]Tasa de Falla'!IO95) ->  | L95: =IF('[1]Tasa de Falla'!IP95=0,"",'[1]Tasa de Falla'!IP95) ->  | M95: =IF('[1]Tasa de Falla'!IQ95=0,"",'[1]Tasa de Falla'!IQ95) ->  | N95: =IF('[1]Tasa de Falla'!IR95=0,"",'[1]Tasa de Falla'!IR95) -> 1 | O95: =IF('[1]Tasa de Falla'!IS95=0,"",'[1]Tasa de Falla'!IS95) ->  | P95: =IF('[1]Tasa de Falla'!IT95=0,"",'[1]Tasa de Falla'!IT95) ->  | Q95: =IF('[1]Tasa de Falla'!IU95=0,"",'[1]Tasa de Falla'!IU95) ->  | R95: =IF('[1]Tasa de Falla'!IV95=0,"",'[1]Tasa de Falla'!IV95) -> 
C96: ='[1]Tasa de Falla'!C96 -> 78 | D96: ='[1]Tasa de Falla'!D96 -> INDEPENDENCIA - EL BRACHO 2 | E96: ='[1]Tasa de Falla'!E96 -> 132 | F96: ='[1]Tasa de Falla'!F96 -> 17.1 | G96: =IF('[1]Tasa de Falla'!IK96=0,"",'[1]Tasa de Falla'!IK96) ->  | H96: =IF('[1]Tasa de Falla'!IL96=0,"",'[1]Tasa de Falla'!IL96) ->  | I96: =IF('[1]Tasa de Falla'!IM96=0,"",'[1]Tasa de Falla'!IM96) ->  | J96: =IF('[1]Tasa de Falla'!IN96=0,"",'[1]Tasa de Falla'!IN96) ->  | K96: =IF('[1]Tasa de Falla'!IO96=0,"",'[1]Tasa de Falla'!IO96) ->  | L96: =IF('[1]Tasa de Falla'!IP96=0,"",'[1]Tasa de Falla'!IP96) ->  | M96: =IF('[1]Tasa de Falla'!IQ96=0,"",'[1]Tasa de Falla'!IQ96) ->  | N96: =IF('[1]Tasa de Falla'!IR96=0,"",'[1]Tasa de Falla'!IR96) ->  | O96: =IF('[1]Tasa de Falla'!IS96=0,"",'[1]Tasa de Falla'!IS96) ->  | P96: =IF('[1]Tasa de Falla'!IT96=0,"",'[1]Tasa de Falla'!IT96) ->  | Q96: =IF('[1]Tasa de Falla'!IU96=0,"",'[1]Tasa de Falla'!IU96) ->  | R96: =IF('[1]Tasa de Falla'!IV96=0,"",'[1]Tasa de Falla'!IV96) -> 1
C97: ='[1]Tasa de Falla'!C97 -> 79 | D97: ='[1]Tasa de Falla'!D97 -> GÜEMES - SALTA NORTE | E97: ='[1]Tasa de Falla'!E97 -> 132 | F97: ='[1]Tasa de Falla'!F97 -> 39 | G97: =IF('[1]Tasa de Falla'!IK97=0,"",'[1]Tasa de Falla'!IK97) -> XXXX | H97: =IF('[1]Tasa de Falla'!IL97=0,"",'[1]Tasa de Falla'!IL97) -> XXXX | I97: =IF('[1]Tasa de Falla'!IM97=0,"",'[1]Tasa de Falla'!IM97) -> XXXX | J97: =IF('[1]Tasa de Falla'!IN97=0,"",'[1]Tasa de Falla'!IN97) -> XXXX | K97: =IF('[1]Tasa de Falla'!IO97=0,"",'[1]Tasa de Falla'!IO97) -> XXXX | L97: =IF('[1]Tasa de Falla'!IP97=0,"",'[1]Tasa de Falla'!IP97) -> XXXX | M97: =IF('[1]Tasa de Falla'!IQ97=0,"",'[1]Tasa de Falla'!IQ97) -> XXXX | N97: =IF('[1]Tasa de Falla'!IR97=0,"",'[1]Tasa de Falla'!IR97) -> XXXX | O97: =IF('[1]Tasa de Falla'!IS97=0,"",'[1]Tasa de Falla'!IS97) -> XXXX | P97: =IF('[1]Tasa de Falla'!IT97=0,"",'[1]Tasa de Falla'!IT97) -> XXXX | Q97: =IF('[1]Tasa de Falla'!IU97=0,"",'[1]Tasa de Falla'!IU97) -> XXXX | R97: =IF('[1]Tasa de Falla'!IV97=0,"",'[1]Tasa de Falla'!IV97) -> XXXX
C98: ='[1]Tasa de Falla'!C98 -> 80 | D98: ='[1]Tasa de Falla'!D98 -> BURRUYACU - COBOS | E98: ='[1]Tasa de Falla'!E98 -> 132 | F98: ='[1]Tasa de Falla'!F98 -> 229.5 | G98: =IF('[1]Tasa de Falla'!IK98=0,"",'[1]Tasa de Falla'!IK98) -> XXXX | H98: =IF('[1]Tasa de Falla'!IL98=0,"",'[1]Tasa de Falla'!IL98) -> XXXX | I98: =IF('[1]Tasa de Falla'!IM98=0,"",'[1]Tasa de Falla'!IM98) -> XXXX | J98: =IF('[1]Tasa de Falla'!IN98=0,"",'[1]Tasa de Falla'!IN98) -> XXXX | K98: =IF('[1]Tasa de Falla'!IO98=0,"",'[1]Tasa de Falla'!IO98) -> XXXX | L98: =IF('[1]Tasa de Falla'!IP98=0,"",'[1]Tasa de Falla'!IP98) -> XXXX | M98: =IF('[1]Tasa de Falla'!IQ98=0,"",'[1]Tasa de Falla'!IQ98) -> XXXX | N98: =IF('[1]Tasa de Falla'!IR98=0,"",'[1]Tasa de Falla'!IR98) -> XXXX | O98: =IF('[1]Tasa de Falla'!IS98=0,"",'[1]Tasa de Falla'!IS98) -> XXXX | P98: =IF('[1]Tasa de Falla'!IT98=0,"",'[1]Tasa de Falla'!IT98) -> XXXX | Q98: =IF('[1]Tasa de Falla'!IU98=0,"",'[1]Tasa de Falla'!IU98) -> XXXX | R98: =IF('[1]Tasa de Falla'!IV98=0,"",'[1]Tasa de Falla'!IV98) -> XXXX
C99: ='[1]Tasa de Falla'!C99 -> 81 | D99: ='[1]Tasa de Falla'!D99 -> METAN - COBOS | E99: ='[1]Tasa de Falla'!E99 -> 132 | F99: ='[1]Tasa de Falla'!F99 -> 89.2 | G99: =IF('[1]Tasa de Falla'!IK99=0,"",'[1]Tasa de Falla'!IK99) ->  | H99: =IF('[1]Tasa de Falla'!IL99=0,"",'[1]Tasa de Falla'!IL99) ->  | I99: =IF('[1]Tasa de Falla'!IM99=0,"",'[1]Tasa de Falla'!IM99) ->  | J99: =IF('[1]Tasa de Falla'!IN99=0,"",'[1]Tasa de Falla'!IN99) ->  | K99: =IF('[1]Tasa de Falla'!IO99=0,"",'[1]Tasa de Falla'!IO99) ->  | L99: =IF('[1]Tasa de Falla'!IP99=0,"",'[1]Tasa de Falla'!IP99) ->  | M99: =IF('[1]Tasa de Falla'!IQ99=0,"",'[1]Tasa de Falla'!IQ99) ->  | N99: =IF('[1]Tasa de Falla'!IR99=0,"",'[1]Tasa de Falla'!IR99) ->  | O99: =IF('[1]Tasa de Falla'!IS99=0,"",'[1]Tasa de Falla'!IS99) ->  | P99: =IF('[1]Tasa de Falla'!IT99=0,"",'[1]Tasa de Falla'!IT99) ->  | Q99: =IF('[1]Tasa de Falla'!IU99=0,"",'[1]Tasa de Falla'!IU99) ->  | R99: =IF('[1]Tasa de Falla'!IV99=0,"",'[1]Tasa de Falla'!IV99) -> 
C100: ='[1]Tasa de Falla'!C100 -> 82 | D100: ='[1]Tasa de Falla'!D100 -> AÑATUYA - BANDERA | E100: ='[1]Tasa de Falla'!E100 -> 132 | F100: ='[1]Tasa de Falla'!F100 -> 76 | G100: =IF('[1]Tasa de Falla'!IK100=0,"",'[1]Tasa de Falla'!IK100) ->  | H100: =IF('[1]Tasa de Falla'!IL100=0,"",'[1]Tasa de Falla'!IL100) ->  | I100: =IF('[1]Tasa de Falla'!IM100=0,"",'[1]Tasa de Falla'!IM100) ->  | J100: =IF('[1]Tasa de Falla'!IN100=0,"",'[1]Tasa de Falla'!IN100) ->  | K100: =IF('[1]Tasa de Falla'!IO100=0,"",'[1]Tasa de Falla'!IO100) ->  | L100: =IF('[1]Tasa de Falla'!IP100=0,"",'[1]Tasa de Falla'!IP100) ->  | M100: =IF('[1]Tasa de Falla'!IQ100=0,"",'[1]Tasa de Falla'!IQ100) ->  | N100: =IF('[1]Tasa de Falla'!IR100=0,"",'[1]Tasa de Falla'!IR100) ->  | O100: =IF('[1]Tasa de Falla'!IS100=0,"",'[1]Tasa de Falla'!IS100) -> 2 | P100: =IF('[1]Tasa de Falla'!IT100=0,"",'[1]Tasa de Falla'!IT100) ->  | Q100: =IF('[1]Tasa de Falla'!IU100=0,"",'[1]Tasa de Falla'!IU100) ->  | R100: =IF('[1]Tasa de Falla'!IV100=0,"",'[1]Tasa de Falla'!IV100) -> 1
C101: ='[1]Tasa de Falla'!C101 -> 84 | D101: ='[1]Tasa de Falla'!D101 -> GÜEMES SALTA - COBOS 1 | E101: ='[1]Tasa de Falla'!E101 -> 132 | F101: ='[1]Tasa de Falla'!F101 -> 12.1 | G101: =IF('[1]Tasa de Falla'!IK101=0,"",'[1]Tasa de Falla'!IK101) ->  | H101: =IF('[1]Tasa de Falla'!IL101=0,"",'[1]Tasa de Falla'!IL101) ->  | I101: =IF('[1]Tasa de Falla'!IM101=0,"",'[1]Tasa de Falla'!IM101) ->  | J101: =IF('[1]Tasa de Falla'!IN101=0,"",'[1]Tasa de Falla'!IN101) ->  | K101: =IF('[1]Tasa de Falla'!IO101=0,"",'[1]Tasa de Falla'!IO101) ->  | L101: =IF('[1]Tasa de Falla'!IP101=0,"",'[1]Tasa de Falla'!IP101) ->  | M101: =IF('[1]Tasa de Falla'!IQ101=0,"",'[1]Tasa de Falla'!IQ101) ->  | N101: =IF('[1]Tasa de Falla'!IR101=0,"",'[1]Tasa de Falla'!IR101) ->  | O101: =IF('[1]Tasa de Falla'!IS101=0,"",'[1]Tasa de Falla'!IS101) ->  | P101: =IF('[1]Tasa de Falla'!IT101=0,"",'[1]Tasa de Falla'!IT101) ->  | Q101: =IF('[1]Tasa de Falla'!IU101=0,"",'[1]Tasa de Falla'!IU101) ->  | R101: =IF('[1]Tasa de Falla'!IV101=0,"",'[1]Tasa de Falla'!IV101) -> 
C102: ='[1]Tasa de Falla'!C102 -> 85 | D102: ='[1]Tasa de Falla'!D102 -> GÜEMES SALTA - COBOS 2 | E102: ='[1]Tasa de Falla'!E102 -> 132 | F102: ='[1]Tasa de Falla'!F102 -> 12.1 | G102: =IF('[1]Tasa de Falla'!IK102=0,"",'[1]Tasa de Falla'!IK102) ->  | H102: =IF('[1]Tasa de Falla'!IL102=0,"",'[1]Tasa de Falla'!IL102) ->  | I102: =IF('[1]Tasa de Falla'!IM102=0,"",'[1]Tasa de Falla'!IM102) ->  | J102: =IF('[1]Tasa de Falla'!IN102=0,"",'[1]Tasa de Falla'!IN102) ->  | K102: =IF('[1]Tasa de Falla'!IO102=0,"",'[1]Tasa de Falla'!IO102) ->  | L102: =IF('[1]Tasa de Falla'!IP102=0,"",'[1]Tasa de Falla'!IP102) ->  | M102: =IF('[1]Tasa de Falla'!IQ102=0,"",'[1]Tasa de Falla'!IQ102) ->  | N102: =IF('[1]Tasa de Falla'!IR102=0,"",'[1]Tasa de Falla'!IR102) ->  | O102: =IF('[1]Tasa de Falla'!IS102=0,"",'[1]Tasa de Falla'!IS102) ->  | P102: =IF('[1]Tasa de Falla'!IT102=0,"",'[1]Tasa de Falla'!IT102) ->  | Q102: =IF('[1]Tasa de Falla'!IU102=0,"",'[1]Tasa de Falla'!IU102) ->  | R102: =IF('[1]Tasa de Falla'!IV102=0,"",'[1]Tasa de Falla'!IV102) -> 
C103: ='[1]Tasa de Falla'!C103 -> 86 | D103: ='[1]Tasa de Falla'!D103 -> EL BRACHO - LA BANDA | E103: ='[1]Tasa de Falla'!E103 -> 132 | F103: ='[1]Tasa de Falla'!F103 -> 133.5 | G103: =IF('[1]Tasa de Falla'!IK103=0,"",'[1]Tasa de Falla'!IK103) -> XXXX | H103: =IF('[1]Tasa de Falla'!IL103=0,"",'[1]Tasa de Falla'!IL103) -> XXXX | I103: =IF('[1]Tasa de Falla'!IM103=0,"",'[1]Tasa de Falla'!IM103) -> XXXX | J103: =IF('[1]Tasa de Falla'!IN103=0,"",'[1]Tasa de Falla'!IN103) -> XXXX | K103: =IF('[1]Tasa de Falla'!IO103=0,"",'[1]Tasa de Falla'!IO103) -> XXXX | L103: =IF('[1]Tasa de Falla'!IP103=0,"",'[1]Tasa de Falla'!IP103) -> XXXX | M103: =IF('[1]Tasa de Falla'!IQ103=0,"",'[1]Tasa de Falla'!IQ103) -> XXXX | N103: =IF('[1]Tasa de Falla'!IR103=0,"",'[1]Tasa de Falla'!IR103) -> XXXX | O103: =IF('[1]Tasa de Falla'!IS103=0,"",'[1]Tasa de Falla'!IS103) -> XXXX | P103: =IF('[1]Tasa de Falla'!IT103=0,"",'[1]Tasa de Falla'!IT103) -> XXXX | Q103: =IF('[1]Tasa de Falla'!IU103=0,"",'[1]Tasa de Falla'!IU103) -> XXXX | R103: =IF('[1]Tasa de Falla'!IV103=0,"",'[1]Tasa de Falla'!IV103) -> XXXX
C104: ='[1]Tasa de Falla'!C104 -> 87 | D104: ='[1]Tasa de Falla'!D104 -> SANTIAGO OESTE - SANTIAGO SUR | E104: ='[1]Tasa de Falla'!E104 -> 132 | F104: ='[1]Tasa de Falla'!F104 -> 10.6 | G104: =IF('[1]Tasa de Falla'!IK104=0,"",'[1]Tasa de Falla'!IK104) ->  | H104: =IF('[1]Tasa de Falla'!IL104=0,"",'[1]Tasa de Falla'!IL104) ->  | I104: =IF('[1]Tasa de Falla'!IM104=0,"",'[1]Tasa de Falla'!IM104) ->  | J104: =IF('[1]Tasa de Falla'!IN104=0,"",'[1]Tasa de Falla'!IN104) ->  | K104: =IF('[1]Tasa de Falla'!IO104=0,"",'[1]Tasa de Falla'!IO104) ->  | L104: =IF('[1]Tasa de Falla'!IP104=0,"",'[1]Tasa de Falla'!IP104) ->  | M104: =IF('[1]Tasa de Falla'!IQ104=0,"",'[1]Tasa de Falla'!IQ104) ->  | N104: =IF('[1]Tasa de Falla'!IR104=0,"",'[1]Tasa de Falla'!IR104) ->  | O104: =IF('[1]Tasa de Falla'!IS104=0,"",'[1]Tasa de Falla'!IS104) -> 1 | P104: =IF('[1]Tasa de Falla'!IT104=0,"",'[1]Tasa de Falla'!IT104) ->  | Q104: =IF('[1]Tasa de Falla'!IU104=0,"",'[1]Tasa de Falla'!IU104) ->  | R104: =IF('[1]Tasa de Falla'!IV104=0,"",'[1]Tasa de Falla'!IV104) -> 
C105: ='[1]Tasa de Falla'!C105 -> 88 | D105: ='[1]Tasa de Falla'!D105 -> SANTIAGO SUR - SANTIAGO CENTRO | E105: ='[1]Tasa de Falla'!E105 -> 132 | F105: ='[1]Tasa de Falla'!F105 -> 4 | G105: =IF('[1]Tasa de Falla'!IK105=0,"",'[1]Tasa de Falla'!IK105) ->  | H105: =IF('[1]Tasa de Falla'!IL105=0,"",'[1]Tasa de Falla'!IL105) ->  | I105: =IF('[1]Tasa de Falla'!IM105=0,"",'[1]Tasa de Falla'!IM105) ->  | J105: =IF('[1]Tasa de Falla'!IN105=0,"",'[1]Tasa de Falla'!IN105) ->  | K105: =IF('[1]Tasa de Falla'!IO105=0,"",'[1]Tasa de Falla'!IO105) ->  | L105: =IF('[1]Tasa de Falla'!IP105=0,"",'[1]Tasa de Falla'!IP105) ->  | M105: =IF('[1]Tasa de Falla'!IQ105=0,"",'[1]Tasa de Falla'!IQ105) ->  | N105: =IF('[1]Tasa de Falla'!IR105=0,"",'[1]Tasa de Falla'!IR105) ->  | O105: =IF('[1]Tasa de Falla'!IS105=0,"",'[1]Tasa de Falla'!IS105) ->  | P105: =IF('[1]Tasa de Falla'!IT105=0,"",'[1]Tasa de Falla'!IT105) ->  | Q105: =IF('[1]Tasa de Falla'!IU105=0,"",'[1]Tasa de Falla'!IU105) ->  | R105: =IF('[1]Tasa de Falla'!IV105=0,"",'[1]Tasa de Falla'!IV105) -> 
C106: ='[1]Tasa de Falla'!C106 -> 89 | D106: ='[1]Tasa de Falla'!D106 -> C.H. RIO HONDO - SANTIAGO OESTE | E106: ='[1]Tasa de Falla'!E106 -> 132 | F106: ='[1]Tasa de Falla'!F106 -> 69.8 | G106: =IF('[1]Tasa de Falla'!IK106=0,"",'[1]Tasa de Falla'!IK106) ->  | H106: =IF('[1]Tasa de Falla'!IL106=0,"",'[1]Tasa de Falla'!IL106) ->  | I106: =IF('[1]Tasa de Falla'!IM106=0,"",'[1]Tasa de Falla'!IM106) ->  | J106: =IF('[1]Tasa de Falla'!IN106=0,"",'[1]Tasa de Falla'!IN106) ->  | K106: =IF('[1]Tasa de Falla'!IO106=0,"",'[1]Tasa de Falla'!IO106) ->  | L106: =IF('[1]Tasa de Falla'!IP106=0,"",'[1]Tasa de Falla'!IP106) ->  | M106: =IF('[1]Tasa de Falla'!IQ106=0,"",'[1]Tasa de Falla'!IQ106) ->  | N106: =IF('[1]Tasa de Falla'!IR106=0,"",'[1]Tasa de Falla'!IR106) ->  | O106: =IF('[1]Tasa de Falla'!IS106=0,"",'[1]Tasa de Falla'!IS106) -> 1 | P106: =IF('[1]Tasa de Falla'!IT106=0,"",'[1]Tasa de Falla'!IT106) ->  | Q106: =IF('[1]Tasa de Falla'!IU106=0,"",'[1]Tasa de Falla'!IU106) ->  | R106: =IF('[1]Tasa de Falla'!IV106=0,"",'[1]Tasa de Falla'!IV106) -> 
C107: ='[1]Tasa de Falla'!C107 -> 90 | D107: ='[1]Tasa de Falla'!D107 -> GÜEMES - MINETTI | E107: ='[1]Tasa de Falla'!E107 -> 132 | F107: ='[1]Tasa de Falla'!F107 -> 36.1 | G107: =IF('[1]Tasa de Falla'!IK107=0,"",'[1]Tasa de Falla'!IK107) -> 1 | H107: =IF('[1]Tasa de Falla'!IL107=0,"",'[1]Tasa de Falla'!IL107) ->  | I107: =IF('[1]Tasa de Falla'!IM107=0,"",'[1]Tasa de Falla'!IM107) ->  | J107: =IF('[1]Tasa de Falla'!IN107=0,"",'[1]Tasa de Falla'!IN107) ->  | K107: =IF('[1]Tasa de Falla'!IO107=0,"",'[1]Tasa de Falla'!IO107) ->  | L107: =IF('[1]Tasa de Falla'!IP107=0,"",'[1]Tasa de Falla'!IP107) ->  | M107: =IF('[1]Tasa de Falla'!IQ107=0,"",'[1]Tasa de Falla'!IQ107) ->  | N107: =IF('[1]Tasa de Falla'!IR107=0,"",'[1]Tasa de Falla'!IR107) ->  | O107: =IF('[1]Tasa de Falla'!IS107=0,"",'[1]Tasa de Falla'!IS107) ->  | P107: =IF('[1]Tasa de Falla'!IT107=0,"",'[1]Tasa de Falla'!IT107) ->  | Q107: =IF('[1]Tasa de Falla'!IU107=0,"",'[1]Tasa de Falla'!IU107) ->  | R107: =IF('[1]Tasa de Falla'!IV107=0,"",'[1]Tasa de Falla'!IV107) -> 
C108: ='[1]Tasa de Falla'!C108 -> 91 | D108: ='[1]Tasa de Falla'!D108 -> GÜEMES - SALTA NORTE | E108: ='[1]Tasa de Falla'!E108 -> 132 | F108: ='[1]Tasa de Falla'!F108 -> 38.97 | G108: =IF('[1]Tasa de Falla'!IK108=0,"",'[1]Tasa de Falla'!IK108) ->  | H108: =IF('[1]Tasa de Falla'!IL108=0,"",'[1]Tasa de Falla'!IL108) ->  | I108: =IF('[1]Tasa de Falla'!IM108=0,"",'[1]Tasa de Falla'!IM108) ->  | J108: =IF('[1]Tasa de Falla'!IN108=0,"",'[1]Tasa de Falla'!IN108) ->  | K108: =IF('[1]Tasa de Falla'!IO108=0,"",'[1]Tasa de Falla'!IO108) ->  | L108: =IF('[1]Tasa de Falla'!IP108=0,"",'[1]Tasa de Falla'!IP108) ->  | M108: =IF('[1]Tasa de Falla'!IQ108=0,"",'[1]Tasa de Falla'!IQ108) -> 1 | N108: =IF('[1]Tasa de Falla'!IR108=0,"",'[1]Tasa de Falla'!IR108) ->  | O108: =IF('[1]Tasa de Falla'!IS108=0,"",'[1]Tasa de Falla'!IS108) ->  | P108: =IF('[1]Tasa de Falla'!IT108=0,"",'[1]Tasa de Falla'!IT108) ->  | Q108: =IF('[1]Tasa de Falla'!IU108=0,"",'[1]Tasa de Falla'!IU108) ->  | R108: =IF('[1]Tasa de Falla'!IV108=0,"",'[1]Tasa de Falla'!IV108) -> 
C109: ='[1]Tasa de Falla'!C109 -> 92 | D109: ='[1]Tasa de Falla'!D109 -> BURRUYACU - R. DE LA FRONTERA | E109: ='[1]Tasa de Falla'!E109 -> 132 | F109: ='[1]Tasa de Falla'!F109 -> 99.1 | G109: =IF('[1]Tasa de Falla'!IK109=0,"",'[1]Tasa de Falla'!IK109) ->  | H109: =IF('[1]Tasa de Falla'!IL109=0,"",'[1]Tasa de Falla'!IL109) ->  | I109: =IF('[1]Tasa de Falla'!IM109=0,"",'[1]Tasa de Falla'!IM109) ->  | J109: =IF('[1]Tasa de Falla'!IN109=0,"",'[1]Tasa de Falla'!IN109) ->  | K109: =IF('[1]Tasa de Falla'!IO109=0,"",'[1]Tasa de Falla'!IO109) ->  | L109: =IF('[1]Tasa de Falla'!IP109=0,"",'[1]Tasa de Falla'!IP109) ->  | M109: =IF('[1]Tasa de Falla'!IQ109=0,"",'[1]Tasa de Falla'!IQ109) ->  | N109: =IF('[1]Tasa de Falla'!IR109=0,"",'[1]Tasa de Falla'!IR109) ->  | O109: =IF('[1]Tasa de Falla'!IS109=0,"",'[1]Tasa de Falla'!IS109) ->  | P109: =IF('[1]Tasa de Falla'!IT109=0,"",'[1]Tasa de Falla'!IT109) ->  | Q109: =IF('[1]Tasa de Falla'!IU109=0,"",'[1]Tasa de Falla'!IU109) ->  | R109: =IF('[1]Tasa de Falla'!IV109=0,"",'[1]Tasa de Falla'!IV109) -> 
C110: ='[1]Tasa de Falla'!C110 -> 93 | D110: ='[1]Tasa de Falla'!D110 -> R. DE LA FRONTERA - COBOS | E110: ='[1]Tasa de Falla'!E110 -> 132 | F110: ='[1]Tasa de Falla'!F110 -> 130.4 | G110: =IF('[1]Tasa de Falla'!IK110=0,"",'[1]Tasa de Falla'!IK110) ->  | H110: =IF('[1]Tasa de Falla'!IL110=0,"",'[1]Tasa de Falla'!IL110) ->  | I110: =IF('[1]Tasa de Falla'!IM110=0,"",'[1]Tasa de Falla'!IM110) ->  | J110: =IF('[1]Tasa de Falla'!IN110=0,"",'[1]Tasa de Falla'!IN110) ->  | K110: =IF('[1]Tasa de Falla'!IO110=0,"",'[1]Tasa de Falla'!IO110) ->  | L110: =IF('[1]Tasa de Falla'!IP110=0,"",'[1]Tasa de Falla'!IP110) ->  | M110: =IF('[1]Tasa de Falla'!IQ110=0,"",'[1]Tasa de Falla'!IQ110) ->  | N110: =IF('[1]Tasa de Falla'!IR110=0,"",'[1]Tasa de Falla'!IR110) ->  | O110: =IF('[1]Tasa de Falla'!IS110=0,"",'[1]Tasa de Falla'!IS110) ->  | P110: =IF('[1]Tasa de Falla'!IT110=0,"",'[1]Tasa de Falla'!IT110) -> 1 | Q110: =IF('[1]Tasa de Falla'!IU110=0,"",'[1]Tasa de Falla'!IU110) ->  | R110: =IF('[1]Tasa de Falla'!IV110=0,"",'[1]Tasa de Falla'!IV110) -> 
C111: ='[1]Tasa de Falla'!C111 -> 94 | D111: ='[1]Tasa de Falla'!D111 -> J.V. GONZALEZ - APOLINARIO SARAVIA | E111: ='[1]Tasa de Falla'!E111 -> 132 | F111: ='[1]Tasa de Falla'!F111 -> 94 | G111: =IF('[1]Tasa de Falla'!IK111=0,"",'[1]Tasa de Falla'!IK111) ->  | H111: =IF('[1]Tasa de Falla'!IL111=0,"",'[1]Tasa de Falla'!IL111) ->  | I111: =IF('[1]Tasa de Falla'!IM111=0,"",'[1]Tasa de Falla'!IM111) ->  | J111: =IF('[1]Tasa de Falla'!IN111=0,"",'[1]Tasa de Falla'!IN111) ->  | K111: =IF('[1]Tasa de Falla'!IO111=0,"",'[1]Tasa de Falla'!IO111) ->  | L111: =IF('[1]Tasa de Falla'!IP111=0,"",'[1]Tasa de Falla'!IP111) ->  | M111: =IF('[1]Tasa de Falla'!IQ111=0,"",'[1]Tasa de Falla'!IQ111) ->  | N111: =IF('[1]Tasa de Falla'!IR111=0,"",'[1]Tasa de Falla'!IR111) ->  | O111: =IF('[1]Tasa de Falla'!IS111=0,"",'[1]Tasa de Falla'!IS111) ->  | P111: =IF('[1]Tasa de Falla'!IT111=0,"",'[1]Tasa de Falla'!IT111) ->  | Q111: =IF('[1]Tasa de Falla'!IU111=0,"",'[1]Tasa de Falla'!IU111) ->  | R111: =IF('[1]Tasa de Falla'!IV111=0,"",'[1]Tasa de Falla'!IV111) -> 
C112: ='[1]Tasa de Falla'!C112 -> 95 | D112: ='[1]Tasa de Falla'!D112 -> ANDALGALA - SAULIL | E112: ='[1]Tasa de Falla'!E112 -> 132 | F112: ='[1]Tasa de Falla'!F112 -> 76 | G112: =IF('[1]Tasa de Falla'!IK112=0,"",'[1]Tasa de Falla'!IK112) ->  | H112: =IF('[1]Tasa de Falla'!IL112=0,"",'[1]Tasa de Falla'!IL112) ->  | I112: =IF('[1]Tasa de Falla'!IM112=0,"",'[1]Tasa de Falla'!IM112) ->  | J112: =IF('[1]Tasa de Falla'!IN112=0,"",'[1]Tasa de Falla'!IN112) ->  | K112: =IF('[1]Tasa de Falla'!IO112=0,"",'[1]Tasa de Falla'!IO112) ->  | L112: =IF('[1]Tasa de Falla'!IP112=0,"",'[1]Tasa de Falla'!IP112) ->  | M112: =IF('[1]Tasa de Falla'!IQ112=0,"",'[1]Tasa de Falla'!IQ112) -> 1 | N112: =IF('[1]Tasa de Falla'!IR112=0,"",'[1]Tasa de Falla'!IR112) ->  | O112: =IF('[1]Tasa de Falla'!IS112=0,"",'[1]Tasa de Falla'!IS112) ->  | P112: =IF('[1]Tasa de Falla'!IT112=0,"",'[1]Tasa de Falla'!IT112) ->  | Q112: =IF('[1]Tasa de Falla'!IU112=0,"",'[1]Tasa de Falla'!IU112) ->  | R112: =IF('[1]Tasa de Falla'!IV112=0,"",'[1]Tasa de Falla'!IV112) -> 
C113: ='[1]Tasa de Falla'!C113 -> 96 | D113: ='[1]Tasa de Falla'!D113 -> SANTIAGO OESTE - SANT. SUR - SANT. CENTRO | E113: ='[1]Tasa de Falla'!E113 -> 132 | F113: ='[1]Tasa de Falla'!F113 -> 14.6 | G113: =IF('[1]Tasa de Falla'!IK113=0,"",'[1]Tasa de Falla'!IK113) -> XXXX | H113: =IF('[1]Tasa de Falla'!IL113=0,"",'[1]Tasa de Falla'!IL113) -> XXXX | I113: =IF('[1]Tasa de Falla'!IM113=0,"",'[1]Tasa de Falla'!IM113) -> XXXX | J113: =IF('[1]Tasa de Falla'!IN113=0,"",'[1]Tasa de Falla'!IN113) -> XXXX | K113: =IF('[1]Tasa de Falla'!IO113=0,"",'[1]Tasa de Falla'!IO113) -> XXXX | L113: =IF('[1]Tasa de Falla'!IP113=0,"",'[1]Tasa de Falla'!IP113) -> XXXX | M113: =IF('[1]Tasa de Falla'!IQ113=0,"",'[1]Tasa de Falla'!IQ113) -> XXXX | N113: =IF('[1]Tasa de Falla'!IR113=0,"",'[1]Tasa de Falla'!IR113) -> XXXX | O113: =IF('[1]Tasa de Falla'!IS113=0,"",'[1]Tasa de Falla'!IS113) -> XXXX | P113: =IF('[1]Tasa de Falla'!IT113=0,"",'[1]Tasa de Falla'!IT113) -> XXXX | Q113: =IF('[1]Tasa de Falla'!IU113=0,"",'[1]Tasa de Falla'!IU113) -> XXXX | R113: =IF('[1]Tasa de Falla'!IV113=0,"",'[1]Tasa de Falla'!IV113) -> XXXX
C114: ='[1]Tasa de Falla'!C114 -> 97 | D114: ='[1]Tasa de Falla'!D114 -> SUNCHO CORRAL - QUIMILI | E114: ='[1]Tasa de Falla'!E114 -> 132 | F114: ='[1]Tasa de Falla'!F114 -> 108 | G114: =IF('[1]Tasa de Falla'!IK114=0,"",'[1]Tasa de Falla'!IK114) ->  | H114: =IF('[1]Tasa de Falla'!IL114=0,"",'[1]Tasa de Falla'!IL114) ->  | I114: =IF('[1]Tasa de Falla'!IM114=0,"",'[1]Tasa de Falla'!IM114) ->  | J114: =IF('[1]Tasa de Falla'!IN114=0,"",'[1]Tasa de Falla'!IN114) ->  | K114: =IF('[1]Tasa de Falla'!IO114=0,"",'[1]Tasa de Falla'!IO114) ->  | L114: =IF('[1]Tasa de Falla'!IP114=0,"",'[1]Tasa de Falla'!IP114) ->  | M114: =IF('[1]Tasa de Falla'!IQ114=0,"",'[1]Tasa de Falla'!IQ114) ->  | N114: =IF('[1]Tasa de Falla'!IR114=0,"",'[1]Tasa de Falla'!IR114) ->  | O114: =IF('[1]Tasa de Falla'!IS114=0,"",'[1]Tasa de Falla'!IS114) ->  | P114: =IF('[1]Tasa de Falla'!IT114=0,"",'[1]Tasa de Falla'!IT114) ->  | Q114: =IF('[1]Tasa de Falla'!IU114=0,"",'[1]Tasa de Falla'!IU114) ->  | R114: =IF('[1]Tasa de Falla'!IV114=0,"",'[1]Tasa de Falla'!IV114) -> 
C115: ='[1]Tasa de Falla'!C115 -> 98 | D115: ='[1]Tasa de Falla'!D115 -> EL BRACHO - LA BANDA ESTE | E115: ='[1]Tasa de Falla'!E115 -> 132 | F115: ='[1]Tasa de Falla'!F115 -> 140.9 | G115: =IF('[1]Tasa de Falla'!IK115=0,"",'[1]Tasa de Falla'!IK115) ->  | H115: =IF('[1]Tasa de Falla'!IL115=0,"",'[1]Tasa de Falla'!IL115) ->  | I115: =IF('[1]Tasa de Falla'!IM115=0,"",'[1]Tasa de Falla'!IM115) ->  | J115: =IF('[1]Tasa de Falla'!IN115=0,"",'[1]Tasa de Falla'!IN115) ->  | K115: =IF('[1]Tasa de Falla'!IO115=0,"",'[1]Tasa de Falla'!IO115) ->  | L115: =IF('[1]Tasa de Falla'!IP115=0,"",'[1]Tasa de Falla'!IP115) ->  | M115: =IF('[1]Tasa de Falla'!IQ115=0,"",'[1]Tasa de Falla'!IQ115) ->  | N115: =IF('[1]Tasa de Falla'!IR115=0,"",'[1]Tasa de Falla'!IR115) ->  | O115: =IF('[1]Tasa de Falla'!IS115=0,"",'[1]Tasa de Falla'!IS115) ->  | P115: =IF('[1]Tasa de Falla'!IT115=0,"",'[1]Tasa de Falla'!IT115) -> 1 | Q115: =IF('[1]Tasa de Falla'!IU115=0,"",'[1]Tasa de Falla'!IU115) ->  | R115: =IF('[1]Tasa de Falla'!IV115=0,"",'[1]Tasa de Falla'!IV115) -> 1
C116: ='[1]Tasa de Falla'!C116 -> 99 | D116: ='[1]Tasa de Falla'!D116 -> LA BANDA ESTE - LA BANDA | E116: ='[1]Tasa de Falla'!E116 -> 132 | F116: ='[1]Tasa de Falla'!F116 -> 16.2 | G116: =IF('[1]Tasa de Falla'!IK116=0,"",'[1]Tasa de Falla'!IK116) ->  | H116: =IF('[1]Tasa de Falla'!IL116=0,"",'[1]Tasa de Falla'!IL116) ->  | I116: =IF('[1]Tasa de Falla'!IM116=0,"",'[1]Tasa de Falla'!IM116) ->  | J116: =IF('[1]Tasa de Falla'!IN116=0,"",'[1]Tasa de Falla'!IN116) ->  | K116: =IF('[1]Tasa de Falla'!IO116=0,"",'[1]Tasa de Falla'!IO116) ->  | L116: =IF('[1]Tasa de Falla'!IP116=0,"",'[1]Tasa de Falla'!IP116) ->  | M116: =IF('[1]Tasa de Falla'!IQ116=0,"",'[1]Tasa de Falla'!IQ116) ->  | N116: =IF('[1]Tasa de Falla'!IR116=0,"",'[1]Tasa de Falla'!IR116) ->  | O116: =IF('[1]Tasa de Falla'!IS116=0,"",'[1]Tasa de Falla'!IS116) ->  | P116: =IF('[1]Tasa de Falla'!IT116=0,"",'[1]Tasa de Falla'!IT116) ->  | Q116: =IF('[1]Tasa de Falla'!IU116=0,"",'[1]Tasa de Falla'!IU116) ->  | R116: =IF('[1]Tasa de Falla'!IV116=0,"",'[1]Tasa de Falla'!IV116) -> 
C117: ='[1]Tasa de Falla'!C117 -> 100 | D117: ='[1]Tasa de Falla'!D117 -> TABACAL - PICHANAL | E117: ='[1]Tasa de Falla'!E117 -> 132 | F117: ='[1]Tasa de Falla'!F117 -> 7 | G117: =IF('[1]Tasa de Falla'!IK117=0,"",'[1]Tasa de Falla'!IK117) ->  | H117: =IF('[1]Tasa de Falla'!IL117=0,"",'[1]Tasa de Falla'!IL117) ->  | I117: =IF('[1]Tasa de Falla'!IM117=0,"",'[1]Tasa de Falla'!IM117) ->  | J117: =IF('[1]Tasa de Falla'!IN117=0,"",'[1]Tasa de Falla'!IN117) ->  | K117: =IF('[1]Tasa de Falla'!IO117=0,"",'[1]Tasa de Falla'!IO117) ->  | L117: =IF('[1]Tasa de Falla'!IP117=0,"",'[1]Tasa de Falla'!IP117) ->  | M117: =IF('[1]Tasa de Falla'!IQ117=0,"",'[1]Tasa de Falla'!IQ117) ->  | N117: =IF('[1]Tasa de Falla'!IR117=0,"",'[1]Tasa de Falla'!IR117) ->  | O117: =IF('[1]Tasa de Falla'!IS117=0,"",'[1]Tasa de Falla'!IS117) ->  | P117: =IF('[1]Tasa de Falla'!IT117=0,"",'[1]Tasa de Falla'!IT117) ->  | Q117: =IF('[1]Tasa de Falla'!IU117=0,"",'[1]Tasa de Falla'!IU117) ->  | R117: =IF('[1]Tasa de Falla'!IV117=0,"",'[1]Tasa de Falla'!IV117) -> 
C118: ='[1]Tasa de Falla'!C118 -> 101 | D118: ='[1]Tasa de Falla'!D118 -> ORAN - TABACAL | E118: ='[1]Tasa de Falla'!E118 -> 132 | F118: ='[1]Tasa de Falla'!F118 -> 10 | G118: =IF('[1]Tasa de Falla'!IK118=0,"",'[1]Tasa de Falla'!IK118) ->  | H118: =IF('[1]Tasa de Falla'!IL118=0,"",'[1]Tasa de Falla'!IL118) ->  | I118: =IF('[1]Tasa de Falla'!IM118=0,"",'[1]Tasa de Falla'!IM118) ->  | J118: =IF('[1]Tasa de Falla'!IN118=0,"",'[1]Tasa de Falla'!IN118) ->  | K118: =IF('[1]Tasa de Falla'!IO118=0,"",'[1]Tasa de Falla'!IO118) ->  | L118: =IF('[1]Tasa de Falla'!IP118=0,"",'[1]Tasa de Falla'!IP118) ->  | M118: =IF('[1]Tasa de Falla'!IQ118=0,"",'[1]Tasa de Falla'!IQ118) ->  | N118: =IF('[1]Tasa de Falla'!IR118=0,"",'[1]Tasa de Falla'!IR118) ->  | O118: =IF('[1]Tasa de Falla'!IS118=0,"",'[1]Tasa de Falla'!IS118) ->  | P118: =IF('[1]Tasa de Falla'!IT118=0,"",'[1]Tasa de Falla'!IT118) ->  | Q118: =IF('[1]Tasa de Falla'!IU118=0,"",'[1]Tasa de Falla'!IU118) ->  | R118: =IF('[1]Tasa de Falla'!IV118=0,"",'[1]Tasa de Falla'!IV118) -> 
C119: ='[1]Tasa de Falla'!C119 -> 102 | D119: ='[1]Tasa de Falla'!D119 -> MONTE QUEMADO -COPO - QUIMILI | E119: ='[1]Tasa de Falla'!E119 -> 132 | F119: ='[1]Tasa de Falla'!F119 -> 218 | G119: =IF('[1]Tasa de Falla'!IK119=0,"",'[1]Tasa de Falla'!IK119) ->  | H119: =IF('[1]Tasa de Falla'!IL119=0,"",'[1]Tasa de Falla'!IL119) ->  | I119: =IF('[1]Tasa de Falla'!IM119=0,"",'[1]Tasa de Falla'!IM119) ->  | J119: =IF('[1]Tasa de Falla'!IN119=0,"",'[1]Tasa de Falla'!IN119) ->  | K119: =IF('[1]Tasa de Falla'!IO119=0,"",'[1]Tasa de Falla'!IO119) ->  | L119: =IF('[1]Tasa de Falla'!IP119=0,"",'[1]Tasa de Falla'!IP119) ->  | M119: =IF('[1]Tasa de Falla'!IQ119=0,"",'[1]Tasa de Falla'!IQ119) ->  | N119: =IF('[1]Tasa de Falla'!IR119=0,"",'[1]Tasa de Falla'!IR119) ->  | O119: =IF('[1]Tasa de Falla'!IS119=0,"",'[1]Tasa de Falla'!IS119) ->  | P119: =IF('[1]Tasa de Falla'!IT119=0,"",'[1]Tasa de Falla'!IT119) -> 1 | Q119: =IF('[1]Tasa de Falla'!IU119=0,"",'[1]Tasa de Falla'!IU119) ->  | R119: =IF('[1]Tasa de Falla'!IV119=0,"",'[1]Tasa de Falla'!IV119) -> 
C120: ='[1]Tasa de Falla'!C120 -> 103 | D120: ='[1]Tasa de Falla'!D120 -> PI. CIRCUNVALACIÓN - LARIOJA N. 1 | E120: ='[1]Tasa de Falla'!E120 -> 132 | F120: ='[1]Tasa de Falla'!F120 -> 16.65 | G120: =IF('[1]Tasa de Falla'!IK120=0,"",'[1]Tasa de Falla'!IK120) -> XXXX | H120: =IF('[1]Tasa de Falla'!IL120=0,"",'[1]Tasa de Falla'!IL120) -> XXXX | I120: =IF('[1]Tasa de Falla'!IM120=0,"",'[1]Tasa de Falla'!IM120) -> XXXX | J120: =IF('[1]Tasa de Falla'!IN120=0,"",'[1]Tasa de Falla'!IN120) -> XXXX | K120: =IF('[1]Tasa de Falla'!IO120=0,"",'[1]Tasa de Falla'!IO120) -> XXXX | L120: =IF('[1]Tasa de Falla'!IP120=0,"",'[1]Tasa de Falla'!IP120) ->  | M120: =IF('[1]Tasa de Falla'!IQ120=0,"",'[1]Tasa de Falla'!IQ120) ->  | N120: =IF('[1]Tasa de Falla'!IR120=0,"",'[1]Tasa de Falla'!IR120) ->  | O120: =IF('[1]Tasa de Falla'!IS120=0,"",'[1]Tasa de Falla'!IS120) -> 1 | P120: =IF('[1]Tasa de Falla'!IT120=0,"",'[1]Tasa de Falla'!IT120) ->  | Q120: =IF('[1]Tasa de Falla'!IU120=0,"",'[1]Tasa de Falla'!IU120) ->  | R120: =IF('[1]Tasa de Falla'!IV120=0,"",'[1]Tasa de Falla'!IV120) -> 
C121: ='[1]Tasa de Falla'!C121 -> 104 | D121: ='[1]Tasa de Falla'!D121 -> PATQUIA NONOGASTA 132 1 | E121: ='[1]Tasa de Falla'!E121 -> 132 | F121: ='[1]Tasa de Falla'!F121 -> 108.3 | G121: =IF('[1]Tasa de Falla'!IK121=0,"",'[1]Tasa de Falla'!IK121) -> XXXX | H121: =IF('[1]Tasa de Falla'!IL121=0,"",'[1]Tasa de Falla'!IL121) -> XXXX | I121: =IF('[1]Tasa de Falla'!IM121=0,"",'[1]Tasa de Falla'!IM121) -> XXXX | J121: =IF('[1]Tasa de Falla'!IN121=0,"",'[1]Tasa de Falla'!IN121) -> XXXX | K121: =IF('[1]Tasa de Falla'!IO121=0,"",'[1]Tasa de Falla'!IO121) -> XXXX | L121: =IF('[1]Tasa de Falla'!IP121=0,"",'[1]Tasa de Falla'!IP121) ->  | M121: =IF('[1]Tasa de Falla'!IQ121=0,"",'[1]Tasa de Falla'!IQ121) ->  | N121: =IF('[1]Tasa de Falla'!IR121=0,"",'[1]Tasa de Falla'!IR121) ->  | O121: =IF('[1]Tasa de Falla'!IS121=0,"",'[1]Tasa de Falla'!IS121) ->  | P121: =IF('[1]Tasa de Falla'!IT121=0,"",'[1]Tasa de Falla'!IT121) ->  | Q121: =IF('[1]Tasa de Falla'!IU121=0,"",'[1]Tasa de Falla'!IU121) ->  | R121: =IF('[1]Tasa de Falla'!IV121=0,"",'[1]Tasa de Falla'!IV121) -> 
C122: ='[1]Tasa de Falla'!C122 -> 105 | D122: ='[1]Tasa de Falla'!D122 -> NONOGASTA - VILLA UNION 132 1 | E122: ='[1]Tasa de Falla'!E122 -> 132 | F122: ='[1]Tasa de Falla'!F122 -> 82.1 | G122: =IF('[1]Tasa de Falla'!IK122=0,"",'[1]Tasa de Falla'!IK122) -> XXXX | H122: =IF('[1]Tasa de Falla'!IL122=0,"",'[1]Tasa de Falla'!IL122) -> XXXX | I122: =IF('[1]Tasa de Falla'!IM122=0,"",'[1]Tasa de Falla'!IM122) -> XXXX | J122: =IF('[1]Tasa de Falla'!IN122=0,"",'[1]Tasa de Falla'!IN122) -> XXXX | K122: =IF('[1]Tasa de Falla'!IO122=0,"",'[1]Tasa de Falla'!IO122) -> XXXX | L122: =IF('[1]Tasa de Falla'!IP122=0,"",'[1]Tasa de Falla'!IP122) ->  | M122: =IF('[1]Tasa de Falla'!IQ122=0,"",'[1]Tasa de Falla'!IQ122) ->  | N122: =IF('[1]Tasa de Falla'!IR122=0,"",'[1]Tasa de Falla'!IR122) ->  | O122: =IF('[1]Tasa de Falla'!IS122=0,"",'[1]Tasa de Falla'!IS122) ->  | P122: =IF('[1]Tasa de Falla'!IT122=0,"",'[1]Tasa de Falla'!IT122) ->  | Q122: =IF('[1]Tasa de Falla'!IU122=0,"",'[1]Tasa de Falla'!IU122) ->  | R122: =IF('[1]Tasa de Falla'!IV122=0,"",'[1]Tasa de Falla'!IV122) -> 
C123: ='[1]Tasa de Falla'!C123 -> 106 | D123: ='[1]Tasa de Falla'!D123 -> ARAUCO - AIMOGASTA 132 1 | E123: ='[1]Tasa de Falla'!E123 -> 132 | F123: ='[1]Tasa de Falla'!F123 -> 20 | G123: =IF('[1]Tasa de Falla'!IK123=0,"",'[1]Tasa de Falla'!IK123) -> XXXX | H123: =IF('[1]Tasa de Falla'!IL123=0,"",'[1]Tasa de Falla'!IL123) -> XXXX | I123: =IF('[1]Tasa de Falla'!IM123=0,"",'[1]Tasa de Falla'!IM123) -> XXXX | J123: =IF('[1]Tasa de Falla'!IN123=0,"",'[1]Tasa de Falla'!IN123) -> XXXX | K123: =IF('[1]Tasa de Falla'!IO123=0,"",'[1]Tasa de Falla'!IO123) -> XXXX | L123: =IF('[1]Tasa de Falla'!IP123=0,"",'[1]Tasa de Falla'!IP123) ->  | M123: =IF('[1]Tasa de Falla'!IQ123=0,"",'[1]Tasa de Falla'!IQ123) ->  | N123: =IF('[1]Tasa de Falla'!IR123=0,"",'[1]Tasa de Falla'!IR123) ->  | O123: =IF('[1]Tasa de Falla'!IS123=0,"",'[1]Tasa de Falla'!IS123) ->  | P123: =IF('[1]Tasa de Falla'!IT123=0,"",'[1]Tasa de Falla'!IT123) ->  | Q123: =IF('[1]Tasa de Falla'!IU123=0,"",'[1]Tasa de Falla'!IU123) ->  | R123: =IF('[1]Tasa de Falla'!IV123=0,"",'[1]Tasa de Falla'!IV123) -> 
C124: ='[1]Tasa de Falla'!C124 -> 107 | D124: ='[1]Tasa de Falla'!D124 -> PATQUIA - CHAMICAL 132 1 | E124: ='[1]Tasa de Falla'!E124 -> 132 | F124: ='[1]Tasa de Falla'!F124 -> 67.4 | G124: =IF('[1]Tasa de Falla'!IK124=0,"",'[1]Tasa de Falla'!IK124) -> XXXX | H124: =IF('[1]Tasa de Falla'!IL124=0,"",'[1]Tasa de Falla'!IL124) -> XXXX | I124: =IF('[1]Tasa de Falla'!IM124=0,"",'[1]Tasa de Falla'!IM124) -> XXXX | J124: =IF('[1]Tasa de Falla'!IN124=0,"",'[1]Tasa de Falla'!IN124) -> XXXX | K124: =IF('[1]Tasa de Falla'!IO124=0,"",'[1]Tasa de Falla'!IO124) -> XXXX | L124: =IF('[1]Tasa de Falla'!IP124=0,"",'[1]Tasa de Falla'!IP124) -> 1 | M124: =IF('[1]Tasa de Falla'!IQ124=0,"",'[1]Tasa de Falla'!IQ124) ->  | N124: =IF('[1]Tasa de Falla'!IR124=0,"",'[1]Tasa de Falla'!IR124) ->  | O124: =IF('[1]Tasa de Falla'!IS124=0,"",'[1]Tasa de Falla'!IS124) ->  | P124: =IF('[1]Tasa de Falla'!IT124=0,"",'[1]Tasa de Falla'!IT124) ->  | Q124: =IF('[1]Tasa de Falla'!IU124=0,"",'[1]Tasa de Falla'!IU124) ->  | R124: =IF('[1]Tasa de Falla'!IV124=0,"",'[1]Tasa de Falla'!IV124) -> 
C125: ='[1]Tasa de Falla'!C125 -> 108 | D125: ='[1]Tasa de Falla'!D125 -> LA RIOJA - ARAUCO 132 1 | E125: ='[1]Tasa de Falla'!E125 -> 132 | F125: ='[1]Tasa de Falla'!F125 -> 84.3 | G125: =IF('[1]Tasa de Falla'!IK125=0,"",'[1]Tasa de Falla'!IK125) -> XXXX | H125: =IF('[1]Tasa de Falla'!IL125=0,"",'[1]Tasa de Falla'!IL125) -> XXXX | I125: =IF('[1]Tasa de Falla'!IM125=0,"",'[1]Tasa de Falla'!IM125) -> XXXX | J125: =IF('[1]Tasa de Falla'!IN125=0,"",'[1]Tasa de Falla'!IN125) -> XXXX | K125: =IF('[1]Tasa de Falla'!IO125=0,"",'[1]Tasa de Falla'!IO125) -> XXXX | L125: =IF('[1]Tasa de Falla'!IP125=0,"",'[1]Tasa de Falla'!IP125) ->  | M125: =IF('[1]Tasa de Falla'!IQ125=0,"",'[1]Tasa de Falla'!IQ125) ->  | N125: =IF('[1]Tasa de Falla'!IR125=0,"",'[1]Tasa de Falla'!IR125) ->  | O125: =IF('[1]Tasa de Falla'!IS125=0,"",'[1]Tasa de Falla'!IS125) ->  | P125: =IF('[1]Tasa de Falla'!IT125=0,"",'[1]Tasa de Falla'!IT125) ->  | Q125: =IF('[1]Tasa de Falla'!IU125=0,"",'[1]Tasa de Falla'!IU125) ->  | R125: =IF('[1]Tasa de Falla'!IV125=0,"",'[1]Tasa de Falla'!IV125) -> 
C126: ='[1]Tasa de Falla'!C126 -> 109 | D126: ='[1]Tasa de Falla'!D126 -> PI PATQUIA - PATQUIA 132 1 | E126: ='[1]Tasa de Falla'!E126 -> 132 | F126: ='[1]Tasa de Falla'!F126 -> 58.65 | G126: =IF('[1]Tasa de Falla'!IK126=0,"",'[1]Tasa de Falla'!IK126) -> XXXX | H126: =IF('[1]Tasa de Falla'!IL126=0,"",'[1]Tasa de Falla'!IL126) -> XXXX | I126: =IF('[1]Tasa de Falla'!IM126=0,"",'[1]Tasa de Falla'!IM126) -> XXXX | J126: =IF('[1]Tasa de Falla'!IN126=0,"",'[1]Tasa de Falla'!IN126) -> XXXX | K126: =IF('[1]Tasa de Falla'!IO126=0,"",'[1]Tasa de Falla'!IO126) -> XXXX | L126: =IF('[1]Tasa de Falla'!IP126=0,"",'[1]Tasa de Falla'!IP126) ->  | M126: =IF('[1]Tasa de Falla'!IQ126=0,"",'[1]Tasa de Falla'!IQ126) ->  | N126: =IF('[1]Tasa de Falla'!IR126=0,"",'[1]Tasa de Falla'!IR126) ->  | O126: =IF('[1]Tasa de Falla'!IS126=0,"",'[1]Tasa de Falla'!IS126) ->  | P126: =IF('[1]Tasa de Falla'!IT126=0,"",'[1]Tasa de Falla'!IT126) ->  | Q126: =IF('[1]Tasa de Falla'!IU126=0,"",'[1]Tasa de Falla'!IU126) ->  | R126: =IF('[1]Tasa de Falla'!IV126=0,"",'[1]Tasa de Falla'!IV126) -> 
C127: ='[1]Tasa de Falla'!C127 -> 110 | D127: ='[1]Tasa de Falla'!D127 -> RIO HONDO - TERMAS NORTE | E127: ='[1]Tasa de Falla'!E127 -> 132 | F127: ='[1]Tasa de Falla'!F127 -> 5.8 | G127: =IF('[1]Tasa de Falla'!IK127=0,"",'[1]Tasa de Falla'!IK127) -> XXXX | H127: =IF('[1]Tasa de Falla'!IL127=0,"",'[1]Tasa de Falla'!IL127) -> XXXX | I127: =IF('[1]Tasa de Falla'!IM127=0,"",'[1]Tasa de Falla'!IM127) -> XXXX | J127: =IF('[1]Tasa de Falla'!IN127=0,"",'[1]Tasa de Falla'!IN127) -> XXXX | K127: =IF('[1]Tasa de Falla'!IO127=0,"",'[1]Tasa de Falla'!IO127) -> XXXX | L127: =IF('[1]Tasa de Falla'!IP127=0,"",'[1]Tasa de Falla'!IP127) -> XXXX | M127: =IF('[1]Tasa de Falla'!IQ127=0,"",'[1]Tasa de Falla'!IQ127) -> XXXX | N127: =IF('[1]Tasa de Falla'!IR127=0,"",'[1]Tasa de Falla'!IR127) -> XXXX | O127: =IF('[1]Tasa de Falla'!IS127=0,"",'[1]Tasa de Falla'!IS127) ->  | P127: =IF('[1]Tasa de Falla'!IT127=0,"",'[1]Tasa de Falla'!IT127) ->  | Q127: =IF('[1]Tasa de Falla'!IU127=0,"",'[1]Tasa de Falla'!IU127) ->  | R127: =IF('[1]Tasa de Falla'!IV127=0,"",'[1]Tasa de Falla'!IV127) -> 
C128: ='[1]Tasa de Falla'!C128 -> 111 | D128: ='[1]Tasa de Falla'!D128 -> EL BRACHO - TETRMAS NORTE | E128: ='[1]Tasa de Falla'!E128 -> 132 | F128: ='[1]Tasa de Falla'!F128 -> 78.4 | G128: =IF('[1]Tasa de Falla'!IK128=0,"",'[1]Tasa de Falla'!IK128) -> XXXX | H128: =IF('[1]Tasa de Falla'!IL128=0,"",'[1]Tasa de Falla'!IL128) -> XXXX | I128: =IF('[1]Tasa de Falla'!IM128=0,"",'[1]Tasa de Falla'!IM128) -> XXXX | J128: =IF('[1]Tasa de Falla'!IN128=0,"",'[1]Tasa de Falla'!IN128) -> XXXX | K128: =IF('[1]Tasa de Falla'!IO128=0,"",'[1]Tasa de Falla'!IO128) -> XXXX | L128: =IF('[1]Tasa de Falla'!IP128=0,"",'[1]Tasa de Falla'!IP128) -> XXXX | M128: =IF('[1]Tasa de Falla'!IQ128=0,"",'[1]Tasa de Falla'!IQ128) -> XXXX | N128: =IF('[1]Tasa de Falla'!IR128=0,"",'[1]Tasa de Falla'!IR128) -> XXXX | O128: =IF('[1]Tasa de Falla'!IS128=0,"",'[1]Tasa de Falla'!IS128) ->  | P128: =IF('[1]Tasa de Falla'!IT128=0,"",'[1]Tasa de Falla'!IT128) ->  | Q128: =IF('[1]Tasa de Falla'!IU128=0,"",'[1]Tasa de Falla'!IU128) ->  | R128: =IF('[1]Tasa de Falla'!IV128=0,"",'[1]Tasa de Falla'!IV128) -> 
C129: ='[1]Tasa de Falla'!C129 -> 112 | D129: ='[1]Tasa de Falla'!D129 -> PI 150 NORTE - LA RIOJA ESTE | E129: ='[1]Tasa de Falla'!E129 -> 132 | F129: ='[1]Tasa de Falla'!F129 -> 4 | G129: =IF('[1]Tasa de Falla'!IK129=0,"",'[1]Tasa de Falla'!IK129) -> XXXX | H129: =IF('[1]Tasa de Falla'!IL129=0,"",'[1]Tasa de Falla'!IL129) -> XXXX | I129: =IF('[1]Tasa de Falla'!IM129=0,"",'[1]Tasa de Falla'!IM129) -> XXXX | J129: =IF('[1]Tasa de Falla'!IN129=0,"",'[1]Tasa de Falla'!IN129) -> XXXX | K129: =IF('[1]Tasa de Falla'!IO129=0,"",'[1]Tasa de Falla'!IO129) -> XXXX | L129: =IF('[1]Tasa de Falla'!IP129=0,"",'[1]Tasa de Falla'!IP129) -> XXXX | M129: =IF('[1]Tasa de Falla'!IQ129=0,"",'[1]Tasa de Falla'!IQ129) -> XXXX | N129: =IF('[1]Tasa de Falla'!IR129=0,"",'[1]Tasa de Falla'!IR129) -> XXXX | O129: =IF('[1]Tasa de Falla'!IS129=0,"",'[1]Tasa de Falla'!IS129) ->  | P129: =IF('[1]Tasa de Falla'!IT129=0,"",'[1]Tasa de Falla'!IT129) ->  | Q129: =IF('[1]Tasa de Falla'!IU129=0,"",'[1]Tasa de Falla'!IU129) ->  | R129: =IF('[1]Tasa de Falla'!IV129=0,"",'[1]Tasa de Falla'!IV129) -> 
C130: ='[1]Tasa de Falla'!C130 -> 113 | D130: ='[1]Tasa de Falla'!D130 -> PI 150 SUR - LA RIOJA ESTE | E130: ='[1]Tasa de Falla'!E130 -> 132 | F130: ='[1]Tasa de Falla'!F130 -> 4 | G130: =IF('[1]Tasa de Falla'!IK130=0,"",'[1]Tasa de Falla'!IK130) -> XXXX | H130: =IF('[1]Tasa de Falla'!IL130=0,"",'[1]Tasa de Falla'!IL130) -> XXXX | I130: =IF('[1]Tasa de Falla'!IM130=0,"",'[1]Tasa de Falla'!IM130) -> XXXX | J130: =IF('[1]Tasa de Falla'!IN130=0,"",'[1]Tasa de Falla'!IN130) -> XXXX | K130: =IF('[1]Tasa de Falla'!IO130=0,"",'[1]Tasa de Falla'!IO130) -> XXXX | L130: =IF('[1]Tasa de Falla'!IP130=0,"",'[1]Tasa de Falla'!IP130) -> XXXX | M130: =IF('[1]Tasa de Falla'!IQ130=0,"",'[1]Tasa de Falla'!IQ130) -> XXXX | N130: =IF('[1]Tasa de Falla'!IR130=0,"",'[1]Tasa de Falla'!IR130) -> XXXX | O130: =IF('[1]Tasa de Falla'!IS130=0,"",'[1]Tasa de Falla'!IS130) ->  | P130: =IF('[1]Tasa de Falla'!IT130=0,"",'[1]Tasa de Falla'!IT130) ->  | Q130: =IF('[1]Tasa de Falla'!IU130=0,"",'[1]Tasa de Falla'!IU130) ->  | R130: =IF('[1]Tasa de Falla'!IV130=0,"",'[1]Tasa de Falla'!IV130) -> 
C131: ='[1]Tasa de Falla'!C131 -> 114 | D131: ='[1]Tasa de Falla'!D131 -> QUIMILI - CAMPO GALLO 132 1 | E131: ='[1]Tasa de Falla'!E131 -> 132 | F131: ='[1]Tasa de Falla'!F131 -> 140 | G131: =IF('[1]Tasa de Falla'!IK131=0,"",'[1]Tasa de Falla'!IK131) -> XXXX | H131: =IF('[1]Tasa de Falla'!IL131=0,"",'[1]Tasa de Falla'!IL131) -> XXXX | I131: =IF('[1]Tasa de Falla'!IM131=0,"",'[1]Tasa de Falla'!IM131) -> XXXX | J131: =IF('[1]Tasa de Falla'!IN131=0,"",'[1]Tasa de Falla'!IN131) -> XXXX | K131: =IF('[1]Tasa de Falla'!IO131=0,"",'[1]Tasa de Falla'!IO131) -> XXXX | L131: =IF('[1]Tasa de Falla'!IP131=0,"",'[1]Tasa de Falla'!IP131) -> XXXX | M131: =IF('[1]Tasa de Falla'!IQ131=0,"",'[1]Tasa de Falla'!IQ131) -> XXXX | N131: =IF('[1]Tasa de Falla'!IR131=0,"",'[1]Tasa de Falla'!IR131) -> XXXX | O131: =IF('[1]Tasa de Falla'!IS131=0,"",'[1]Tasa de Falla'!IS131) -> XXXX | P131: =IF('[1]Tasa de Falla'!IT131=0,"",'[1]Tasa de Falla'!IT131) ->  | Q131: =IF('[1]Tasa de Falla'!IU131=0,"",'[1]Tasa de Falla'!IU131) ->  | R131: =IF('[1]Tasa de Falla'!IV131=0,"",'[1]Tasa de Falla'!IV131) -> 
C132: ='[1]Tasa de Falla'!C132 -> 115 | D132: ='[1]Tasa de Falla'!D132 -> CAMPO GALLO - COPO 132 1 | E132: ='[1]Tasa de Falla'!E132 -> 132 | F132: ='[1]Tasa de Falla'!F132 -> 90 | G132: =IF('[1]Tasa de Falla'!IK132=0,"",'[1]Tasa de Falla'!IK132) -> XXXX | H132: =IF('[1]Tasa de Falla'!IL132=0,"",'[1]Tasa de Falla'!IL132) -> XXXX | I132: =IF('[1]Tasa de Falla'!IM132=0,"",'[1]Tasa de Falla'!IM132) -> XXXX | J132: =IF('[1]Tasa de Falla'!IN132=0,"",'[1]Tasa de Falla'!IN132) -> XXXX | K132: =IF('[1]Tasa de Falla'!IO132=0,"",'[1]Tasa de Falla'!IO132) -> XXXX | L132: =IF('[1]Tasa de Falla'!IP132=0,"",'[1]Tasa de Falla'!IP132) -> XXXX | M132: =IF('[1]Tasa de Falla'!IQ132=0,"",'[1]Tasa de Falla'!IQ132) -> XXXX | N132: =IF('[1]Tasa de Falla'!IR132=0,"",'[1]Tasa de Falla'!IR132) -> XXXX | O132: =IF('[1]Tasa de Falla'!IS132=0,"",'[1]Tasa de Falla'!IS132) -> XXXX | P132: =IF('[1]Tasa de Falla'!IT132=0,"",'[1]Tasa de Falla'!IT132) ->  | Q132: =IF('[1]Tasa de Falla'!IU132=0,"",'[1]Tasa de Falla'!IU132) ->  | R132: =IF('[1]Tasa de Falla'!IV132=0,"",'[1]Tasa de Falla'!IV132) -> 
C133: ='[1]Tasa de Falla'!C133 -> 116 | D133: ='[1]Tasa de Falla'!D133 -> PICHANAL - SENDA HACHADA 132 1 | E133: ='[1]Tasa de Falla'!E133 -> 132 | F133: ='[1]Tasa de Falla'!F133 -> 46.5 | G133: =IF('[1]Tasa de Falla'!IK133=0,"",'[1]Tasa de Falla'!IK133) -> XXXX | H133: =IF('[1]Tasa de Falla'!IL133=0,"",'[1]Tasa de Falla'!IL133) -> XXXX | I133: =IF('[1]Tasa de Falla'!IM133=0,"",'[1]Tasa de Falla'!IM133) -> XXXX | J133: =IF('[1]Tasa de Falla'!IN133=0,"",'[1]Tasa de Falla'!IN133) -> XXXX | K133: =IF('[1]Tasa de Falla'!IO133=0,"",'[1]Tasa de Falla'!IO133) -> XXXX | L133: =IF('[1]Tasa de Falla'!IP133=0,"",'[1]Tasa de Falla'!IP133) -> XXXX | M133: =IF('[1]Tasa de Falla'!IQ133=0,"",'[1]Tasa de Falla'!IQ133) -> XXXX | N133: =IF('[1]Tasa de Falla'!IR133=0,"",'[1]Tasa de Falla'!IR133) -> XXXX | O133: =IF('[1]Tasa de Falla'!IS133=0,"",'[1]Tasa de Falla'!IS133) -> XXXX | P133: =IF('[1]Tasa de Falla'!IT133=0,"",'[1]Tasa de Falla'!IT133) -> XXXX | Q133: =IF('[1]Tasa de Falla'!IU133=0,"",'[1]Tasa de Falla'!IU133) -> XXXX | R133: =IF('[1]Tasa de Falla'!IV133=0,"",'[1]Tasa de Falla'!IV133) -> 
C134: ='[1]Tasa de Falla'!C134 -> 117 | D134: ='[1]Tasa de Falla'!D134 -> SENDA HACHADA - TARTAGAL 132 1 | E134: ='[1]Tasa de Falla'!E134 -> 132 | F134: ='[1]Tasa de Falla'!F134 -> 58.5 | G134: =IF('[1]Tasa de Falla'!IK134=0,"",'[1]Tasa de Falla'!IK134) -> XXXX | H134: =IF('[1]Tasa de Falla'!IL134=0,"",'[1]Tasa de Falla'!IL134) -> XXXX | I134: =IF('[1]Tasa de Falla'!IM134=0,"",'[1]Tasa de Falla'!IM134) -> XXXX | J134: =IF('[1]Tasa de Falla'!IN134=0,"",'[1]Tasa de Falla'!IN134) -> XXXX | K134: =IF('[1]Tasa de Falla'!IO134=0,"",'[1]Tasa de Falla'!IO134) -> XXXX | L134: =IF('[1]Tasa de Falla'!IP134=0,"",'[1]Tasa de Falla'!IP134) -> XXXX | M134: =IF('[1]Tasa de Falla'!IQ134=0,"",'[1]Tasa de Falla'!IQ134) -> XXXX | N134: =IF('[1]Tasa de Falla'!IR134=0,"",'[1]Tasa de Falla'!IR134) -> XXXX | O134: =IF('[1]Tasa de Falla'!IS134=0,"",'[1]Tasa de Falla'!IS134) -> XXXX | P134: =IF('[1]Tasa de Falla'!IT134=0,"",'[1]Tasa de Falla'!IT134) -> XXXX | Q134: =IF('[1]Tasa de Falla'!IU134=0,"",'[1]Tasa de Falla'!IU134) -> XXXX | R134: =IF('[1]Tasa de Falla'!IV134=0,"",'[1]Tasa de Falla'!IV134) -> 
C135: ='[1]Tasa de Falla'!C135 -> 118 | D135: ='[1]Tasa de Falla'!D135 -> ESTATICA - INDEPENDENCIA.TUC. 132 2 | E135: ='[1]Tasa de Falla'!E135 -> 132 | F135: ='[1]Tasa de Falla'!F135 -> 3.1 | G135: =IF('[1]Tasa de Falla'!IK135=0,"",'[1]Tasa de Falla'!IK135) -> XXXX | H135: =IF('[1]Tasa de Falla'!IL135=0,"",'[1]Tasa de Falla'!IL135) -> XXXX | I135: =IF('[1]Tasa de Falla'!IM135=0,"",'[1]Tasa de Falla'!IM135) -> XXXX | J135: =IF('[1]Tasa de Falla'!IN135=0,"",'[1]Tasa de Falla'!IN135) -> XXXX | K135: =IF('[1]Tasa de Falla'!IO135=0,"",'[1]Tasa de Falla'!IO135) -> XXXX | L135: =IF('[1]Tasa de Falla'!IP135=0,"",'[1]Tasa de Falla'!IP135) -> XXXX | M135: =IF('[1]Tasa de Falla'!IQ135=0,"",'[1]Tasa de Falla'!IQ135) -> XXXX | N135: =IF('[1]Tasa de Falla'!IR135=0,"",'[1]Tasa de Falla'!IR135) -> XXXX | O135: =IF('[1]Tasa de Falla'!IS135=0,"",'[1]Tasa de Falla'!IS135) -> XXXX | P135: =IF('[1]Tasa de Falla'!IT135=0,"",'[1]Tasa de Falla'!IT135) -> XXXX | Q135: =IF('[1]Tasa de Falla'!IU135=0,"",'[1]Tasa de Falla'!IU135) -> XXXX | R135: =IF('[1]Tasa de Falla'!IV135=0,"",'[1]Tasa de Falla'!IV135) -> XXXX
C136: ='[1]Tasa de Falla'!C136 -> 119 | D136: ='[1]Tasa de Falla'!D136 -> SENDA HACHADA - DRAGONES 132 1 | E136: ='[1]Tasa de Falla'!E136 -> 132 | F136: ='[1]Tasa de Falla'!F136 -> 65 | G136: =IF('[1]Tasa de Falla'!IK136=0,"",'[1]Tasa de Falla'!IK136) -> XXXX | H136: =IF('[1]Tasa de Falla'!IL136=0,"",'[1]Tasa de Falla'!IL136) -> XXXX | I136: =IF('[1]Tasa de Falla'!IM136=0,"",'[1]Tasa de Falla'!IM136) -> XXXX | J136: =IF('[1]Tasa de Falla'!IN136=0,"",'[1]Tasa de Falla'!IN136) -> XXXX | K136: =IF('[1]Tasa de Falla'!IO136=0,"",'[1]Tasa de Falla'!IO136) -> XXXX | L136: =IF('[1]Tasa de Falla'!IP136=0,"",'[1]Tasa de Falla'!IP136) -> XXXX | M136: =IF('[1]Tasa de Falla'!IQ136=0,"",'[1]Tasa de Falla'!IQ136) -> XXXX | N136: =IF('[1]Tasa de Falla'!IR136=0,"",'[1]Tasa de Falla'!IR136) -> XXXX | O136: =IF('[1]Tasa de Falla'!IS136=0,"",'[1]Tasa de Falla'!IS136) -> XXXX | P136: =IF('[1]Tasa de Falla'!IT136=0,"",'[1]Tasa de Falla'!IT136) -> XXXX | Q136: =IF('[1]Tasa de Falla'!IU136=0,"",'[1]Tasa de Falla'!IU136) -> XXXX | R136: =IF('[1]Tasa de Falla'!IV136=0,"",'[1]Tasa de Falla'!IV136) -> XXXX
C137: ='[1]Tasa de Falla'!C137 -> 120 | D137: ='[1]Tasa de Falla'!D137 -> COBOS - SALTA ESTE 132 1 | E137: ='[1]Tasa de Falla'!E137 -> 132 | F137: ='[1]Tasa de Falla'!F137 -> 45.6 | G137: =IF('[1]Tasa de Falla'!IK137=0,"",'[1]Tasa de Falla'!IK137) -> XXXX | H137: =IF('[1]Tasa de Falla'!IL137=0,"",'[1]Tasa de Falla'!IL137) -> XXXX | I137: =IF('[1]Tasa de Falla'!IM137=0,"",'[1]Tasa de Falla'!IM137) -> XXXX | J137: =IF('[1]Tasa de Falla'!IN137=0,"",'[1]Tasa de Falla'!IN137) -> XXXX | K137: =IF('[1]Tasa de Falla'!IO137=0,"",'[1]Tasa de Falla'!IO137) -> XXXX | L137: =IF('[1]Tasa de Falla'!IP137=0,"",'[1]Tasa de Falla'!IP137) -> XXXX | M137: =IF('[1]Tasa de Falla'!IQ137=0,"",'[1]Tasa de Falla'!IQ137) -> XXXX | N137: =IF('[1]Tasa de Falla'!IR137=0,"",'[1]Tasa de Falla'!IR137) -> XXXX | O137: =IF('[1]Tasa de Falla'!IS137=0,"",'[1]Tasa de Falla'!IS137) -> XXXX | P137: =IF('[1]Tasa de Falla'!IT137=0,"",'[1]Tasa de Falla'!IT137) -> XXXX | Q137: =IF('[1]Tasa de Falla'!IU137=0,"",'[1]Tasa de Falla'!IU137) -> XXXX | R137: =IF('[1]Tasa de Falla'!IV137=0,"",'[1]Tasa de Falla'!IV137) -> XXXX
C138: ='[1]Tasa de Falla'!C138 -> 121 | D138: ='[1]Tasa de Falla'!D138 -> SANTIAGO - SANTIAGO SUR | E138: ='[1]Tasa de Falla'!E138 -> 132 | F138: ='[1]Tasa de Falla'!F138 -> 8.4 | G138: =IF('[1]Tasa de Falla'!IK138=0,"",'[1]Tasa de Falla'!IK138) -> XXXX | H138: =IF('[1]Tasa de Falla'!IL138=0,"",'[1]Tasa de Falla'!IL138) -> XXXX | I138: =IF('[1]Tasa de Falla'!IM138=0,"",'[1]Tasa de Falla'!IM138) -> XXXX | J138: =IF('[1]Tasa de Falla'!IN138=0,"",'[1]Tasa de Falla'!IN138) -> XXXX | K138: =IF('[1]Tasa de Falla'!IO138=0,"",'[1]Tasa de Falla'!IO138) -> XXXX | L138: =IF('[1]Tasa de Falla'!IP138=0,"",'[1]Tasa de Falla'!IP138) -> XXXX | M138: =IF('[1]Tasa de Falla'!IQ138=0,"",'[1]Tasa de Falla'!IQ138) -> XXXX | N138: =IF('[1]Tasa de Falla'!IR138=0,"",'[1]Tasa de Falla'!IR138) -> XXXX | O138: =IF('[1]Tasa de Falla'!IS138=0,"",'[1]Tasa de Falla'!IS138) -> XXXX | P138: =IF('[1]Tasa de Falla'!IT138=0,"",'[1]Tasa de Falla'!IT138) -> XXXX | Q138: =IF('[1]Tasa de Falla'!IU138=0,"",'[1]Tasa de Falla'!IU138) -> XXXX | R138: =IF('[1]Tasa de Falla'!IV138=0,"",'[1]Tasa de Falla'!IV138) -> XXXX
C139: ='[1]Tasa de Falla'!C139 -> 122 | D139: ='[1]Tasa de Falla'!D139 -> SANTIAGO OESTE - SANTIAGO | E139: ='[1]Tasa de Falla'!E139 -> 132 | F139: ='[1]Tasa de Falla'!F139 -> 8.4 | G139: =IF('[1]Tasa de Falla'!IK139=0,"",'[1]Tasa de Falla'!IK139) -> XXXX | H139: =IF('[1]Tasa de Falla'!IL139=0,"",'[1]Tasa de Falla'!IL139) -> XXXX | I139: =IF('[1]Tasa de Falla'!IM139=0,"",'[1]Tasa de Falla'!IM139) -> XXXX | J139: =IF('[1]Tasa de Falla'!IN139=0,"",'[1]Tasa de Falla'!IN139) -> XXXX | K139: =IF('[1]Tasa de Falla'!IO139=0,"",'[1]Tasa de Falla'!IO139) -> XXXX | L139: =IF('[1]Tasa de Falla'!IP139=0,"",'[1]Tasa de Falla'!IP139) -> XXXX | M139: =IF('[1]Tasa de Falla'!IQ139=0,"",'[1]Tasa de Falla'!IQ139) -> XXXX | N139: =IF('[1]Tasa de Falla'!IR139=0,"",'[1]Tasa de Falla'!IR139) -> XXXX | O139: =IF('[1]Tasa de Falla'!IS139=0,"",'[1]Tasa de Falla'!IS139) -> XXXX | P139: =IF('[1]Tasa de Falla'!IT139=0,"",'[1]Tasa de Falla'!IT139) -> XXXX | Q139: =IF('[1]Tasa de Falla'!IU139=0,"",'[1]Tasa de Falla'!IU139) -> XXXX | R139: =IF('[1]Tasa de Falla'!IV139=0,"",'[1]Tasa de Falla'!IV139) -> XXXX
C140: ='[1]Tasa de Falla'!C140 -> 123 | D140: ='[1]Tasa de Falla'!D140 -> LA BANDA - MISQUI MAYU II - SANTIAGO ESTE II | E140: ='[1]Tasa de Falla'!E140 -> 132 | F140: ='[1]Tasa de Falla'!F140 -> 4.92 | G140: =IF('[1]Tasa de Falla'!IK140=0,"",'[1]Tasa de Falla'!IK140) -> XXXX | H140: =IF('[1]Tasa de Falla'!IL140=0,"",'[1]Tasa de Falla'!IL140) -> XXXX | I140: =IF('[1]Tasa de Falla'!IM140=0,"",'[1]Tasa de Falla'!IM140) -> XXXX | J140: =IF('[1]Tasa de Falla'!IN140=0,"",'[1]Tasa de Falla'!IN140) -> XXXX | K140: =IF('[1]Tasa de Falla'!IO140=0,"",'[1]Tasa de Falla'!IO140) -> XXXX | L140: =IF('[1]Tasa de Falla'!IP140=0,"",'[1]Tasa de Falla'!IP140) -> XXXX | M140: =IF('[1]Tasa de Falla'!IQ140=0,"",'[1]Tasa de Falla'!IQ140) -> XXXX | N140: =IF('[1]Tasa de Falla'!IR140=0,"",'[1]Tasa de Falla'!IR140) -> XXXX | O140: =IF('[1]Tasa de Falla'!IS140=0,"",'[1]Tasa de Falla'!IS140) -> XXXX | P140: =IF('[1]Tasa de Falla'!IT140=0,"",'[1]Tasa de Falla'!IT140) -> XXXX | Q140: =IF('[1]Tasa de Falla'!IU140=0,"",'[1]Tasa de Falla'!IU140) -> XXXX | R140: =IF('[1]Tasa de Falla'!IV140=0,"",'[1]Tasa de Falla'!IV140) -> XXXX
G141: =IF('[1]Tasa de Falla'!IK141=0,"",'[1]Tasa de Falla'!IK141) ->  | H141: =IF('[1]Tasa de Falla'!IL141=0,"",'[1]Tasa de Falla'!IL141) ->  | I141: =IF('[1]Tasa de Falla'!IM141=0,"",'[1]Tasa de Falla'!IM141) ->  | J141: =IF('[1]Tasa de Falla'!IN141=0,"",'[1]Tasa de Falla'!IN141) ->  | K141: =IF('[1]Tasa de Falla'!IO141=0,"",'[1]Tasa de Falla'!IO141) ->  | L141: =IF('[1]Tasa de Falla'!IP141=0,"",'[1]Tasa de Falla'!IP141) ->  | M141: =IF('[1]Tasa de Falla'!IQ141=0,"",'[1]Tasa de Falla'!IQ141) ->  | N141: =IF('[1]Tasa de Falla'!IR141=0,"",'[1]Tasa de Falla'!IR141) ->  | O141: =IF('[1]Tasa de Falla'!IS141=0,"",'[1]Tasa de Falla'!IS141) ->  | P141: =IF('[1]Tasa de Falla'!IT141=0,"",'[1]Tasa de Falla'!IT141) ->  | Q141: =IF('[1]Tasa de Falla'!IU141=0,"",'[1]Tasa de Falla'!IU141) ->  | R141: =IF('[1]Tasa de Falla'!IV141=0,"",'[1]Tasa de Falla'!IV141) -> 
E142: Longitud Total | F142: =SUM(F16:F141)-F19-F21-F22-F23-F26-F27-F37-F39-F40-F41-F43-F44-F47-F48-F49-F53-F60-F61-F65-F76-F80-F93-F94-F99-F109-F131-F132-F133-F134 -> 5053.47
F143: Indisponibilidades Forzadas | G143: =SUM(G17:G141) -> 13 | H143: 4 | I143: 17 | J143: 2 | K143: 6 | L143: 3 | M143: 5 | N143: 17 | O143: 10 | P143: 19 | Q143: 12 | R143: 14
F144: TASA DE FALLA | G144: =+'[1]Tasa de Falla'!IK151 -> 4.19 | H144: =+'[1]Tasa de Falla'!IL151 -> 4.33 | I144: =+'[1]Tasa de Falla'!IM151 -> 4.37 | J144: =+'[1]Tasa de Falla'!IN151 -> 4.65 | K144: =+'[1]Tasa de Falla'!IO151 -> 4.65 | L144: =+'[1]Tasa de Falla'!IP151 -> 3.87 | M144: =+'[1]Tasa de Falla'!IQ151 -> 3.45 | N144: =+'[1]Tasa de Falla'!IR151 -> 3.26 | O144: =+'[1]Tasa de Falla'!IS151 -> 3.35 | P144: =+'[1]Tasa de Falla'!IT151 -> 2.96 | Q144: =+'[1]Tasa de Falla'!IU151 -> 2.64 | R144: =+'[1]Tasa de Falla'!IV151 -> 2.37 | S144: =+'[1]Tasa de Falla'!IW151 -> 2.45
C146: XXX | D146: Línea no computada en el mes | J146: TASA DE FALLA | M146: =S144 -> 2.45 | N146: SALIDAS x AÑO / 100 km

Sheet DATO
A1: Mes | B1: Mes | C1: Dia | D1: Año
A2: enero | B2: 01 | C2: 31 | D2: 2006
A3: febrero | B3: 02 | C3: =IF(MOD(E14,4)=0,29,28) -> 28 | D3: =+D2+1 -> 2007
A4: marzo | B4: 03 | C4: 31 | D4: 2008
A5: abril | B5: 04 | C5: 30 | D5: 2009
A6: mayo | B6: 05 | C6: 31 | D6: 2010
A7: junio | B7: 06 | C7: 30 | D7: 2011
A8: julio | B8: 07 | C8: 31 | D8: 2012
A9: agosto | B9: 08 | C9: 31 | D9: 2013
A10: septiembre | B10: 09 | C10: 30 | D10: 2014
A11: octubre | B11: 10 | C11: 31 | D11: 2015
A12: noviembre | B12: 11 | C12: 30
A13: diciembre | B13: 12 | C13: 31 | I13: Total
A14: 10 | B14: 4 | C14: =CELL("CONTENIDO",OFFSET(A1,B14,0)) -> abril | D14: =CELL("CONTENIDO",OFFSET(C1,B14,0)) -> 30 | E14: =CELL("CONTENIDO",OFFSET(D1,A14,0)) -> 2015 | F14: ="Desde el 01 al " & D14 & " de " & C14 & " de " & E14 -> Desde el 01 al 30 de abril de 2015 | G14: =CELL("CONTENIDO",OFFSET(B1,B14,0)) -> 04 | H14: =RIGHT(E14,2) -> 15 | I14: B14
B15: ="\\rugor\files\Transporte\Transporte\AA PROCESO AUT ARCHIVOS J\TRANSNOA\" &E14 -> \\rugor\files\Transporte\Transporte\AA PROCESO AUT ARCHIVOS J\TRANSNOA\2015 | G15: ="J"&G14&H14&"NOA" -> J0415NOA
B16: ="\\rugor\files\Transporte\transporte\AA PROCESO AUT\INTERCAMBIO\" &H14&G14 -> \\rugor\files\Transporte\transporte\AA PROCESO AUT\INTERCAMBIO\1504
A17: Hoja | B17: FilaInicio | C17: FilasPlantilla | D17: Columnas | E17: NombreHoja | F17: OrigenDeDatos | G17: Col00 | H17: Col01 | I17: Col02 | J17: Col03 | K17: Col04 | L17: Col05 | M17: Col06 | N17: Col07 | O17: Col08 | P17: Col09 | Q17: Col10 | R17: Col11 | S17: Col12 | T17: Col13 | U17: Col14 | V17: Col15 | W17: FILHTOTAL | X17: COLHTOTAL | Y17: FILHCALC | Z17: COLHCALC | AA17: FILTRANSP | AB17: COLTRANSP | AC17: COL TSAL
A18: MODELO L | B18: 21 | C18: 20 | D18: 11 | E18: ="LI-" & $G$14 -> LI-04 | F18: TRANSNOA_INDISPONIBILIDADES_LINEAS_TRANSNOA.XLS | G18: 3 | H18: 5 | I18: 4 | J18: 6 | K18: 7 | L18: 8 | M18: 0 | N18: 10 | O18: 11 | P18: 14 | Q18: 0 | R18: 26 | S18: 0 | T18: 0 | U18: 0 | V18: 0 | W18: 19 | X18: 10 | Y18: 42 | Z18: 27 | AA18: 19 | AB18: 27 | AC18: 14
A19: MODELO T | B19: 24 | C19: 20 | D19: 13 | E19: ="T-" & $G$14 -> T-04 | F19: TRANSNOA_INDISPONIBILIDADES_TRAFOS_TRANSNOA.XLS | G19: 3 | H19: 5 | I19: 4 | J19: 6 | K19: 7 | L19: 8 | M19: 9 | N19: 11 | O19: 12 | P19: 15 | Q19: 16 | R19: 18 | S19: 28 | T19: 17 | U19: 0 | V19: 0 | W19: 25 | X19: 10 | Y19: 45 | Z19: 29 | AA19: 22 | AB19: 29 | AC19: 15
A20: MODELO S | B20: 23 | C20: 20 | D20: 10 | E20: ="SA-" & $G$14 -> SA-04 | F20: TRANSNOA_INDISPONIBILIDADES_SALIDAS_TRANSNOA.XLS | G20: 3 | H20: 5 | I20: 4 | J20: 6 | K20: 7 | L20: 8 | M20: 10 | N20: 11 | O20: 14 | P20: 15 | Q20: 21 | R20: 0 | S20: 0 | T20: 0 | U20: 0 | V20: 0 | W20: 29 | X20: 10 | Y20: 44 | Z20: 22 | AA20: 21 | AB20: 22 | AC20: 14
A21: MODELO L RIOJA | B21: 21 | C21: 20 | D21: 11 | E21: ="LI-RIOJA-" & $G$14 -> LI-RIOJA-04 | F21: TRANSNOA_INDISPONIBILIDADES_LINEAS_RIOJA.XLS | G21: 3 | H21: 5 | I21: 4 | J21: 6 | K21: 7 | L21: 8 | M21: 0 | N21: 10 | O21: 11 | P21: 14 | Q21: 2 | R21: 26 | S21: 0 | T21: 0 | U21: 0 | V21: 0 | W21: 21 | X21: 10 | Y21: 42 | Z21: 27 | AA21: 19 | AB21: 27 | AC21: 14
A22: MODELO L EDESA | B22: 21 | C22: 20 | D22: 11 | E22: ="LI-EDESA-" & $G$14 -> LI-EDESA-04 | F22: TRANSNOA_INDISPONIBILIDADES_LINEAS_EDESA.XLS | G22: 3 | H22: 5 | I22: 4 | J22: 6 | K22: 7 | L22: 8 | M22: 0 | N22: 10 | O22: 11 | P22: 14 | Q22: 2 | R22: 26 | S22: 0 | T22: 0 | U22: 0 | V22: 0 | W22: 20 | X22: 10 | Y22: 42 | Z22: 27 | AA22: 19 | AB22: 27 | AC22: 14
A23: MODELO T EDESA | B23: 24 | C23: 20 | D23: 13 | E23: ="T-EDESA-" & $G$14 -> T-EDESA-04 | F23: TRANSNOA_INDISPONIBILIDADES_TRAFOS_EDESA.XLS | G23: 3 | H23: 5 | I23: 4 | J23: 6 | K23: 7 | L23: 8 | M23: 9 | N23: 11 | O23: 12 | P23: 15 | Q23: 16 | R23: 18 | S23: 28 | T23: 17 | U23: 0 | V23: 0 | W23: 26 | X23: 10 | Y23: 45 | Z23: 29 | AA23: 22 | AB23: 29 | AC23: 15
A24: MODELO S EDESA | B24: 23 | C24: 20 | D24: 10 | E24: ="SA-EDESA-" & $G$14 -> SA-EDESA-04 | F24: TRANSNOA_INDISPONIBILIDADES_SALIDAS_EDESA.XLS | G24: 3 | H24: 5 | I24: 4 | J24: 6 | K24: 7 | L24: 8 | M24: 10 | N24: 11 | O24: 14 | P24: 15 | Q24: 21 | R24: 0 | S24: 0 | T24: 0 | U24: 0 | V24: 0 | W24: 30 | X24: 10 | Y24: 44 | Z24: 22 | AA24: 21 | AB24: 22 | AC24: 14
A25: MODELO VST | B25: 19 | C25: 24 | D25: 4 | E25: ="CAUSAS-VST-" & $G$14 -> CAUSAS-VST-04 | F25: TRANSNOA_CAUSAS_VST.XLS | G25: 3 | H25: 4 | I25: 5 | J25: 6 | K25: 7 | L25: 0 | M25: 0 | N25: 0 | O25: 0 | P25: 0 | Q25: 0 | R25: 0 | S25: 0 | T25: 0 | U25: 0 | V25: 0 | W25: 999 | X25: 999 | Y25: 0 | Z25: 0 | AA25: 0 | AB25: 0 | AC25: 0
